Workbook

Sheet PORTADA

Sheet MENU (hidden)
B6: Descripción | C6: Nombre de la hoja
B7: Historial de las fechas de envió de la contabilidad electrónica | C7: ENVIO
B8: Contribuyentes que pueden utilizar MIS CUENTAS | C8: MISCUENTAS
B9: Contribuyentes con opción de no enviar contabilidad electronica | C9: NOENVIO
B10: Funtamento legal de utilización de MIS CUENTAS | C10: FUNDAMENTO
B11: Ejemplo catálogo de cuentas | C11: ECATALOGO
B12: Verificar estructura del catálogo de cuentas | C12: VCATALOGO
B13: Código agrupador del anexo 24 RMF | C13: ANEXO24
B14: Catálogo de bancos del anexo 24 RMF | C14: CATALOGOB
B15: Catálogo de moneda del anexo 24 RMF | C15: CATALOGOM
B16: Catálogo de método de pago del anexo 24 RMF | C16: METODOP
B17: Formato de póliza con opción de escuchar al narrador de Windows | C17: FPOLIZA
B18: Ejemplos de registros contables | C18: EJEMPLO
B19: Cuentas de orden | C19: CUENTASO
B20: Importar XML emitidos (excepto nómina) | C20: CFDIE
B21: Importar XML emitidos con complemento de pago | C21: RPAGOSE
B22: Hoja para realizar un concentrado de los XML emitidos | C22: VENTASP
B23: Importar XML recibidos (excepto nómina) | C23: CFDIR
B24: Importar XML recibidos con complemento de pago | C24: RPAGOSR
B25: Hoja para realizar un concentrado de los XML recibidos | C25: GASTOSP
B26: Genera el XML de la balanza de comprobación | C26: BALANZA XML
B27: Hoja para revisar el XML de las pólizas | C27: RPOLIZA

Sheet ENVIO (hidden)
C3: Ejercicio 2015
C4: Fecha de envió por primera vez | E4: Ejercicio 2016 | F4: Ejercicio 2017 | G4: Ejercicio 2018 | H4: Ejercicio 2019 | I4: Ejercicio 2020 | J4: Ejercicio 2021 | K4: Ejercicio 2022 | L4: Ejercicio 2023 | M4: Ejercicio 2024 | N4: Ejercicio 2025
C5: Catálogo de cuentas | D5: Balanza de comprobación | E5: Balanza de comprobación | F5: Balanza de comprobación | G5: Balanza de comprobación | H5: Balanza de comprobación | I5: Balanza de comprobación | J5: Balanza de comprobación | K5: Balanza de comprobación | L5: Balanza de comprobación | M5: Balanza de comprobación | N5: Balanza de comprobación
B6: Sistema financiero
B7: Enero | C7: 2015-03-03 | D7: 2015-03-03 | E7: 2016-03-03 | F7: 2017-03-03 | G7: 2018-03-05 | H7: 2019-03-04 | I7: 2020-03-03 | J7: 2021-03-03 | K7: 2022-03-03 | L7: 2023-03-03 | M7: 2024-03-04 | N7: 2025-03-03
B8: Febrero | C8: Y cada vez que se modifique, se presenta en el mismo periodo que la balanza de comprobación del mes en que se modifico | D8: 2015-04-03 | E8: 2016-04-04 | F8: 2017-04-03 | G8: 2018-04-03 | H8: 2019-04-03 | I8: 2020-04-03 | J8: 2021-04-05 | K8: 2022-04-04 | L8: 2023-04-03 | M8: 2024-04-03 | N8: 2025-04-03
B9: Marzo | D9: 2015-05-04 | E9: 2016-05-03 | F9: 2017-05-03 | G9: 2018-05-03 | H9: 2019-05-03 | I9: 2020-05-04 | J9: 2021-05-03 | K9: 2022-05-03 | L9: 2023-05-03 | M9: 2024-05-03 | N9: 2025-05-05
B10: Abril | D10: 2015-06-03 | E10: 2016-06-03 | F10: 2017-06-05 | G10: 2018-06-04 | H10: 2019-06-03 | I10: 2020-06-03 | J10: 2021-06-03 | K10: 2022-06-03 | L10: 2023-06-05 | M10: 2024-06-03 | N10: 2025-06-03
B11: Mayo | D11: 2015-07-03 | E11: 2016-07-04 | F11: 2017-07-03 | G11: 2018-07-03 | H11: 2019-07-03 | I11: 2020-07-03 | J11: 2021-07-05 | K11: 2022-07-04 | L11: 2023-07-03 | M11: 2024-07-03 | N11: 2025-07-03
B12: Junio | D12: 2015-08-03 | E12: 2016-08-03 | F12: 2017-08-03 | G12: 2018-08-03 | H12: 2019-08-05 | I12: 2020-08-03 | J12: 2021-08-03 | K12: 2022-08-03 | L12: 2023-08-03 | M12: 2024-08-05 | N12: 2025-08-04
B13: Julio | D13: 2015-09-03 | E13: 2016-09-05 | F13: 2017-09-04 | G13: 2018-09-03 | H13: 2019-09-03 | I13: 2020-09-03 | J13: 2021-09-03 | K13: 2022-09-05 | L13: 2023-09-04 | M13: 2024-09-03 | N13: 2025-09-03
B14: Agosto | D14: 2015-10-05 | E14: 2016-10-03 | F14: 2017-10-03 | G14: 2018-10-03 | H14: 2019-10-03 | I14: 2020-10-05 | J14: 2021-10-04 | K14: 2022-10-03 | L14: 2023-10-03 | M14: 2024-10-03 | N14: 2025-10-03
B15: Septiembre | D15: 2015-11-03 | E15: 2016-11-03 | F15: 2017-11-03 | G15: 2018-11-05 | H15: 2019-11-04 | I15: 2020-11-03 | J15: 2021-11-03 | K15: 2022-11-03 | L15: 2023-11-03 | M15: 2024-11-04 | N15: 2025-11-03
B16: Octubre | D16: 2015-12-03 | E16: 2016-12-05 | F16: 2017-12-04 | G16: 2018-12-03 | H16: 2019-12-03 | I16: 2020-12-03 | J16: 2021-12-03 | K16: 2022-12-05 | L16: 2023-12-04 | M16: 2024-12-03 | N16: 2025-12-03
B17: Noviembre | D17: 2016-01-04 | E17: 2017-01-03 | F17: 2018-01-03 | G17: 2019-01-03 | H17: 2020-01-03 | I17: 2021-01-04 | J17: 2022-01-03 | K17: 2023-01-03 | L17: 2024-01-03 | M17: 2025-01-03 | N17: 2026-01-05
B18: Diciembre | D18: 2016-02-03 | E18: 2017-02-03 | F18: 2018-02-05 | G18: 2019-02-04 | H18: 2020-02-03 | I18: 2021-02-03 | J18: 2022-02-03 | K18: 2023-02-03 | L18: 2024-02-05 | M18: 2025-02-03 | N18: 2026-02-03
C20: Ejercicio 2015
C21: Fecha de envió por primera vez | E21: Ejercicio 2016 | F21: Ejercicio 2017 | G21: Ejercicio 2018 | H21: Ejercicio 2019 | I21: Ejercicio 2020 | J21: Ejercicio 2021 | K21: Ejercicio 2022 | L21: Ejercicio 2023 | M21: Ejercicio 2024 | N21: Ejercicio 2025
C22: Catálogo de cuentas | D22: Balanza de comprobación | E22: Balanza de comprobación | F22: Balanza de comprobación | G22: Balanza de comprobación | H22: Balanza de comprobación | I22: Balanza de comprobación | J22: Balanza de comprobación | K22: Balanza de comprobación | L22: Balanza de comprobación | M22: Balanza de comprobación | N22: Balanza de comprobación
B23: Persona moral con Ingresos acumulables declarados o que debieron declarar en el ejercicio de 2013 >= $ 4,000,000.00
B24: Enero | C24: 2015-03-03 | D24: 2015-03-03 | E24: 2016-03-03 | F24: 2017-03-03 | G24: 2018-03-05 | H24: 2019-03-04 | I24: 2020-03-03 | J24: 2021-03-03 | K24: 2022-03-03 | L24: 2023-03-03 | M24: 2024-03-04 | N24: 2025-03-03
B25: Febrero | C25: Y cada vez que se modifique, se presenta en el mismo periodo que la balanza de comprobación del mes en que se modifico | D25: 2015-04-03 | E25: 2016-04-04 | F25: 2017-04-03 | G25: 2018-04-03 | H25: 2019-04-03 | I25: 2020-04-03 | J25: 2021-04-05 | K25: 2022-04-04 | L25: 2023-04-03 | M25: 2024-04-03 | N25: 2025-04-03
B26: Marzo | D26: 2015-05-04 | E26: 2016-05-03 | F26: 2017-05-03 | G26: 2018-05-03 | H26: 2019-05-03 | I26: 2020-05-04 | J26: 2021-05-03 | K26: 2022-05-03 | L26: 2023-05-03 | M26: 2024-05-03 | N26: 2025-05-05
B27: Abril | D27: 2015-06-03 | E27: 2016-06-03 | F27: 2017-06-05 | G27: 2018-06-04 | H27: 2019-06-03 | I27: 2020-06-03 | J27: 2021-06-03 | K27: 2022-06-03 | L27: 2023-06-05 | M27: 2024-06-03 | N27: 2025-06-03
B28: Mayo | D28: 2015-07-03 | E28: 2016-07-04 | F28: 2017-07-03 | G28: 2018-07-03 | H28: 2019-07-03 | I28: 2020-07-03 | J28: 2021-07-05 | K28: 2022-07-04 | L28: 2023-07-03 | M28: 2024-07-03 | N28: 2025-07-03
B29: Junio | D29: 2015-08-03 | E29: 2016-08-03 | F29: 2017-08-03 | G29: 2018-08-03 | H29: 2019-08-05 | I29: 2020-08-03 | J29: 2021-08-03 | K29: 2022-08-03 | L29: 2023-08-03 | M29: 2024-08-05 | N29: 2025-08-04
B30: Julio | D30: 2015-09-03 | E30: 2016-09-05 | F30: 2017-09-04 | G30: 2018-09-03 | H30: 2019-09-03 | I30: 2020-09-03 | J30: 2021-09-03 | K30: 2022-09-05 | L30: 2023-09-04 | M30: 2024-09-03 | N30: 2025-09-03
B31: Agosto | D31: 2015-10-05 | E31: 2016-10-03 | F31: 2017-10-03 | G31: 2018-10-03 | H31: 2019-10-03 | I31: 2020-10-05 | J31: 2021-10-04 | K31: 2022-10-03 | L31: 2023-10-03 | M31: 2024-10-03 | N31: 2025-10-03
B32: Septiembre | D32: 2015-11-03 | E32: 2016-11-03 | F32: 2017-11-03 | G32: 2018-11-05 | H32: 2019-11-04 | I32: 2020-11-03 | J32: 2021-11-03 | K32: 2022-11-03 | L32: 2023-11-03 | M32: 2024-11-04 | N32: 2025-11-03
B33: Octubre | D33: 2015-12-03 | E33: 2016-12-05 | F33: 2017-12-04 | G33: 2018-12-03 | H33: 2019-12-03 | I33: 2020-12-03 | J33: 2021-12-03 | K33: 2022-12-05 | L33: 2023-12-04 | M33: 2024-12-03 | N33: 2025-12-03
B34: Noviembre | D34: 2016-01-04 | E34: 2017-01-03 | F34: 2018-01-03 | G34: 2019-01-03 | H34: 2020-01-03 | I34: 2021-01-04 | J34: 2022-01-03 | K34: 2023-01-03 | L34: 2024-01-03 | M34: 2025-01-03 | N34: 2026-01-05
B35: Diciembre | D35: 2016-02-03 | E35: 2017-02-03 | F35: 2018-02-05 | G35: 2019-02-04 | H35: 2020-02-03 | I35: 2021-02-03 | J35: 2022-02-03 | K35: 2023-02-03 | L35: 2024-02-05 | M35: 2025-02-03 | N35: 2026-02-03
C39: Ejercicio 2016
C40: Fecha de envió por primera vez | E40: Ejercicio 2017 | F40: Ejercicio 2018 | G40: Ejercicio 2019 | H40: Ejercicio 2020 | I40: Ejercicio 2021 | J40: Ejercicio 2022 | K40: Ejercicio 2023 | L40: Ejercicio 2024 | M40: Ejercicio 2025
C41: Catálogo de cuentas | D41: Balanza de comprobación | E41: Balanza de comprobación | F41: Balanza de comprobación | G41: Balanza de comprobación | H41: Balanza de comprobación | I41: Balanza de comprobación | J41: Balanza de comprobación | K41: Balanza de comprobación | L41: Balanza de comprobación | M41: Balanza de comprobación
B42: Persona moral
B43: Enero | C43: 2016-03-03 | D43: 2016-03-03 | E43: 2017-03-03 | F43: 2018-03-05 | G43: 2019-03-04 | H43: 2020-03-03 | I43: 2021-03-03 | J43: 2022-03-03 | K43: 2023-03-03 | L43: 2024-03-04 | M43: 2025-03-03
B44: Febrero | C44: Y cada vez que se modifique, se presenta en el mismo periodo que la balanza de comprobación del mes en que se modifico | D44: 2016-04-04 | E44: 2017-04-03 | F44: 2018-04-03 | G44: 2019-04-03 | H44: 2020-04-03 | I44: 2021-04-05 | J44: 2022-04-04 | K44: 2023-04-03 | L44: 2024-04-03 | M44: 2025-04-03
B45: Marzo | D45: 2016-05-03 | E45: 2017-05-03 | F45: 2018-05-03 | G45: 2019-05-03 | H45: 2020-05-04 | I45: 2021-05-03 | J45: 2022-05-03 | K45: 2023-05-03 | L45: 2024-05-03 | M45: 2025-05-05
B46: Abril | D46: 2016-06-03 | E46: 2017-06-05 | F46: 2018-06-04 | G46: 2019-06-03 | H46: 2020-06-03 | I46: 2021-06-03 | J46: 2022-06-03 | K46: 2023-06-05 | L46: 2024-06-03 | M46: 2025-06-03
B47: Mayo | D47: 2016-07-04 | E47: 2017-07-03 | F47: 2018-07-03 | G47: 2019-07-03 | H47: 2020-07-03 | I47: 2021-07-05 | J47: 2022-07-04 | K47: 2023-07-03 | L47: 2024-07-03 | M47: 2025-07-03
B48: Junio | D48: 2016-08-03 | E48: 2017-08-03 | F48: 2018-08-03 | G48: 2019-08-05 | H48: 2020-08-03 | I48: 2021-08-03 | J48: 2022-08-03 | K48: 2023-08-03 | L48: 2024-08-05 | M48: 2025-08-04
B49: Julio | D49: 2016-09-05 | E49: 2017-09-04 | F49: 2018-09-03 | G49: 2019-09-03 | H49: 2020-09-03 | I49: 2021-09-03 | J49: 2022-09-05 | K49: 2023-09-04 | L49: 2024-09-03 | M49: 2025-09-03
B50: Agosto | D50: 2016-10-03 | E50: 2017-10-03 | F50: 2018-10-03 | G50: 2019-10-03 | H50: 2020-10-05 | I50: 2021-10-04 | J50: 2022-10-03 | K50: 2023-10-03 | L50: 2024-10-03 | M50: 2025-10-03
B51: Septiembre | D51: 2016-11-03 | E51: 2017-11-03 | F51: 2018-11-05 | G51: 2019-11-04 | H51: 2020-11-03 | I51: 2021-11-03 | J51: 2022-11-03 | K51: 2023-11-03 | L51: 2024-11-04 | M51: 2025-11-03
B52: Octubre | D52: 2016-12-05 | E52: 2017-12-04 | F52: 2018-12-03 | G52: 2019-12-03 | H52: 2020-12-03 | I52: 2021-12-03 | J52: 2022-12-05 | K52: 2023-12-04 | L52: 2024-12-03 | M52: 2025-12-03
B53: Noviembre | D53: 2017-01-03 | E53: 2018-01-03 | F53: 2019-01-03 | G53: 2020-01-03 | H53: 2021-01-04 | I53: 2022-01-03 | J53: 2023-01-03 | K53: 2024-01-03 | L53: 2025-01-03 | M53: 2026-01-05
B54: Diciembre | D54: 2017-02-03 | E54: 2018-02-05 | F54: 2019-02-04 | G54: 2020-02-03 | H54: 2021-02-03 | I54: 2022-02-03 | J54: 2023-02-03 | K54: 2024-02-05 | L54: 2025-02-03 | M54: 2026-02-03
C56: Ejercicio 2015
C57: Fecha de envió por primera vez | E57: Ejercicio 2016 | F57: Ejercicio 2017 | G57: Ejercicio 2018 | H57: Ejercicio 2019 | I57: Ejercicio 2020 | J57: Ejercicio 2021 | K57: Ejercicio 2022 | L57: Ejercicio 2023 | M57: Ejercicio 2024 | N57: Ejercicio 2025
C58: Catálogo de cuentas | D58: Balanza de comprobación | E58: Balanza de comprobación | F58: Balanza de comprobación | G58: Balanza de comprobación | H58: Balanza de comprobación | I58: Balanza de comprobación | J58: Balanza de comprobación | K58: Balanza de comprobación | L58: Balanza de comprobación | M58: Balanza de comprobación | N58: Balanza de comprobación
B59: Persona física con Ingresos acumulables declarados o que debieron declarar en el ejercicio de 2013 >= $ 4,000,000.00
B60: Enero | C60: 2015-03-05 | D60: 2015-03-05 | E60: 2016-03-07 | F60: 2017-03-06 | G60: 2018-03-05 | H60: 2019-03-05 | I60: 2020-03-05 | J60: 2021-03-05 | K60: 2022-03-07 | L60: 2023-03-06 | M60: 2024-03-05 | N60: 2025-03-05
B61: Febrero | C61: Y cada vez que se modifique, se presenta en el mismo periodo que la balanza de comprobación del mes en que se modifico | D61: 2015-04-06 | E61: 2016-04-05 | F61: 2017-04-05 | G61: 2018-04-05 | H61: 2019-04-05 | I61: 2020-04-06 | J61: 2021-04-05 | K61: 2022-04-05 | L61: 2023-04-05 | M61: 2024-04-05 | N61: 2025-04-07
B62: Marzo | D62: 2015-05-05 | E62: 2016-05-05 | F62: 2017-05-05 | G62: 2018-05-07 | H62: 2019-05-06 | I62: 2020-05-05 | J62: 2021-05-05 | K62: 2022-05-05 | L62: 2023-05-05 | M62: 2024-05-06 | N62: 2025-05-05
B63: Abril | D63: 2015-06-05 | E63: 2016-06-06 | F63: 2017-06-05 | G63: 2018-06-05 | H63: 2019-06-05 | I63: 2020-06-05 | J63: 2021-06-07 | K63: 2022-06-06 | L63: 2023-06-05 | M63: 2024-06-05 | N63: 2025-06-03
B64: Mayo | D64: 2015-07-06 | E64: 2016-07-05 | F64: 2017-07-05 | G64: 2018-07-05 | H64: 2019-07-05 | I64: 2020-07-06 | J64: 2021-07-05 | K64: 2022-07-05 | L64: 2023-07-05 | M64: 2024-07-05 | N64: 2025-07-07
B65: Junio | D65: 2015-08-05 | E65: 2016-08-05 | F65: 2017-08-07 | G65: 2018-08-06 | H65: 2019-08-05 | I65: 2020-08-05 | J65: 2021-08-05 | K65: 2022-08-05 | L65: 2023-08-07 | M65: 2024-08-05 | N65: 2025-08-05
B66: Julio | D66: 2015-09-07 | E66: 2016-09-05 | F66: 2017-09-05 | G66: 2018-09-05 | H66: 2019-09-05 | I66: 2020-09-07 | J66: 2021-09-06 | K66: 2022-09-05 | L66: 2023-09-05 | M66: 2024-09-05 | N66: 2025-09-05
B67: Agosto | D67: 2015-10-05 | E67: 2016-10-05 | F67: 2017-10-05 | G67: 2018-10-05 | H67: 2019-10-07 | I67: 2020-10-05 | J67: 2021-10-05 | K67: 2022-10-05 | L67: 2023-10-05 | M67: 2024-10-07 | N67: 2025-10-06
B68: Septiembre | D68: 2015-11-05 | E68: 2016-11-07 | F68: 2017-11-06 | G68: 2018-11-05 | H68: 2019-11-05 | I68: 2020-11-05 | J68: 2021-11-05 | K68: 2022-11-07 | L68: 2023-11-06 | M68: 2024-11-05 | N68: 2025-11-05
B69: Octubre | D69: 2015-12-07 | E69: 2016-12-05 | F69: 2017-12-05 | G69: 2018-12-05 | H69: 2019-12-05 | I69: 2020-12-07 | J69: 2021-12-06 | K69: 2022-12-05 | L69: 2023-12-05 | M69: 2024-12-05 | N69: 2025-12-05
B70: Noviembre | D70: 2016-01-05 | E70: 2017-01-05 | F70: 2018-01-05 | G70: 2019-01-07 | H70: 2020-01-06 | I70: 2021-01-05 | J70: 2022-01-05 | K70: 2023-01-05 | L70: 2024-01-05 | M70: 2025-01-06 | N70: 2026-01-05
B71: Diciembre | D71: 2016-02-05 | E71: 2017-02-06 | F71: 2018-02-05 | G71: 2019-02-05 | H71: 2020-02-05 | I71: 2021-02-05 | J71: 2022-02-07 | K71: 2023-02-06 | L71: 2024-02-05 | M71: 2025-02-05 | N71: 2026-02-05
C73: Ejercicio 2016
C74: Fecha de envió por primera vez | E74: Ejercicio 2017 | F74: Ejercicio 2018 | G74: Ejercicio 2019 | H74: Ejercicio 2020 | I74: Ejercicio 2021 | J74: Ejercicio 2022 | K74: Ejercicio 2023 | L74: Ejercicio 2024 | M74: Ejercicio 2025
C75: Catálogo de cuentas | D75: Balanza de comprobación | E75: Balanza de comprobación | F75: Balanza de comprobación | G75: Balanza de comprobación | H75: Balanza de comprobación | I75: Balanza de comprobación | J75: Balanza de comprobación | K75: Balanza de comprobación | L75: Balanza de comprobación | M75: Balanza de comprobación
B76: Persona física
B77: Enero | C77: 2016-03-07 | D77: 2016-03-07 | E77: 2017-03-06 | F77: 2018-03-05 | G77: 2019-03-05 | H77: 2020-03-05 | I77: 2021-03-05 | J77: 2022-03-07 | K77: 2023-03-06 | L77: 2024-03-05 | M77: 2025-03-05
B78: Febrero | C78: Y cada vez que se modifique, se presenta en el mismo periodo que la balanza de comprobación del mes en que se modifico | D78: 2016-04-05 | E78: 2017-04-05 | F78: 2018-04-05 | G78: 2019-04-05 | H78: 2020-04-06 | I78: 2021-04-05 | J78: 2022-04-05 | K78: 2023-04-05 | L78: 2024-04-05 | M78: 2025-04-07
B79: Marzo | D79: 2016-05-05 | E79: 2017-05-05 | F79: 2018-05-07 | G79: 2019-05-06 | H79: 2020-05-05 | I79: 2021-05-05 | J79: 2022-05-05 | K79: 2023-05-05 | L79: 2024-05-06 | M79: 2025-05-05
B80: Abril | D80: 2016-06-06 | E80: 2017-06-05 | F80: 2018-06-05 | G80: 2019-06-05 | H80: 2020-06-05 | I80: 2021-06-07 | J80: 2022-06-06 | K80: 2023-06-05 | L80: 2024-06-05 | M80: 2025-06-03
B81: Mayo | D81: 2016-07-05 | E81: 2017-07-05 | F81: 2018-07-05 | G81: 2019-07-05 | H81: 2020-07-06 | I81: 2021-07-05 | J81: 2022-07-05 | K81: 2023-07-05 | L81: 2024-07-05 | M81: 2025-07-07
B82: Junio | D82: 2016-08-05 | E82: 2017-08-07 | F82: 2018-08-06 | G82: 2019-08-05 | H82: 2020-08-05 | I82: 2021-08-05 | J82: 2022-08-05 | K82: 2023-08-07 | L82: 2024-08-05 | M82: 2025-08-05
B83: Julio | D83: 2016-09-05 | E83: 2017-09-05 | F83: 2018-09-05 | G83: 2019-09-05 | H83: 2020-09-07 | I83: 2021-09-06 | J83: 2022-09-05 | K83: 2023-09-05 | L83: 2024-09-05 | M83: 2025-09-05
B84: Agosto | D84: 2016-10-05 | E84: 2017-10-05 | F84: 2018-10-05 | G84: 2019-10-07 | H84: 2020-10-05 | I84: 2021-10-05 | J84: 2022-10-05 | K84: 2023-10-05 | L84: 2024-10-07 | M84: 2025-10-06
B85: Septiembre | D85: 2016-11-07 | E85: 2017-11-06 | F85: 2018-11-05 | G85: 2019-11-05 | H85: 2020-11-05 | I85: 2021-11-05 | J85: 2022-11-07 | K85: 2023-11-06 | L85: 2024-11-05 | M85: 2025-11-05
B86: Octubre | D86: 2016-12-05 | E86: 2017-12-05 | F86: 2018-12-05 | G86: 2019-12-05 | H86: 2020-12-07 | I86: 2021-12-06 | J86: 2022-12-05 | K86: 2023-12-05 | L86: 2024-12-05 | M86: 2025-12-05
B87: Noviembre | D87: 2017-01-05 | E87: 2018-01-05 | F87: 2019-01-07 | G87: 2020-01-06 | H87: 2021-01-05 | I87: 2022-01-05 | J87: 2023-01-05 | K87: 2024-01-05 | L87: 2025-01-06 | M87: 2026-01-05
B88: Diciembre | D88: 2017-02-06 | E88: 2018-02-05 | F88: 2019-02-05 | G88: 2020-02-05 | H88: 2021-02-05 | I88: 2022-02-07 | J88: 2023-02-06 | K88: 2024-02-05 | L88: 2025-02-05 | M88: 2026-02-05

Sheet MISCUENTAS (hidden)
B2: Contribuyentes que pueden utilizar MIS CUENTAS
B4: Ejercicio 2015
B5: Contribuyente | C5: Obligados a enviar contabilidad
B6: Persona física RIF | C6: r
B7: Persona física actividad empresaria | C7: r
B8: Servicios profesionales | C8: r
B9: Persona física arrendamiento de inmuebles | C9: r
B10: Asociaciones religiosas del título III LISR | C10: r
B11: Las sociedades y asociaciones civiles y fideicomisos autorizados para recibir donativos deducibles a que se refiere el Título III de la Ley del ISR, que hubieren percibido ingresos en una cantidad igual o menor a $2’000,000.00, y que estos ingresos no provengan de actividades por las que deban determinar el impuesto que corresponda en los términos del artículo 80, último párrafo de la misma Ley. | C11: r
B14: Ejercicio 2016
B15: Contribuyente | C15: Obligados a enviar contabilidad | D15: Observaciones
B16: Persona física RIF | C16: r | D16: Se debio de haber presentado un caso de aclaración a más tardar el 30/04/2016
B17: Persona física actividad empresaria | C17: r
B18: Servicios profesionales | C18: r
B19: Persona física arrendamiento de inmuebles | C19: r
B20: Asociaciones religiosas del título III LISR | C20: r
B21: Las sociedades y asociaciones civiles y fideicomisos autorizados para recibir donativos deducibles a que se refiere el Título III de la Ley del ISR, que hubieren percibido ingresos en una cantidad igual o menor a $2’000,000.00, y que estos ingresos no provengan de actividades por las que deban determinar el impuesto que corresponda en los términos del artículo 80, último párrafo de la misma Ley. | C21: r
B24: Ejercicio 2017
B25: Contribuyente | C25: Obligados a enviar contabilidad | D25: Observaciones
B26: Persona física RIF | C26: r | D26: Se debio de haber presentado un caso de aclaración a más tardar último día de febrero de 2017, si se presento el aviso en 2016 sigue vigente para 2017.
B27: Persona física actividad empresarial | C27: r
B28: Servicios profesionales | C28: r
B29: Persona física arrendamiento de inmuebles | C29: r
B30: Asociaciones religiosas del título III LISR | C30: r
B31: Las sociedades y asociaciones civiles y fideicomisos autorizados para recibir donativos deducibles a que se refiere el Título III de la Ley del ISR, que hubieren percibido ingresos en una cantidad igual o menor a $2’000,000.00, y que estos ingresos no provengan de actividades por las que deban determinar el impuesto que corresponda en los términos del artículo 80, último párrafo de la misma Ley. | C31: r
B34: Ejercicio 2018
B35: Contribuyente | C35: Obligados a enviar contabilidad | D35: Observaciones
B36: Persona física RIF | C36: r | D36: Se debio de haber presentado un caso de aclaración a más tardar último día de febrero de 2018, si se presento el aviso en 2016 o 2017 sigue vigente para 2018.
B37: Persona física actividad empresarial | C37: r
B38: Servicios profesionales | C38: r
B39: Persona física arrendamiento de inmuebles con ingresos del ejercicio inmediato anterior <= $4,000,000.00 | C39: r
B40: Asociaciones religiosas del título III LISR | C40: r
B41: Las sociedades y asociaciones civiles y fideicomisos autorizados para recibir donativos deducibles a que se refiere el Título III de la Ley del ISR, que hubieren percibido ingresos en una cantidad igual o menor a $2’000,000.00, y que estos ingresos no provengan de actividades por las que deban determinar el impuesto que corresponda en los términos del artículo 80, último párrafo de la misma Ley. | C41: r
B44: Ejercicio 2019
B45: Contribuyente | C45: Obligados a enviar contabilidad | D45: Observaciones
B46: Persona física RIF | C46: r
B47: Servicios profesionales con ingresos <= $2,000,000.00 | C47: r
B48: Asociaciones religiosas del título III LISR | C48: r | D48: Se debio de haber presentado un caso de aclaración a más tardar último día de febrero de 2019
B49: Las sociedades y asociaciones civiles y fideicomisos autorizados para recibir donativos deducibles a que se refiere el Título III de la Ley del ISR, que hubieren percibido ingresos en una cantidad igual o menor a $2’000,000.00, y que estos ingresos no provengan de actividades por las que deban determinar el impuesto que corresponda en los términos del artículo 80, último párrafo de la misma Ley. | C49: r
B52: Ejercicio 2020
B53: Contribuyente | C53: Obligados a enviar contabilidad | D53: Observaciones
B54: Persona física RIF | C54: r
B55: Servicios profesionales con ingresos <= $2,000,000.00 | C55: r
B56: Asociaciones religiosas del título III LISR | C56: r | D56: Se debio de haber presentado un caso de aclaración a más tardar último día de febrero de 2020.
B57: Régimen De Actividades Agrícolas, Ganaderas, Silvícolas Y Pesqueras | C57: r
B58: Las sociedades y asociaciones civiles y fideicomisos autorizados para recibir donativos deducibles a que se refiere el Título III de la Ley del ISR, que hubieren percibido ingresos en una cantidad igual o menor a $2’000,000.00, y que estos ingresos no provengan de actividades por las que deban determinar el impuesto que corresponda en los términos del artículo 80, último párrafo de la misma Ley. | C58: r
B61: Ejercicio 2021
B62: Contribuyente | C62: Obligados a enviar contabilidad | D62: Observaciones
B63: Persona física RIF | C63: r
B64: Persona física actividad empresarial con ingresos en el ejercicio inmediato anterior <= $4,000,000.00 | C64: r
B65: Servicios profesionales con ingresos en el ejercicio inmediato anterior <= $4,000,000.00 | C65: r
B66: Plataformas tecnológicas con ingresos en el ejercicio inmediato anterior <= $4,000,000.00 | C66: r
B67: Asociaciones religiosas del título III LISR | C67: r | D67: Se debio de haber presentado un caso de aclaración a más tardar último día de febrero de 2021, el aviso presentado en 2016, 2017, 2018, 2019 seguira vigente
B68: Régimen De Actividades Agrícolas, Ganaderas, Silvícolas Y Pesqueras | C68: r
B69: Las sociedades y asociaciones civiles y fideicomisos autorizados para recibir donativos deducibles a que se refiere el Título III de la Ley del ISR, que hubieren percibido ingresos en una cantidad igual o menor a $2’000,000.00, y que estos ingresos no provengan de actividades por las que deban determinar el impuesto que corresponda en los términos del artículo 80, último párrafo de la misma Ley. | C69: r
B72: Ejercicio 2022
B73: Contribuyente | C73: Obligados a enviar contabilidad | D73: Observaciones
B74: Persona física RIF | C74: r
B75: Persona física actividad empresarial con ingresos en el ejercicio inmediato anterior <= $4,000,000.00 | C75: r
B76: Servicios profesionales con ingresos en el ejercicio inmediato anterior <= $4,000,000.00 | C76: r
B77: Plataformas tecnológicas con ingresos en el ejercicio inmediato anterior <= $4,000,000.00 | C77: r
B78: Asociaciones religiosas del título III LISR | C78: r
B81: Ejercicio 2023
B82: Contribuyente | C82: Obligados a enviar contabilidad | D82: Observaciones
B83: Persona física RIF | C83: r
B84: Persona física actividad empresarial con ingresos en el ejercicio inmediato anterior <= $4,000,000.00 | C84: r
B85: Servicios profesionales con ingresos en el ejercicio inmediato anterior <= $4,000,000.00 | C85: r
B86: Plataformas tecnológicas con ingresos en el ejercicio inmediato anterior <= $4,000,000.00 | C86: r
B87: Asociaciones religiosas del título III LISR | C87: r
B90: Ejercicio 2024
B91: Contribuyente | C91: Obligados a enviar contabilidad | D91: Observaciones
B92: Persona física RIF | C92: r
B93: Persona física actividad empresarial con ingresos en el ejercicio inmediato anterior <= $4,000,000.00 | C93: r
B94: Servicios profesionales con ingresos en el ejercicio inmediato anterior <= $4,000,000.00 | C94: r
B95: Plataformas tecnológicas con ingresos en el ejercicio inmediato anterior <= $4,000,000.00 | C95: r
B96: Asociaciones religiosas del título III LISR | C96: r

Sheet NOENVIO (hidden)
B2: Ejercicio 2019
B3: Persona física actividad empresarial y profesional y arrendamiento de inmuebles
B4: Facilidades para los contribuyentes que clasifican sus CFDI en el aplicativo “Mi contabilidad” 2.8.1.24. Las personas físicas que tributen conforme a la Sección I, Capítulo II y Capítulo III del Título IV de la Ley de ISR, excepto las personas físicas con ingresos de hasta 2 millones de pesos obligados a utilizar el aplicativo “Mis cuentas”, que determinen y presenten el pago provisional del ISR y el definitivo de IVA, del periodo de que se trate, clasificando los CFDI de ingresos y gastos en el aplicativo “Mi contabilidad” en términos de lo señalado en la regla 2.8.1.22., quedarán relevados de cumplir con las siguientes obligaciones: I. Enviar la contabilidad electrónica e ingresar de forma mensual su información contable en términos de lo señalado en el artículo 28 del CFF. II. Presentar la Información de Operaciones con Terceros (DIOT) a que se refiere el artículo 32, fracción VIII de la Ley del IVA. CFF 28, LIVA 32 RMF 2019 2.8.1.22.
B7: Ejercicio 2020
B8: Persona física actividad empresarial y profesional y arrendamiento de inmuebles
B9: Facilidades para los contribuyentes personas físicas 2.8.1.21. Las personas físicas que tributen conforme a la Sección I, Capítulo II y Capítulo III del Título IV de la Ley de ISR, cuyos ingresos totales del ejercicio inmediato anterior no hubieran excedido de 4 millones de pesos o que inicien actividades en el ejercicio y estimen que sus ingresos obtenidos en el mismo no excederán de la cantidad señalada, quedarán relevados de cumplir con las siguientes obligaciones: I. Enviar la contabilidad electrónica e ingresar de forma mensual su información contable en términos de lo señalado en el artículo 28 del CFF. II. Presentar la Información de Operaciones con Terceros (DIOT) a que se refiere el artículo 32, fracción VIII de la Ley del IVA. CFF 28, LIVA 32 RMF 2020
B12: Ejercicio 2021
B13: Persona física actividad empresarial y profesional, plataformas tecnológicas y arrendamiento de inmuebles
B14: Facilidades para los contribuyentes personas físicas 2.8.1.21. Las personas físicas que tributen conforme al Capítulo II, Secciones I y III y Capítulo III del Título IV de la Ley de ISR, cuyos ingresos totales del ejercicio inmediato anterior no hubieran excedido de $4'000,000.00 (cuatro millones de pesos 00/100 M.N.), o que inicien actividades en el ejercicio y estimen que sus ingresos obtenidos en el mismo no excederán de la cantidad señalada, quedarán relevados de cumplir con las siguientes obligaciones: I. Enviar la contabilidad electrónica e ingresar de forma mensual su información contable en términos de lo señalado en el artículo 28 del CFF. II. Presentar la Información de Operaciones con Terceros (DIOT) a que se refiere el artículo 32, fracción VIII de la Ley del IVA. CFF 28, LIVA 32
B17: Ejercicio 2022
B18: Persona física actividad empresarial y profesional, plataformas tecnológicas y arrendamiento de inmuebles
B19: Facilidades para los contribuyentes personas físicas 2.8.1.17. Las personas físicas que tributen conforme al Capítulo II, Secciones I y III y Capítulo III del Título IV de la Ley de ISR, cuyos ingresos totales del ejercicio inmediato anterior no hubieran excedido de $4'000,000.00 (cuatro millones de pesos 00/100 M.N.), o que inicien actividades en el ejercicio y estimen que sus ingresos obtenidos en el mismo no excederán de la cantidad señalada, quedarán relevados de cumplir con las siguientes obligaciones: I. Enviar la contabilidad electrónica e ingresar de forma mensual su información contable en términos de lo señalado en el artículo 28 del CFF. II. Presentar la Información de Operaciones con Terceros (DIOT) a que se refiere el artículo 32, fracción VIII de la Ley del IVA. CFF 28, LIVA 32
B21: RESICO persona física y moral
B22: Facilidades para personas físicas y morales que tributen conforme a la Sección IV, del Capítulo II, Título IV y Capítulo XII, Título VII de la Ley del ISR 3.13.19. Las personas físicas y morales que tributen conforme a la Sección IV, Capítulo II del Título IV y Capítulo XII, Título VII de la Ley del ISR, quedarán relevados de cumplir con las siguientes obligaciones: I. Enviar la contabilidad electrónica e ingresar de forma mensual su información contable en términos de lo señalado en el artículo 28, fracción IV del CFF. II. Presentar la DIOT a que se refiere el artículo 32, fracción VIII de la Ley del IVA. CFF 28, LIVA 32
B25: Ejercicio 2023
B26: Persona física actividad empresarial y profesional, plataformas tecnológicas y arrendamiento de inmuebles
B27: Facilidades para los contribuyentes personas físicas 2.8.1.17. Las personas físicas que tributen conforme al Capítulo II, Secciones I y III y Capítulo III del Título IV de la Ley del ISR, cuyos ingresos totales del ejercicio inmediato anterior no hubieran excedido de $4'000,000.00 (cuatro millones de pesos 00/100 M.N.), o que inicien actividades en el ejercicio y estimen que sus ingresos obtenidos en el mismo no excederán de la cantidad señalada, quedarán relevados de cumplir con las siguientes obligaciones: I. Enviar la contabilidad electrónica e ingresar de forma mensual su información contable en términos de lo señalado en el artículo 28 del CFF. II. Presentar la Información de Operaciones con Terceros (DIOT) a que se refiere el artículo 32, fracción VIII de la Ley del IVA. CFF 28, LIVA 32
B29: RESICO persona física y moral
B30: Facilidades para personas físicas y morales que tributen conforme a la Sección IV, del Capítulo II, Título IV y Capítulo XII, Título VII de la Ley del ISR 3.13.17. Las personas físicas y morales que tributen conforme a la Sección IV, Capítulo II del Título IV y Capítulo XII, Título VII de la Ley del ISR, quedarán relevados de cumplir con las siguientes obligaciones: I. Enviar la contabilidad electrónica e ingresar de forma mensual su información contable en términos de lo señalado en el artículo 28, fracción IV del CFF. II. Presentar la DIOT a que se refiere el artículo 32, fracción VIII de la Ley del IVA. CFF 28, LIVA 32
B33: Ejercicio 2024
B34: Persona física actividad empresarial y profesional, plataformas tecnológicas y arrendamiento de inmuebles
B35: Facilidades para los contribuyentes personas físicas 2.8.1.17. Las personas físicas que tributen conforme al Capítulo II, Secciones I y III y Capítulo III del Título IV de la Ley del ISR, cuyos ingresos totales del ejercicio inmediato anterior no hubieran excedido de $4'000,000.00 (cuatro millones de pesos 00/100 M.N.), o que inicien actividades en el ejercicio y estimen que sus ingresos obtenidos en el mismo no excederán de la cantidad señalada, quedarán relevados de cumplir con las siguientes obligaciones: I. Enviar la contabilidad electrónica e ingresar de forma mensual su información contable en términos de lo señalado en el artículo 28 del CFF. II. Presentar la Información de Operaciones con Terceros (DIOT) a que se refiere el artículo 32, fracción VIII de la Ley del IVA. CFF 28, LIVA 32
B37: RESICO persona física y moral
B38: Facilidades para personas físicas y morales que tributen conforme a la Sección IV, del Capítulo II, Título IV y Capítulo XII, Título VII de la Ley del ISR 3.13.16. Las personas físicas y morales que tributen conforme al Título IV, Capítulo II, Sección IV y Título VII, Capítulo XII de la Ley del ISR, quedarán relevados de cumplir con las siguientes obligaciones: I. Enviar la contabilidad electrónica e ingresar de forma mensual su información contable en términos de lo señalado en el artículo 28, fracción IV del CFF, y II. Presentar la DIOT a que se refiere el artículo 32, fracción VIII de la Ley del IVA. LIVA 32, CFF 28

Sheet FUNDAMENTO (hidden)
B3: Ejercicio 2015
B50: Ejercicio 2016
B98: Ejercicio 2017
B144: Ejercicio 2018
B185: Ejercicio 2019
B216: Ejercicio 2020
B252: Ejercicio 2021
B293: Ejercicio 2022
B318: Ejercicio 2023
B335: Ejercicio 2024

Sheet ANEXO24 (hidden)
B3: Publicado el 22/01/2024 en el D.O.F. | F3: Publicado el 21/08/2019 en el D.O.F.
B4: Nivel | C4: Código agrupador | D4: Nombre de la cuenta y/o subcuenta | F4: Nivel | G4: Código agrupador | H4: Nombre de la cuenta y/o subcuenta
C5: 100 | D5: Activo | G5: 100 | H5: Activo | I5: =IF(D5=H5,"","DIFERENTE") -> 
C6: 100.01 | D6: Activo a corto plazo | G6: 100.01 | H6: Activo a corto plazo | I6: =IF(D6=H6,"","DIFERENTE") -> 
B7: 1 | C7: 101 | D7: Caja | F7: 1 | G7: 101 | H7: Caja
B8: 2 | C8: 101.01 | D8: Caja y efectivo | F8: 2 | G8: 101.01 | H8: Caja y efectivo
B9: 1 | C9: 102 | D9: Bancos | F9: 1 | G9: 102 | H9: Bancos
B10: 2 | C10: 102.01 | D10: Bancos nacionales | F10: 2 | G10: 102.01 | H10: Bancos nacionales
B11: 2 | C11: 102.02 | D11: Bancos extranjeros | F11: 2 | G11: 102.02 | H11: Bancos extranjeros
B12: 1 | C12: 103 | D12: Inversiones | F12: 1 | G12: 103 | H12: Inversiones
B13: 2 | C13: 103.01 | D13: Inversiones temporales | F13: 2 | G13: 103.01 | H13: Inversiones temporales
B14: 2 | C14: 103.02 | D14: Inversiones en fideicomisos | F14: 2 | G14: 103.02 | H14: Inversiones en fideicomisos
B15: 2 | C15: 103.03 | D15: Otras inversiones | F15: 2 | G15: 103.03 | H15: Otras inversiones
B16: 1 | C16: 104 | D16: Otros instrumentos financieros | F16: 1 | G16: 104 | H16: Otros instrumentos financieros
B17: 2 | C17: 104.01 | D17: Otros instrumentos financieros | F17: 2 | G17: 104.01 | H17: Otros instrumentos financieros
B18: 1 | C18: 105 | D18: Clientes | F18: 1 | G18: 105 | H18: Clientes
B19: 2 | C19: 105.01 | D19: Clientes nacionales | F19: 2 | G19: 105.01 | H19: Clientes nacionales
B20: 2 | C20: 105.02 | D20: Clientes extranjeros | F20: 2 | G20: 105.02 | H20: Clientes extranjeros
B21: 2 | C21: 105.03 | D21: Clientes nacionales parte relacionada | F21: 2 | G21: 105.03 | H21: Clientes nacionales parte relacionada
B22: 2 | C22: 105.04 | D22: Clientes extranjeros parte relacionada | F22: 2 | G22: 105.04 | H22: Clientes extranjeros parte relacionada
B23: 1 | C23: 106 | D23: Cuentas y documentos por cobrar a corto plazo | F23: 1 | G23: 106 | H23: Cuentas y documentos por cobrar a corto plazo
B24: 2 | C24: 106.01 | D24: Cuentas y documentos por cobrar a corto plazo nacional | F24: 2 | G24: 106.01 | H24: Cuentas y documentos por cobrar a corto plazo nacional
B25: 2 | C25: 106.02 | D25: Cuentas y documentos por cobrar a corto plazo extranjero | F25: 2 | G25: 106.02 | H25: Cuentas y documentos por cobrar a corto plazo extranjero
B26: 2 | C26: 106.03 | D26: Cuentas y documentos por cobrar a corto plazo nacional parte relacionada | F26: 2 | G26: 106.03 | H26: Cuentas y documentos por cobrar a corto plazo nacional parte relacionada
B27: 2 | C27: 106.04 | D27: Cuentas y documentos por cobrar a corto plazo extranjero parte relacionada | F27: 2 | G27: 106.04 | H27: Cuentas y documentos por cobrar a corto plazo extranjero parte relacionada
B28: 2 | C28: 106.05 | D28: Intereses por cobrar a corto plazo nacional | F28: 2 | G28: 106.05 | H28: Intereses por cobrar a corto plazo nacional
B29: 2 | C29: 106.06 | D29: Intereses por cobrar a corto plazo extranjero | F29: 2 | G29: 106.06 | H29: Intereses por cobrar a corto plazo extranjero
B30: 2 | C30: 106.07 | D30: Intereses por cobrar a corto plazo nacional parte relacionada | F30: 2 | G30: 106.07 | H30: Intereses por cobrar a corto plazo nacional parte relacionada
B31: 2 | C31: 106.08 | D31: Intereses por cobrar a corto plazo extranjero parte relacionada | F31: 2 | G31: 106.08 | H31: Intereses por cobrar a corto plazo extranjero parte relacionada
B32: 2 | C32: 106.09 | D32: Otras cuentas y documentos por cobrar a corto plazo | F32: 2 | G32: 106.09 | H32: Otras cuentas y documentos por cobrar a corto plazo
B33: 2 | C33: 106.1 | D33: Otras cuentas y documentos por cobrar a corto plazo parte relacionada | F33: 2 | G33: 106.1 | H33: Otras cuentas y documentos por cobrar a corto plazo parte relacionada
B34: 1 | C34: 107 | D34: Deudores diversos | F34: 1 | G34: 107 | H34: Deudores diversos
B35: 2 | C35: 107.01 | D35: Funcionarios y empleados | F35: 2 | G35: 107.01 | H35: Funcionarios y empleados
B36: 2 | C36: 107.02 | D36: Socios y accionistas | F36: 2 | G36: 107.02 | H36: Socios y accionistas
B37: 2 | C37: 107.03 | D37: Partes relacionadas nacionales | F37: 2 | G37: 107.03 | H37: Partes relacionadas nacionales
B38: 2 | C38: 107.04 | D38: Partes relacionadas extranjeros | F38: 2 | G38: 107.04 | H38: Partes relacionadas extranjeros
B39: 2 | C39: 107.05 | D39: Otros deudores diversos | F39: 2 | G39: 107.05 | H39: Otros deudores diversos
B40: 1 | C40: 108 | D40: Estimación de cuentas incobrables | F40: 1 | G40: 108 | H40: Estimación de cuentas incobrables
B41: 2 | C41: 108.01 | D41: Estimación de cuentas incobrables nacional | F41: 2 | G41: 108.01 | H41: Estimación de cuentas incobrables nacional
B42: 2 | C42: 108.02 | D42: Estimación de cuentas incobrables extranjero | F42: 2 | G42: 108.02 | H42: Estimación de cuentas incobrables extranjero
B43: 2 | C43: 108.03 | D43: Estimación de cuentas incobrables nacional parte relacionada | F43: 2 | G43: 108.03 | H43: Estimación de cuentas incobrables nacional parte relacionada
B44: 2 | C44: 108.04 | D44: Estimación de cuentas incobrables extranjero parte relacionada | F44: 2 | G44: 108.04 | H44: Estimación de cuentas incobrables extranjero parte relacionada
B45: 1 | C45: 109 | D45: Pagos anticipados | F45: 1 | G45: 109 | H45: Pagos anticipados
B46: 2 | C46: 109.01 | D46: Seguros y fianzas pagados por anticipado nacional | F46: 2 | G46: 109.01 | H46: Seguros y fianzas pagados por anticipado nacional
B47: 2 | C47: 109.02 | D47: Seguros y fianzas pagados por anticipado extranjero | F47: 2 | G47: 109.02 | H47: Seguros y fianzas pagados por anticipado extranjero
B48: 2 | C48: 109.03 | D48: Seguros y fianzas pagados por anticipado nacional parte relacionada | F48: 2 | G48: 109.03 | H48: Seguros y fianzas pagados por anticipado nacional parte relacionada
B49: 2 | C49: 109.04 | D49: Seguros y fianzas pagados por anticipado extranjero parte relacionada | F49: 2 | G49: 109.04 | H49: Seguros y fianzas pagados por anticipado extranjero parte relacionada
B50: 2 | C50: 109.05 | D50: Rentas pagados por anticipado nacional | F50: 2 | G50: 109.05 | H50: Rentas pagados por anticipado nacional
B51: 2 | C51: 109.06 | D51: Rentas pagados por anticipado extranjero | F51: 2 | G51: 109.06 | H51: Rentas pagados por anticipado extranjero
B52: 2 | C52: 109.07 | D52: Rentas pagados por anticipado nacional parte relacionada | F52: 2 | G52: 109.07 | H52: Rentas pagados por anticipado nacional parte relacionada
B53: 2 | C53: 109.08 | D53: Rentas pagados por anticipado extranjero parte relacionada | F53: 2 | G53: 109.08 | H53: Rentas pagados por anticipado extranjero parte relacionada
B54: 2 | C54: 109.09 | D54: Intereses pagados por anticipado nacional | F54: 2 | G54: 109.09 | H54: Intereses pagados por anticipado nacional
B55: 2 | C55: 109.1 | D55: Intereses pagados por anticipado extranjero | F55: 2 | G55: 109.1 | H55: Intereses pagados por anticipado extranjero
B56: 2 | C56: 109.11 | D56: Intereses pagados por anticipado nacional parte relacionada | F56: 2 | G56: 109.11 | H56: Intereses pagados por anticipado nacional parte relacionada
B57: 2 | C57: 109.12 | D57: Intereses pagados por anticipado extranjero parte relacionada | F57: 2 | G57: 109.12 | H57: Intereses pagados por anticipado extranjero parte relacionada
B58: 2 | C58: 109.13 | D58: Factoraje financiero pagados por anticipado nacional | F58: 2 | G58: 109.13 | H58: Factoraje financiero pagados por anticipado nacional
B59: 2 | C59: 109.14 | D59: Factoraje financiero pagados por anticipado extranjero | F59: 2 | G59: 109.14 | H59: Factoraje financiero pagados por anticipado extranjero
B60: 2 | C60: 109.15 | D60: Factoraje financiero pagados por anticipado nacional parte relacionada | F60: 2 | G60: 109.15 | H60: Factoraje financiero pagados por anticipado nacional parte relacionada
B61: 2 | C61: 109.16 | D61: Factoraje financiero pagados por anticipado extranjero parte relacionada | F61: 2 | G61: 109.16 | H61: Factoraje financiero pagados por anticipado extranjero parte relacionada
B62: 2 | C62: 109.17 | D62: Arrendamiento financiero pagados por anticipado nacional | F62: 2 | G62: 109.17 | H62: Arrendamiento financiero pagados por anticipado nacional
B63: 2 | C63: 109.18 | D63: Arrendamiento financiero pagados por anticipado extranjero | F63: 2 | G63: 109.18 | H63: Arrendamiento financiero pagados por anticipado extranjero
B64: 2 | C64: 109.19 | D64: Arrendamiento financiero pagados por anticipado nacional parte relacionada | F64: 2 | G64: 109.19 | H64: Arrendamiento financiero pagados por anticipado nacional parte relacionada
B65: 2 | C65: 109.2 | D65: Arrendamiento financiero pagados por anticipado extranjero parte relacionada | F65: 2 | G65: 109.2 | H65: Arrendamiento financiero pagados por anticipado extranjero parte relacionada
B66: 2 | C66: 109.21 | D66: Pérdida por deterioro de pagos anticipados | F66: 2 | G66: 109.21 | H66: Pérdida por deterioro de pagos anticipados
B67: 2 | C67: 109.22 | D67: Derechos fiduciarios | F67: 2 | G67: 109.22 | H67: Derechos fiduciarios
B68: 2 | C68: 109.23 | D68: Otros pagos anticipados | F68: 2 | G68: 109.23 | H68: Otros pagos anticipados
B69: 1 | C69: 110 | D69: Subsidio al empleo por aplicar | F69: 1 | G69: 110 | H69: Subsidio al empleo por aplicar
B70: 2 | C70: 110.01 | D70: Subsidio al empleo por aplicar | F70: 2 | G70: 110.01 | H70: Subsidio al empleo por aplicar | I70: =IF(D70=H70,"","DIFERENTE") -> 
B71: 1 | C71: 111 | D71: Crédito al diésel por acreditar | F71: 1 | G71: 111 | H71: Crédito al diésel por acreditar
B72: 2 | C72: 111.01 | D72: Crédito al diésel por acreditar | F72: 2 | G72: 111.01 | H72: Crédito al diésel por acreditar
B73: 1 | C73: 112 | D73: Otros estímulos | F73: 1 | G73: 112 | H73: Otros estímulos
B74: 2 | C74: 112.01 | D74: Otros estímulos | F74: 2 | G74: 112.01 | H74: Otros estímulos
B75: 1 | C75: 113 | D75: Impuestos a favor | F75: 1 | G75: 113 | H75: Impuestos a favor
B76: 2 | C76: 113.01 | D76: IVA a favor | F76: 2 | G76: 113.01 | H76: IVA a favor
B77: 2 | C77: 113.02 | D77: ISR a favor | F77: 2 | G77: 113.02 | H77: ISR a favor
B78: 2 | C78: 113.03 | D78: IETU a favor | F78: 2 | G78: 113.03 | H78: IETU a favor
B79: 2 | C79: 113.04 | D79: IDE a favor | F79: 2 | G79: 113.04 | H79: IDE a favor
B80: 2 | C80: 113.05 | D80: IA a favor | F80: 2 | G80: 113.05 | H80: IA a favor
B81: 2 | C81: 113.06 | D81: Subsidio al empleo | F81: 2 | G81: 113.06 | H81: Subsidio al empleo
B82: 2 | C82: 113.07 | D82: Pago de lo indebido | F82: 2 | G82: 113.07 | H82: Pago de lo indebido
B83: 2 | C83: 113.08 | D83: Otros impuestos a favor | F83: 2 | G83: 113.08 | H83: Otros impuestos a favor
B84: 1 | C84: 114 | D84: Pagos provisionales | F84: 1 | G84: 114 | H84: Pagos provisionales
B85: 2 | C85: 114.01 | D85: Pagos provisionales de ISR | F85: 2 | G85: 114.01 | H85: Pagos provisionales de ISR
B86: 1 | C86: 115 | D86: Inventario | F86: 1 | G86: 115 | H86: Inventario
B87: 2 | C87: 115.01 | D87: Inventario | F87: 2 | G87: 115.01 | H87: Inventario
B88: 2 | C88: 115.02 | D88: Materia prima y materiales | F88: 2 | G88: 115.02 | H88: Materia prima y materiales
B89: 2 | C89: 115.03 | D89: Producción en proceso | F89: 2 | G89: 115.03 | H89: Producción en proceso
B90: 2 | C90: 115.04 | D90: Productos terminados | F90: 2 | G90: 115.04 | H90: Productos terminados
B91: 2 | C91: 115.05 | D91: Mercancías en tránsito | F91: 2 | G91: 115.05 | H91: Mercancías en tránsito
B92: 2 | C92: 115.06 | D92: Mercancías en poder de terceros | F92: 2 | G92: 115.06 | H92: Mercancías en poder de terceros
B93: 2 | C93: 115.07 | D93: Otros | F93: 2 | G93: 115.07 | H93: Otros
B94: 1 | C94: 116 | D94: Estimación de inventarios obsoletos y de lento movimiento | F94: 1 | G94: 116 | H94: Estimación de inventarios obsoletos y de lento movimiento
B95: 2 | C95: 116.01 | D95: Estimación de inventarios obsoletos y de lento movimiento | F95: 2 | G95: 116.01 | H95: Estimación de inventarios obsoletos y de lento movimiento
B96: 1 | C96: 117 | D96: Obras en proceso de inmuebles | F96: 1 | G96: 117 | H96: Obras en proceso de inmuebles
B97: 2 | C97: 117.01 | D97: Obras en proceso de inmuebles | F97: 2 | G97: 117.01 | H97: Obras en proceso de inmuebles
B98: 1 | C98: 118 | D98: Impuestos acreditables pagados | F98: 1 | G98: 118 | H98: Impuestos acreditables pagados
B99: 2 | C99: 118.01 | D99: IVA acreditable pagado | F99: 2 | G99: 118.01 | H99: IVA acreditable pagado
B100: 2 | C100: 118.02 | D100: IVA acreditable de importación pagado | F100: 2 | G100: 118.02 | H100: IVA acreditable de importación pagado
B101: 2 | C101: 118.03 | D101: IEPS acreditable pagado | F101: 2 | G101: 118.03 | H101: IEPS acreditable pagado
B102: 2 | C102: 118.04 | D102: IEPS pagado en importación | F102: 2 | G102: 118.04 | H102: IEPS pagado en importación
B103: 1 | C103: 119 | D103: Impuestos acreditables por pagar | F103: 1 | G103: 119 | H103: Impuestos acreditables por pagar
B104: 2 | C104: 119.01 | D104: IVA pendiente de pago | F104: 2 | G104: 119.01 | H104: IVA pendiente de pago
B105: 2 | C105: 119.02 | D105: IVA de importación pendiente de pago | F105: 2 | G105: 119.02 | H105: IVA de importación pendiente de pago
B106: 2 | C106: 119.03 | D106: IEPS pendiente de pago | F106: 2 | G106: 119.03 | H106: IEPS pendiente de pago
B107: 2 | C107: 119.04 | D107: IEPS pendiente de pago en importación | F107: 2 | G107: 119.04 | H107: IEPS pendiente de pago en importación
B108: 1 | C108: 120 | D108: Anticipo a proveedores | F108: 1 | G108: 120 | H108: Anticipo a proveedores
B109: 2 | C109: 120.01 | D109: Anticipo a proveedores nacional | F109: 2 | G109: 120.01 | H109: Anticipo a proveedores nacional
B110: 2 | C110: 120.02 | D110: Anticipo a proveedores extranjero | F110: 2 | G110: 120.02 | H110: Anticipo a proveedores extranjero
B111: 2 | C111: 120.03 | D111: Anticipo a proveedores nacional parte relacionada | F111: 2 | G111: 120.03 | H111: Anticipo a proveedores nacional parte relacionada
B112: 2 | C112: 120.04 | D112: Anticipo a proveedores extranjero parte relacionada | F112: 2 | G112: 120.04 | H112: Anticipo a proveedores extranjero parte relacionada
B113: 1 | C113: 121 | D113: Otros activos a corto plazo | F113: 1 | G113: 121 | H113: Otros activos a corto plazo
B114: 2 | C114: 121.01 | D114: Otros activos a corto plazo | F114: 2 | G114: 121.01 | H114: Otros activos a corto plazo
C115: 100.02 | D115: Activo a largo plazo | G115: 100.02 | H115: Activo a largo plazo
B116: 1 | C116: 151 | D116: Terrenos | F116: 1 | G116: 151 | H116: Terrenos
B117: 2 | C117: 151.01 | D117: Terrenos | F117: 2 | G117: 151.01 | H117: Terrenos
B118: 1 | C118: 152 | D118: Edificios | F118: 1 | G118: 152 | H118: Edificios
B119: 2 | C119: 152.01 | D119: Edificios | F119: 2 | G119: 152.01 | H119: Edificios
B120: 1 | C120: 153 | D120: Maquinaria y equipo | F120: 1 | G120: 153 | H120: Maquinaria y equipo
B121: 2 | C121: 153.01 | D121: Maquinaria y equipo | F121: 2 | G121: 153.01 | H121: Maquinaria y equipo
B122: 1 | C122: 154 | D122: Automóviles, autobuses, camiones de carga, tractocamiones, montacargas y remolques | F122: 1 | G122: 154 | H122: Automóviles, autobuses, camiones de carga, tractocamiones, montacargas y remolques
B123: 2 | C123: 154.01 | D123: Automóviles, autobuses, camiones de carga, tractocamiones, montacargas y remolques | F123: 2 | G123: 154.01 | H123: Automóviles, autobuses, camiones de carga, tractocamiones, montacargas y remolques
B124: 1 | C124: 155 | D124: Mobiliario y equipo de oficina | F124: 1 | G124: 155 | H124: Mobiliario y equipo de oficina
B125: 2 | C125: 155.01 | D125: Mobiliario y equipo de oficina | F125: 2 | G125: 155.01 | H125: Mobiliario y equipo de oficina
B126: 1 | C126: 156 | D126: Equipo de cómputo | F126: 1 | G126: 156 | H126: Equipo de cómputo
B127: 2 | C127: 156.01 | D127: Equipo de cómputo | F127: 2 | G127: 156.01 | H127: Equipo de cómputo
B128: 1 | C128: 157 | D128: Equipo de comunicación | F128: 1 | G128: 157 | H128: Equipo de comunicación
B129: 2 | C129: 157.01 | D129: Equipo de comunicación | F129: 2 | G129: 157.01 | H129: Equipo de comunicación
B130: 1 | C130: 158 | D130: Activos biológicos, vegetales y semovientes | F130: 1 | G130: 158 | H130: Activos biológicos, vegetales y semovientes
B131: 2 | C131: 158.01 | D131: Activos biológicos, vegetales y semovientes | F131: 2 | G131: 158.01 | H131: Activos biológicos, vegetales y semovientes
B132: 1 | C132: 159 | D132: Obras en proceso de activos fijos | F132: 1 | G132: 159 | H132: Obras en proceso de activos fijos
B133: 2 | C133: 159.01 | D133: Obras en proceso de activos fijos | F133: 2 | G133: 159.01 | H133: Obras en proceso de activos fijos
B134: 1 | C134: 160 | D134: Otros activos fijos | F134: 1 | G134: 160 | H134: Otros activos fijos | I134: =IF(D134=H134,"","DIFERENTE") -> 
B135: 2 | C135: 160.01 | D135: Otros activos fijos | F135: 2 | G135: 160.01 | H135: Otros activos fijos
B136: 1 | C136: 161 | D136: Ferrocarriles | F136: 1 | G136: 161 | H136: Ferrocarriles
B137: 2 | C137: 161.01 | D137: Ferrocarriles | F137: 2 | G137: 161.01 | H137: Ferrocarriles
B138: 1 | C138: 162 | D138: Embarcaciones | F138: 1 | G138: 162 | H138: Embarcaciones
B139: 2 | C139: 162.01 | D139: Embarcaciones | F139: 2 | G139: 162.01 | H139: Embarcaciones
B140: 1 | C140: 163 | D140: Aviones | F140: 1 | G140: 163 | H140: Aviones
B141: 2 | C141: 163.01 | D141: Aviones | F141: 2 | G141: 163.01 | H141: Aviones
B142: 1 | C142: 164 | D142: Troqueles, moldes, matrices y herramental | F142: 1 | G142: 164 | H142: Troqueles, moldes, matrices y herramental
B143: 2 | C143: 164.01 | D143: Troqueles, moldes, matrices y herramental | F143: 2 | G143: 164.01 | H143: Troqueles, moldes, matrices y herramental
B144: 1 | C144: 165 | D144: Equipo de comunicaciones telefónicas | F144: 1 | G144: 165 | H144: Equipo de comunicaciones telefónicas
B145: 2 | C145: 165.01 | D145: Equipo de comunicaciones telefónicas | F145: 2 | G145: 165.01 | H145: Equipo de comunicaciones telefónicas
B146: 1 | C146: 166 | D146: Equipo de comunicación satelital | F146: 1 | G146: 166 | H146: Equipo de comunicación satelital
B147: 2 | C147: 166.01 | D147: Equipo de comunicación satelital | F147: 2 | G147: 166.01 | H147: Equipo de comunicación satelital
B148: 1 | C148: 167 | D148: Equipo de adaptaciones para personas con capacidades diferentes | F148: 1 | G148: 167 | H148: Equipo de adaptaciones para personas con capacidades diferentes
B149: 2 | C149: 167.01 | D149: Equipo de adaptaciones para personas con capacidades diferentes | F149: 2 | G149: 167.01 | H149: Equipo de adaptaciones para personas con capacidades diferentes
B150: 1 | C150: 168 | D150: Maquinaria y equipo de generación de energía de fuentes renovables o de sistemas de cogeneración de electricidad eficiente | F150: 1 | G150: 168 | H150: Maquinaria y equipo de generación de energía de fuentes renovables o de sistemas de cogeneración de electricidad eficiente
B151: 2 | C151: 168.01 | D151: Maquinaria y equipo de generación de energía de fuentes renovables o de sistemas de cogeneración de electricidad eficiente | F151: 2 | G151: 168.01 | H151: Maquinaria y equipo de generación de energía de fuentes renovables o de sistemas de cogeneración de electricidad eficiente
B152: 1 | C152: 169 | D152: Otra maquinaria y equipo | F152: 1 | G152: 169 | H152: Otra maquinaria y equipo
B153: 2 | C153: 169.01 | D153: Otra maquinaria y equipo | F153: 2 | G153: 169.01 | H153: Otra maquinaria y equipo
B154: 1 | C154: 170 | D154: Adaptaciones y mejoras | F154: 1 | G154: 170 | H154: Adaptaciones y mejoras
B155: 2 | C155: 170.01 | D155: Adaptaciones y mejoras | F155: 2 | G155: 170.01 | H155: Adaptaciones y mejoras
B156: 1 | C156: 171 | D156: Depreciación acumulada de activos fijos | F156: 1 | G156: 171 | H156: Depreciación acumulada de activos fijos
B157: 2 | C157: 171.01 | D157: Depreciación acumulada de edificios | F157: 2 | G157: 171.01 | H157: Depreciación acumulada de edificios
B158: 2 | C158: 171.02 | D158: Depreciación acumulada de maquinaria y equipo | F158: 2 | G158: 171.02 | H158: Depreciación acumulada de maquinaria y equipo
B159: 2 | C159: 171.03 | D159: Depreciación acumulada de automóviles, autobuses, camiones de carga, tractocamiones, montacargas y remolques | F159: 2 | G159: 171.03 | H159: Depreciación acumulada de automóviles, autobuses, camiones de carga, tractocamiones, montacargas y remolques
B160: 2 | C160: 171.04 | D160: Depreciación acumulada de mobiliario y equipo de oficina | F160: 2 | G160: 171.04 | H160: Depreciación acumulada de mobiliario y equipo de oficina
B161: 2 | C161: 171.05 | D161: Depreciación acumulada de equipo de cómputo | F161: 2 | G161: 171.05 | H161: Depreciación acumulada de equipo de cómputo
B162: 2 | C162: 171.06 | D162: Depreciación acumulada de equipo de comunicación | F162: 2 | G162: 171.06 | H162: Depreciación acumulada de equipo de comunicación
B163: 2 | C163: 171.07 | D163: Depreciación acumulada de activos biológicos, vegetales y semovientes | F163: 2 | G163: 171.07 | H163: Depreciación acumulada de activos biológicos, vegetales y semovientes
B164: 2 | C164: 171.08 | D164: Depreciación acumulada de otros activos fijos | F164: 2 | G164: 171.08 | H164: Depreciación acumulada de otros activos fijos
B165: 2 | C165: 171.09 | D165: Depreciación acumulada de ferrocarriles | F165: 2 | G165: 171.09 | H165: Depreciación acumulada de ferrocarriles
B166: 2 | C166: 171.1 | D166: Depreciación acumulada de embarcaciones | F166: 2 | G166: 171.1 | H166: Depreciación acumulada de embarcaciones
B167: 2 | C167: 171.11 | D167: Depreciación acumulada de aviones | F167: 2 | G167: 171.11 | H167: Depreciación acumulada de aviones
B168: 2 | C168: 171.12 | D168: Depreciación acumulada de troqueles, moldes, matrices y herramental | F168: 2 | G168: 171.12 | H168: Depreciación acumulada de troqueles, moldes, matrices y herramental
B169: 2 | C169: 171.13 | D169: Depreciación acumulada de equipo de comunicaciones telefónicas | F169: 2 | G169: 171.13 | H169: Depreciación acumulada de equipo de comunicaciones telefónicas
B170: 2 | C170: 171.14 | D170: Depreciación acumulada de equipo de comunicación satelital | F170: 2 | G170: 171.14 | H170: Depreciación acumulada de equipo de comunicación satelital
B171: 2 | C171: 171.15 | D171: Depreciación acumulada de equipo de adaptaciones para personas con capacidades diferentes | F171: 2 | G171: 171.15 | H171: Depreciación acumulada de equipo de adaptaciones para personas con capacidades diferentes
B172: 2 | C172: 171.16 | D172: Depreciación acumulada de maquinaria y equipo de generación de energía de fuentes renovables o de sistemas de cogeneración de electricidad eficiente | F172: 2 | G172: 171.16 | H172: Depreciación acumulada de maquinaria y equipo de generación de energía de fuentes renovables o de sistemas de cogeneración de electricidad eficiente
B173: 2 | C173: 171.17 | D173: Depreciación acumulada de adaptaciones y mejoras | F173: 2 | G173: 171.17 | H173: Depreciación acumulada de adaptaciones y mejoras
B174: 2 | C174: 171.18 | D174: Depreciación acumulada de otra maquinaria y equipo | F174: 2 | G174: 171.18 | H174: Depreciación acumulada de otra maquinaria y equipo
B175: 1 | C175: 172 | D175: Pérdida por deterioro acumulado de activos fijos | F175: 1 | G175: 172 | H175: Pérdida por deterioro acumulado de activos fijos
B176: 2 | C176: 172.01 | D176: Pérdida por deterioro acumulado de edificios | F176: 2 | G176: 172.01 | H176: Pérdida por deterioro acumulado de edificios
B177: 2 | C177: 172.02 | D177: Pérdida por deterioro acumulado de maquinaria y equipo | F177: 2 | G177: 172.02 | H177: Pérdida por deterioro acumulado de maquinaria y equipo
B178: 2 | C178: 172.03 | D178: Pérdida por deterioro acumulado de automóviles, autobuses, camiones de carga, tractocamiones, montacargas y remolques | F178: 2 | G178: 172.03 | H178: Pérdida por deterioro acumulado de automóviles, autobuses, camiones de carga, tractocamiones, montacargas y remolques
B179: 2 | C179: 172.04 | D179: Pérdida por deterioro acumulado de mobiliario y equipo de oficina | F179: 2 | G179: 172.04 | H179: Pérdida por deterioro acumulado de mobiliario y equipo de oficina
B180: 2 | C180: 172.05 | D180: Pérdida por deterioro acumulado de equipo de cómputo | F180: 2 | G180: 172.05 | H180: Pérdida por deterioro acumulado de equipo de cómputo
B181: 2 | C181: 172.06 | D181: Pérdida por deterioro acumulado de equipo de comunicación | F181: 2 | G181: 172.06 | H181: Pérdida por deterioro acumulado de equipo de comunicación
B182: 2 | C182: 172.07 | D182: Pérdida por deterioro acumulado de activos biológicos, vegetales y semovientes | F182: 2 | G182: 172.07 | H182: Pérdida por deterioro acumulado de activos biológicos, vegetales y semovientes
B183: 2 | C183: 172.08 | D183: Pérdida por deterioro acumulado de otros activos fijos | F183: 2 | G183: 172.08 | H183: Pérdida por deterioro acumulado de otros activos fijos
B184: 2 | C184: 172.09 | D184: Pérdida por deterioro acumulado de ferrocarriles | F184: 2 | G184: 172.09 | H184: Pérdida por deterioro acumulado de ferrocarriles
B185: 2 | C185: 172.1 | D185: Pérdida por deterioro acumulado de embarcaciones | F185: 2 | G185: 172.1 | H185: Pérdida por deterioro acumulado de embarcaciones
B186: 2 | C186: 172.11 | D186: Pérdida por deterioro acumulado de aviones | F186: 2 | G186: 172.11 | H186: Pérdida por deterioro acumulado de aviones
B187: 2 | C187: 172.12 | D187: Pérdida por deterioro acumulado de troqueles, moldes, matrices y herramental | F187: 2 | G187: 172.12 | H187: Pérdida por deterioro acumulado de troqueles, moldes, matrices y herramental
B188: 2 | C188: 172.13 | D188: Pérdida por deterioro acumulado de equipo de comunicaciones telefónicas | F188: 2 | G188: 172.13 | H188: Pérdida por deterioro acumulado de equipo de comunicaciones telefónicas
B189: 2 | C189: 172.14 | D189: Pérdida por deterioro acumulado de equipo de comunicación satelital | F189: 2 | G189: 172.14 | H189: Pérdida por deterioro acumulado de equipo de comunicación satelital
B190: 2 | C190: 172.15 | D190: Pérdida por deterioro acumulado de equipo de adaptaciones para personas con capacidades diferentes | F190: 2 | G190: 172.15 | H190: Pérdida por deterioro acumulado de equipo de adaptaciones para personas con capacidades diferentes
B191: 2 | C191: 172.16 | D191: Pérdida por deterioro acumulado de maquinaria y equipo de generación de energía de fuentes renovables o de sistemas de cogeneración de electricidad eficiente | F191: 2 | G191: 172.16 | H191: Pérdida por deterioro acumulado de maquinaria y equipo de generación de energía de fuentes renovables o de sistemas de cogeneración de electricidad eficiente
B192: 2 | C192: 172.17 | D192: Pérdida por deterioro acumulado de adaptaciones y mejoras | F192: 2 | G192: 172.17 | H192: Pérdida por deterioro acumulado de adaptaciones y mejoras
B193: 2 | C193: 172.18 | D193: Pérdida por deterioro acumulado de otra maquinaria y equipo | F193: 2 | G193: 172.18 | H193: Pérdida por deterioro acumulado de otra maquinaria y equipo
B194: 1 | C194: 173 | D194: Gastos diferidos | F194: 1 | G194: 173 | H194: Gastos diferidos
B195: 2 | C195: 173.01 | D195: Gastos diferidos | F195: 2 | G195: 173.01 | H195: Gastos diferidos
B196: 1 | C196: 174 | D196: Gastos pre operativos | F196: 1 | G196: 174 | H196: Gastos pre operativos
B197: 2 | C197: 174.01 | D197: Gastos pre operativos | F197: 2 | G197: 174.01 | H197: Gastos pre operativos
B198: 1 | C198: 175 | D198: Regalías, asistencia técnica y otros gastos diferidos | F198: 1 | G198: 175 | H198: Regalías, asistencia técnica y otros gastos diferidos | I198: =IF(D198=H198,"","DIFERENTE") -> 
B199: 2 | C199: 175.01 | D199: Regalías, asistencia técnica y otros gastos diferidos | F199: 2 | G199: 175.01 | H199: Regalías, asistencia técnica y otros gastos diferidos
B200: 1 | C200: 176 | D200: Activos intangibles | F200: 1 | G200: 176 | H200: Activos intangibles
B201: 2 | C201: 176.01 | D201: Activos intangibles | F201: 2 | G201: 176.01 | H201: Activos intangibles
B202: 1 | C202: 177 | D202: Gastos de organización | F202: 1 | G202: 177 | H202: Gastos de organización
... 882 more rows

Sheet ECATALOGO (hidden)
B3: Catalogo de cuentas
B4: No. de cuenta | C4: Cuenta | D4: Naturaleza | E4: Subcuenta | F4: Nivel | G4: Código SAT
B5: 100-000-000 | C5: CAJA | D5: D | F5: 1 | G5: 101
B6: 100-001-000 | C6: Fondo fijo | D6: D | E6: 100-000-000 | F6: 2 | G6: 101.01
B7: 100-002-000 | C7: Fondo variable | D7: D | E7: 100-000-000 | F7: 2 | G7: 101.01
B8: 105-000-000 | C8: BANCOS | D8: D | F8: 1 | G8: 102
B9: 105-001-000 | C9: Bancos nacionales | D9: D | E9: 105-000-000 | F9: 2 | G9: 102.01
B10: 105-001-001 | C10: Banco cta. X | D10: D | E10: 105-000-000 | F10: 3
B11: 110-000-000 | C11: INVERSIONES | D11: D | F11: 1 | G11: 103
B12: 110-001-000 | C12: Inversiones nacionales | D12: D | E12: 110-000-000 | F12: 2 | G12: 103.01
B13: 110-001-001 | C13: Banco cta. X | D13: D | E13: 110-000-000 | F13: 3
B14: 113-000-000 | C14: CLIENTES | D14: D | F14: 1 | G14: 105
B15: 113-001-000 | C15: Clientes nacionales | D15: D | E15: 113-000-000 | F15: 2 | G15: 105.01
B16: 113-001-001 | C16: Contado | D16: D | E16: 113-000-000 | F16: 3
B17: 113-001-002 | C17: Crédito | D17: D | E17: 113-000-000 | F17: 3
B18: 118-000-000 | C18: DEUDORES DIVERSOS | D18: D | F18: 1 | G18: 107
B19: 118-001-000 | C19: Prestamos a empleados | D19: D | E19: 118-000-000 | F19: 2 | G19: 107.01
B20: 118-002-000 | C20: Otros deudores | D20: D | E20: 118-000-000 | F20: 2 | G20: 107.05
B21: 125-000-000 | C21: IMPUESTOS A FAVOR | D21: D | F21: 1 | G21: 113
B22: 125-001-000 | C22: ISR | D22: D | E22: 125-000-000 | F22: 2 | G22: 113.02
B23: 125-002-000 | C23: IVA | D23: D | E23: 125-000-000 | F23: 2 | G23: 113.03
B24: 125-003-000 | C24: IEPS | D24: D | E24: 125-000-000 | F24: 2 | G24: 113.01
B25: 125-004-000 | C25: Pago de lo indebido | D25: D | E25: 125-000-000 | F25: 2 | G25: 113.08
B26: 130-000-000 | C26: INVENTARIOS | D26: D | F26: 1 | G26: 115
B27: 130-001-000 | C27: Materia prima | D27: D | E27: 130-000-000 | F27: 2 | G27: 115.02
B28: 130-002-000 | C28: Producción en proceso | D28: D | E28: 130-000-000 | F28: 2 | G28: 115.03
B29: 130-003-000 | C29: Producto terminado | D29: D | E29: 130-000-000 | F29: 2 | G29: 115.04
B30: 130-004-000 | C30: Mercancias | D30: D | E30: 130-000-000 | F30: 2 | G30: 115.07
B31: 135-000-000 | C31: IVA ACREDITABLE | D31: D | F31: 1 | G31: 118
B32: 135-001-000 | C32: IVA acreditable pendiente de pago | D32: D | E32: 135-000-000 | F32: 2 | G32: 119.01
B33: 135-002-000 | C33: IVA acreditable pagado | D33: D | E33: 135-000-000 | F33: 2 | G33: 118.01
B34: 135-003-000 | C34: IVA acreditable restituido | D34: A | E34: 135-000-000 | F34: 2 | G34: 121.01
B35: 137-000-000 | C35: IEPS ACREDITABLE | D35: D | F35: 1 | G35: 119
B36: 137-001-000 | C36: IEPS acreditable pendiente de pago | D36: D | E36: 137-000-000 | F36: 2 | G36: 119.03
B37: 137-002-000 | C37: IEPS acreditable pagado | D37: D | E37: 137-000-000 | F37: 2 | G37: 119.04
B38: 140-000-000 | C38: IMPUESTOS ANTICIPADOS Y OTROS | D38: D | F38: 1 | G38: 114
B39: 140-001-000 | C39: P.P. ISR | D39: D | E39: 140-000-000 | F39: 2 | G39: 114.01
B40: 140-002-000 | C40: Subsidio al empleo | D40: D | E40: 140-000-000 | F40: 2 | G40: 110.01
B41: 140-003-000 | C41: Retención ISR acreditable | D41: D | E41: 140-000-000 | F41: 2 | G41: 121.01
B42: 140-004-000 | C42: Retención IVA acreditable | D42: D | E42: 140-000-000 | F42: 2 | G42: 121.01
B43: 141-000-000 | C43: ANTICIPO A PROVEEDORES | D43: D | F43: 1 | G43: 120
B44: 141-001-000 | C44: Anticipo a proveedores nacionales | D44: D | E44: 120-000-000 | F44: 2 | G44: 120.01
B45: 141-001-001 | C45: Proveedor x | D45: D | E45: 120-000-000 | F45: 3
B46: 150-000-000 | C46: PAGOS ANTICIPADOS | D46: D | F46: 1 | G46: 109
B47: 150-001-000 | C47: Seguros pagados por anticipado | D47: D | E47: 150-000-000 | F47: 2 | G47: 109.01
B48: 160-000-000 | C48: MOBILIARIO Y EQUIPO DE OFICINA | D48: D | F48: 1 | G48: 155
B49: 160-001-000 | C49: Mobiliario y equipo de oficina | D49: D | E49: 160-000-000 | F49: 2 | G49: 155.01
B50: 162-000-000 | C50: EQUIPO DE COMPUTO | D50: D | F50: 1 | G50: 156
B51: 162-001-000 | C51: Equipo de computo | D51: D | E51: 162-000-000 | F51: 2 | G51: 156.01
B52: 164-000-000 | C52: EQUIPO DE TRANSPORTE | D52: D | F52: 1 | G52: 154
B53: 164-001-000 | C53: Equipo de transporte | D53: D | E53: 164-000-000 | F53: 2 | G53: 154.01
B54: 170-000-000 | C54: DEPRECIACION ACUMULADA | D54: A | F54: 1 | G54: 171
B55: 170-001-000 | C55: Depreciación acumulada mobiliario y eqo. De oficina | D55: A | E55: 170-000-000 | F55: 2 | G55: 171.04
B56: 170-002-000 | C56: Depreciación acumulada equipo de computo | D56: A | E56: 170-000-000 | F56: 2 | G56: 171.05
B57: 170-003-000 | C57: Depreciación acumulada equipo de transporte | D57: A | E57: 170-000-000 | F57: 2 | G57: 171.03
B58: 200-000-000 | C58: PROVEEDORES | D58: A | F58: 1 | G58: 201
B59: 200-001-000 | C59: Proveedores nacionales | D59: A | E59: 200-000-000 | F59: 2 | G59: 201.01
B60: 200-001-001 | C60: Proveedor X | D60: A | E60: 200-000-000 | F60: 3
B61: 205-000-000 | C61: ACREEDORES DIVERSOS | D61: A | F61: 1 | G61: 205
B62: 205-001-000 | C62: Acreedores nacionales | D62: A | E62: 205-000-000 | F62: 2 | G62: 205.02
B63: 205-001-001 | C63: Crédito infonavit | D63: A | E63: 205-000-000 | F63: 3
B64: 205-001-002 | C64: Sueldos x pagar | D64: A | E64: 205-000-000 | F64: 3
B65: 210-000-000 | C65: IVA TRASLADADO | D65: A | F65: 1 | G65: 209
B66: 210-001-000 | C66: IVA trasladado pendiente de cobro | D66: A | E66: 210-000-000 | F66: 2 | G66: 209.01
B67: 210-002-000 | C67: IVA trasladado cobrado | D67: A | E67: 210-000-000 | F67: 2 | G67: 208.01
B68: 210-003-000 | C68: IVA trasladado restituido | D68: D | E68: 210-000-000 | F68: 2 | G68: 218.01
B69: 212-000-000 | C69: IEPS TRASLADADO | D69: A | F69: 1 | G69: 209
B70: 212-001-000 | C70: IEPS trasladado pendiente de cobro | D70: A | E70: 212-000-000 | F70: 2 | G70: 209.02
B71: 212-002-000 | C71: IEPS trasladado cobrado | D71: A | E71: 212-000-000 | F71: 2 | G71: 208.02
B72: 215-000-000 | C72: CONTRIBUCIONES POR PAGAR | D72: A | F72: 1 | G72: 213
B73: 215-001-000 | C73: ISR | D73: A | E73: 215-000-000 | F73: 2 | G73: 213.03
B74: 215-002-000 | C74: IVA | D74: A | E74: 215-000-000 | F74: 2 | G74: 213.01
B75: 215-003-000 | C75: Retención salarios | D75: A | E75: 215-000-000 | F75: 2 | G75: 216.01
B76: 215-004-000 | C76: Impuesto sobre nominas | D76: A | E76: 215-000-000 | F76: 2 | G76: 213.04
B77: 215-005-000 | C77: IMSS | D77: A | E77: 215-000-000 | F77: 2 | G77: 218.01
B78: 215-006-000 | C78: CUOTAS OBRERO | D78: A | E78: 215-000-000 | F78: 2 | G78: 218.01
B79: 215-007-000 | C79: CUOTAS PATRONALES | D79: A | E79: 215-000-000 | F79: 2 | G79: 218.01
B80: 215-008-000 | C80: INFONAVIT | D80: A | E80: 215-000-000 | F80: 2 | G80: 218.01
B81: 300-000-000 | C81: CAPITAL SOCIAL | D81: A | F81: 1 | G81: 302
B82: 300-001-000 | C82: Fijo | D82: A | E82: 300-000-000 | F82: 2 | G82: 302.01
B83: 300-003-000 | C83: Utilidad de ejercicios anteriores | D83: A | E83: 300-000-000 | F83: 2 | G83: 304.01
B84: 300-004-000 | C84: Pérdida de ejercicios anteriores | D84: D | E84: 300-000-000 | F84: 2 | G84: 304.02
B85: 300-005-000 | C85: Utilidad del ejercicio | D85: A | E85: 300-000-000 | F85: 2 | G85: 305.01
B86: 300-006-000 | C86: Pérdida del ejercicio | D86: D | E86: 300-000-000 | F86: 2 | G86: 305.02
B87: 400-000-000 | C87: VENTAS/SERVICIOS | D87: A | F87: 1 | G87: 401
B88: 400-001-000 | C88: Ventas IVA al 16% | D88: A | E88: 400-000-000 | F88: 2 | G88: 401.01
B89: 400-002-000 | C89: Ventas IVA al 0% | D89: A | E89: 400-000-000 | F89: 2 | G89: 401.07
B90: 400-003-000 | C90: Ventas IVA exentas | D90: A | E90: 400-000-000 | F90: 2 | G90: 401.1
B91: 410-000-000 | C91: DEVOLUCIONES, DESC. Y BON. SOBRE VENTAS | D91: D | F91: 1 | G91: 402
B92: 410-001-000 | C92: Devolución y descuentos sobre venta IVA al 16% | D92: D | E92: 410-000-000 | F92: 2 | G92: 402.01
B93: 410-002-000 | C93: Devolución y descuentos sobre venta IVA al 0% | D93: D | E93: 410-000-000 | F93: 2 | G93: 402.03
B94: 410-003-000 | C94: Devolución y descuentos sobre venta IVA exento | D94: D | E94: 410-000-000 | F94: 2 | G94: 402.04
B95: 500-000-000 | C95: COSTO DE VENTAS | D95: D | F95: 1 | G95: 501
B96: 500-001-000 | C96: Costo de ventas | D96: D | E96: 500-000-000 | F96: 2 | G96: 501.01
B97: 510-000-000 | C97: COMPRAS | D97: D | F97: 1 | G97: 502
B98: 510-001-000 | C98: Compras nacionales | D98: D | E98: 510-000-000 | F98: 2 | G98: 502.01
B99: 510-001-001 | C99: Compras X | D99: D | E99: 510-000-000 | F99: 3
B100: 515-000-000 | C100: GASTOS DE COMPRAS | D100: D | F100: 1 | G100: 502
B101: 515-001-000 | C101: Gastos de compra | D101: D | E101: 515-000-000 | F101: 2 | G101: 504.25
B102: 515-001-001 | C102: Fletes | D102: D | E102: 515-000-000 | F102: 3
B103: 515-001-002 | C103: Empaques | D103: D | E103: 515-000-000 | F103: 3
B104: 515-001-003 | C104: Maniobras | D104: D | E104: 515-000-000 | F104: 3
B105: 515-001-004 | C105: Otros | D105: D | E105: 515-000-000 | F105: 3
B106: 520-000-000 | C106: MANO DE OBRA | D106: D | F106: 1 | G106: 605
B107: 520-001-000 | C107: Sueldos y salarios | D107: D | E107: 520-000-000 | F107: 2 | G107: 605.02
B108: 520-002-000 | C108: Tiempo extra | D108: D | E108: 520-000-000 | F108: 2 | G108: 605.04
B109: 520-003-000 | C109: Bonos | D109: D | E109: 520-000-000 | F109: 2 | G109: 605.31
B110: 520-004-000 | C110: Vacaciones | D110: D | E110: 520-000-000 | F110: 2 | G110: 605.07
B111: 520-005-000 | C111: Prima vacacional | D111: D | E111: 520-000-000 | F111: 2 | G111: 605.08
B112: 520-006-000 | C112: Aguinaldo | D112: D | E112: 520-000-000 | F112: 2 | G112: 605.13
B113: 525-000-000 | C113: OTRAS CUENTAS DE COSTOS | D113: D | F113: 1 | G113: 504
B114: 525-001-000 | C114: Otras cuentas de costos | D114: D | E114: 525-000-000 | F114: 2 | G114: 504.25
B115: 525-001-001 | C115: Gastos indirectos | D115: D | E115: 525-000-000 | F115: 3
B116: 525-001-002 | C116: Depreciaciones | D116: D | E116: 525-000-000 | F116: 3
B117: 525-001-003 | C117: Otros | D117: D | E117: 525-000-000 | F117: 3
B118: 600-000-000 | C118: GASTOS DE VENTA | D118: D | F118: 1 | G118: 602
B119: 600-001-000 | C119: Fletes | D119: D | E119: 600-000-000 | F119: 2 | G119: 602.72
B120: 600-002-000 | C120: Comisiones | D120: D | E120: 600-000-000 | F120: 2 | G120: 602.74
B121: 600-003-000 | C121: Luz | D121: D | E121: 600-000-000 | F121: 2 | G121: 602.52
B122: 600-004-000 | C122: Telefono | D122: D | E122: 600-000-000 | F122: 2 | G122: 602.5
B123: 600-005-000 | C123: Otros | D123: D | E123: 600-000-000 | F123: 2 | G123: 602.84
B124: 650-000-000 | C124: GASTOS DE ADMINISTRACION | D124: D | F124: 1 | G124: 603
B125: 650-001-000 | C125: Sueldos y salarios | D125: D | E125: 650-000-000 | F125: 2 | G125: 603.01
B126: 650-002-000 | C126: Compensaciones | D126: D | E126: 650-000-000 | F126: 2 | G126: 603.02
B127: 650-003-000 | C127: Tiempo extra | D127: D | E127: 650-000-000 | F127: 2 | G127: 603.03
B128: 650-004-000 | C128: Asimilados a salarios | D128: D | E128: 650-000-000 | F128: 2 | G128: 603.31
B129: 650-005-000 | C129: Comisiones bancarias | D129: D | E129: 650-000-000 | F129: 2 | G129: 603.82
B130: 650-006-000 | C130: Gratificación | D130: D | E130: 650-000-000 | F130: 2 | G130: 603.12
B131: 650-007-000 | C131: Generales | D131: D | E131: 650-000-000 | F131: 2 | G131: 603.82
B132: 700-000-000 | C132: GASTOS FINANCIEROS | D132: D | F132: 1 | G132: 701
B133: 700-001-000 | C133: Pérdida cambiaria | D133: D | E133: 700-000-000 | F133: 2 | G133: 701.01
B134: 700-004-000 | C134: Pérdida cambiaria nacional parte relacionada | D134: D | E134: 700-000-000 | F134: 2 | G134: 701.02
B135: 700-005-000 | C135: Pérdida cambiaria extranjero parte relacionada | D135: D | E135: 700-000-000 | F135: 2 | G135: 701.03
B136: 700-006-000 | C136: Intereses a cargo bancario nacional | D136: D | E136: 700-000-000 | F136: 2 | G136: 701.04
B137: 700-007-000 | C137: Intereses a cargo bancario extranjero | D137: D | E137: 700-000-000 | F137: 2 | G137: 701.05
B138: 700-008-000 | C138: Intereses a cargo de personas físicas nacional | D138: D | E138: 700-000-000 | F138: 2 | G138: 701.06
B139: 700-009-000 | C139: Intereses a cargo de personas físicas extranjero | D139: D | E139: 700-000-000 | F139: 2 | G139: 701.07
B140: 700-010-000 | C140: Intereses a cargo de personas morales nacional | D140: D | E140: 700-000-000 | F140: 2 | G140: 701.08
B141: 700-011-000 | C141: Intereses a cargo de personas morales extranjero | D141: D | E141: 700-000-000 | F141: 2 | G141: 701.09
B142: 700-012-000 | C142: Comisiones bancarias | D142: A | E142: 700-000-000 | F142: 2 | G142: 701.1
B143: 700-013-000 | C143: Otros gastos financieros | D143: A | E143: 700-000-000 | F143: 2 | G143: 701.11
B144: 720-000-000 | C144: PRODUCTOS FINANCIEROS | D144: A | F144: 1 | G144: 702
B145: 720-001-000 | C145: Utilidad cambiaria | D145: A | E145: 710-000-000 | F145: 2 | G145: 702.01
B146: 720-002-000 | C146: Utilidad cambiaria nacional parte relacionada | D146: A | E146: 710-000-000 | F146: 2 | G146: 702.02
B147: 720-003-000 | C147: Utilidad cambiaria extranjero parte relacionada | D147: A | E147: 710-000-000 | F147: 2 | G147: 702.03
B148: 720-004-000 | C148: Intereses a favor bancarios nacional | D148: A | E148: 710-000-000 | F148: 2 | G148: 702.04
B149: 720-005-000 | C149: Intereses a favor bancarios extranjero | D149: A | E149: 710-000-000 | F149: 2 | G149: 702.05
B150: 720-006-000 | C150: Intereses a favor de personas físicas nacional | D150: A | E150: 710-000-000 | F150: 2 | G150: 702.06
B151: 720-007-000 | C151: Intereses a favor de personas físicas extranjero | D151: A | E151: 710-000-000 | F151: 2 | G151: 702.07
B152: 720-008-000 | C152: Intereses a favor de personas morales nacional | D152: A | E152: 710-000-000 | F152: 2 | G152: 702.08
B153: 720-009-000 | C153: Intereses a favor de personas morales extranjero | D153: A | E153: 710-000-000 | F153: 2 | G153: 702.09
B154: 720-010-000 | C154: Otros productos financieros | D154: A | E154: 710-000-000 | F154: 2 | G154: 702.1
B155: 730-000-000 | C155: OTROS GASTOS | D155: D | F155: 1 | G155: 703
B156: 730-001-000 | C156: Diferencia en redondeo | D156: D | E156: 730-000-000 | F156: 2 | G156: 703.21
B157: 740-000-000 | C157: OTROS INGRESOS | D157: A | F157: 1 | G157: 704
B158: 740-001-000 | C158: Diferencia en redondeo | D158: A | E158: 740-000-000 | F158: 2 | G158: 704.24
B159: 740-002-000 | C159: Otros ingresos | D159: A | E159: 740-000-000 | F159: 2 | G159: 704.24
B160: 800-000-000 | C160: PARTICIPACION DE LOS TRABAJADORES EN LAS UTILIDADES | D160: D | F160: 1 | G160: 607
B161: 800-001-000 | C161: PTU | D161: D | E161: 800-000-000 | F161: 2 | G161: 607.01
B162: 850-000-000 | C162: IMPUESTOS A LAS UTILIDADES | D162: D | F162: 1 | G162: 611
B163: 850-001-000 | C163: ISR | D163: D | E163: 850-000-000 | F163: 2 | G163: 611.01
B164: 900-000-000 | C164: COBRADOS INGRESOS PARA ISR | D164: D | F164: 1 | G164: 899
B165: 900-001-000 | C165: Cobrados ingresos para ISR e IVA 16% | D165: D | E165: 900-000-000 | F165: 2 | G165: 899.02
B166: 900-002-000 | C166: Cobrados ingresos para ISR e IVA 0% | D166: D | E166: 900-000-000 | F166: 2 | G166: 899.02
B167: 901-000-000 | C167: INGRESOS COBRADOS PARA ISR | D167: A | F167: 1 | G167: 899
B168: 901-001-000 | C168: Ingresos cobrados para ISR e IVA 16% | D168: A | E168: 901-000-000 | F168: 2 | G168: 899.01
B169: 901-002-000 | C169: Ingresos cobrados para ISR e IVA 0% | D169: A | E169: 901-000-000 | F169: 2 | G169: 899.01
B170: 902-000-000 | C170: DEDUCCIONES FISCALES | D170: D | F170: 1 | G170: 810
B171: 902-001-000 | C171: Deducción Inversiones | D171: D | E171: 902-000-000 | F171: 2 | G171: 810.01
B172: 903-000-000 | C172: FISCALES DEDUCCIONES | D172: A | F172: 1 | G172: 810
B173: 903-001-000 | C173: Inversiones deducción | D173: A | E173: 903-000-000 | F173: 2 | G173: 810.02

Sheet VCATALOGO (hidden)
B3: Capture a partir del segundo nivel como termina las cuentas de mayor
B4: Ejemplo1: Cuenta 112-000-000 capture -000-000
B5: Ejemplo2: Si la cuenta de mayor es 1110 y las subcuentes 1110-002, capture 4
C7: Terminación de las cuentas de mayor (ejemplo 1)
C8: O en su caso número de caracteres de la cuenta de mayor (ejemplo2)
B10: No. Cta. | C10: Descripción | D10: Código agrupador

Sheet POLIZA (hidden)
B5: Pólizas
B7: Tipo de póliza | D7: No. De póliza | F7: Fecha
B9: Concepto
B11: No. de cuenta. | C11: Cuenta | D11: Concepto | F11: Debe | G11: Haber
B13: Ver campos cuando se emite un CFDI de tipo ingreso y/o egreso
B15: Anexo 24 | E15: Anexo técnico
B16: ● UUID del CFDI: Clave del UUID (folio fiscal) del Comprobante Fiscal Digital por Internet que soporte la transacción. | E16: Atributo requerido para expresar la clave UUID del CFDI soporte de la operación. (36 caracteres)
B17: ● RFC: Es el Registro Federal de Contribuyentes relacionado con la transacción, es decir del tercero vinculado. | E17: Atributo requerido para expresar el RFC relacionado con el movimiento o transacción. El RFC al que se hace referencia, es el distinto del contribuyente que envía los datos, es decir, el RFC del tercero vinculado.
B18: ● Monto Total: Es el monto total del Comprobante Fiscal Digital por Internet que soporte la transacción (incluyendo el IVA en su caso). | E18: Atributo requerido para expresar el monto total del CFDI que soporte la transacción. (Incluye IVA en su caso)
B19: ● Moneda: Es la moneda (tipo de moneda) diferente a la divisa nacional, de acuerdo al catálogo de monedas. | E19: Atributo opcional para expresar el tipo de moneda utilizado en la transacción, de acuerdo al catálogo publicado en la página de internet del SAT. Este dato sólo se utiliza en el caso de que el tipo de moneda, sea diferente a la moneda nacional (peso). Se convierte en requerido cuando se cuente con la información.
B20: ● Tipo de Cambio: Es el tipo de cambio utilizado en la transacción. | E20: Atributo opcional para expresar el tipo de cambio utilizado de acuerdo al tipo de moneda. Este dato sólo se utiliza en el caso de que el tipo de moneda, sea diferente a la moneda nacional (peso). Se convierte en requerido cuando se cuente con la información
B22: Contribuyentes obligados a emitir CFDI
B24: Tipo de contribuyente | D24: Obligación | G24: Fundamento
B25: Persona moral régimen general de Ley | D25: Expedir los comprobantes fiscales por las actividades que realicen. | G25: Artículo 76 fracción II LISR
B26: Persona moral RESICO | D26: Expedir los comprobantes fiscales por las actividades que realicen. | G26: Artículo 213 y 76 fracción II LISR
B27: Persona moral con fines no lucrativos | D27: Expedir y recabar los comprobantes fiscales que acrediten las enajenaciones y erogaciones que efectúen, los servicios que presten o el otorgamiento del uso o goce temporal de bienes. | G27: Artículo 86 fracción II LISR
B28: Persona física actividad empresarial y profesional | D28: Expedir comprobantes fiscales que acrediten los ingresos que perciban. | G28: Artículo 110 fracción II LISR
B29: Persona física arrentamiento de inmuebles | D29: Expedir comprobantes fiscales por las contraprestaciones recibidas. | G29: Artículo 118 fracción III LISR
B30: Contribuyentes obligados al pago del IVA | D30: Expedir y entregar comprobantes fiscales. | G30: Artículo 32 fracción III LIVA
B32: Ver requisito de deducciones
B34: Tipo de contribuyente | D34: Requisito | G34: Fundamento
B35: Persona moral régimen general de Ley | D35: Estar amparadas con un comprobante fiscal y que los pagos cuyo monto exceda de $2,000.00 se efectúen mediante transferencia electrónica de fondos desde cuentas abiertas a nombre del contribuyente en instituciones que componen el sistema financiero y las entidades que para tal efecto autorice el Banco de México; cheque nominativo de la cuenta del contribuyente, tarjeta de crédito, de débito, de servicios, o los denominados monederos electrónicos autorizados por el Servicio de Administración Tributaria. | G35: Artículo 27 fracción III LISR
B36: Persona moral RESICO | G36: Artículo 210 último párrafo LISR
B37: Persona física actividad empresarial y profesional | G37: Artículo 105 último párrafo LISR
B38: Persona física arrentamiento de inmuebles | G38: Artículo 147 fracción IV LISR
B39: Comprobantes fiscales emitidos por residentes en el extranjero sin establecimiento permanente en México 2.7.1.14. Para los efectos de los artículos 29 y 29-A, antepenúltimo párrafo del CFF, los contribuyentes que pretendan deducir o acreditar fiscalmente con base en comprobantes emitidos por residentes en el extranjero sin establecimiento permanente en México, podrán utilizar dichos comprobantes siempre que contengan los siguientes requisitos: I. Nombre, denominación o razón social; domicilio y, en su caso, número de identificación fiscal, o su equivalente, de quien lo expide. II. Lugar y fecha de expedición. III. Clave en el RFC de la persona a favor de quien se expida y, nombre, denominación o razón social de dicha persona. IV. Los requisitos establecidos en el artículo 29-A, fracción V, primer párrafo del CFF. V. Valor unitario consignado en número e importe total consignado en número o letra. VI. Tratándose de la enajenación de bienes o del otorgamiento de su uso o goce temporal, el monto de los impuestos retenidos, así como de los impuestos trasladados, desglosando cada una de las tasas del impuesto correspondiente; o bien, se adjunte al comprobante emitido por el residente en el extranjero sin establecimiento permanente en México, el CFDI que emita el contribuyente por las retenciones de las contribuciones que efectuó a dicho residente en el extranjero. Lo señalado en la presente regla, tratándose de la enajenación de bienes o del otorgamiento de su uso o goce temporal, solo será aplicable cuando dichos actos o actividades sean efectuados en territorio nacional de conformidad con la Ley del IVA. CFF 28, 29, 29-A, LIVA 1o.
B41: Anexo 24 | E41: Anexo técnico
B42: ● Número de Factura Extranjera: Número o clave del comprobante generado en el extranjero que soporte la operación. | E42: Atributo requerido para expresar la clave numérico o alfanumérico del comprobante de origen extranjero que soporte la operación
B43: ● TaxID: Es el identificador del contribuyente extranjero. | E43: Atributo opcional que sirve para expresar el Identificador del contribuyente extranjero. Se convierte en requerido cuando se cuente con la información
B44: ● Monto Total: Es el monto total de la Factura Extranjera que soporte la transacción (incluyendo el IVA en su caso). | E44: Atributo requerido para expresar el monto total del comprobante de origen extranjero que soporte la operación.
B45: ● Moneda: Es la moneda (tipo de moneda) diferente a la divisa nacional, de acuerdo al catálogo de monedas. | E45: Atributo opcional para expresar el tipo de moneda utilizado en la transacción, de acuerdo al catálogo publicado en la página de internet del SAT. Este dato sólo se utiliza en el caso de que el tipo de moneda, sea diferente a la moneda nacional (peso). Se convierte en requerido cuando se cuente con la información.
B46: ● Tipo de Cambio: Es el tipo de cambio utilizado en la transacción. | E46: Atributo opcional para expresar el tipo de cambio utilizado de acuerdo al tipo de moneda. Este dato sólo se utiliza en el caso de que el tipo de moneda, sea diferente a la moneda nacional (peso). Se convierte en requerido cuando se cuente con la información.
B48: Ver campos cuando se cobra o paga con cheque
B50: Anexo 24 | E50: Anexo técnico
B51: ● Número de cheque: Número del cheque que ampara la transacción. | E51: Atributo requerido para expresar el número del cheque emitido
B52: ● Banco Emisor Nacional: Es el banco que emitió el cheque y tiene residencia en el país, de acuerdo al catálogo de bancos. | E52: Atributo requerido, para expresar el Banco nacional emisor del cheque, de acuerdo al catálogo publicado en la página de internet del SAT. Se consideran banco nacional aquellos bancos de residencia nacional, indistintamente, si el tipo de moneda es nacional o extranjero.
B53: ● Banco Emisor Extranjero: Es el banco que emitió el cheque y no tiene residencia en el país. | E53: Atributo opcional para expresar el nombre completo del Banco extranjero emisor del cheque. Se convierte en requerido cuando se cuente con la información.
B54: ● Cuenta Origen: Es el número de cuenta bancaria del origen de los recursos del cheque. | E54: Atributo requerido para expresar el número de cuenta bancaria del origen de los recursos.
B55: ● Fecha: Fecha del cheque. | E55: Atributo requerido, es la fecha del cheque.
B56: ● Beneficiario: Es el nombre o contribuyente beneficiario del cheque emitido. | E56: Atributo requerido, nombre del beneficiario del cheque.
B57: ● RFC: Es el Registro Federal de Contribuyentes relacionado con la transacción, es decir del tercero vinculado. | E57: Atributo requerido para expresar el RFC relacionado con el movimiento. El RFC al que se hace referencia, es el distinto del contribuyente que envía los datos, es decir, el RFC del tercero vinculado.
B58: ● Monto: Es el monto del cheque emitido. | E58: Atributo requerido, es el monto del cheque emitido.
B59: ● Moneda: Es la moneda (tipo de moneda) diferente a la divisa nacional, de acuerdo al catálogo de monedas. | E59: Atributo opcional para expresar el tipo de moneda utilizado en la transacción, de acuerdo al catálogo publicado en la página de internet del SAT. Este dato sólo se utiliza en el caso de que el tipo de moneda, sea diferente a la moneda nacional (peso). Se convierte en requerido cuando se cuente con la información.
B60: ● Tipo de Cambio: Es el tipo de cambio utilizado en la transacción. | E60: Atributo opcional para expresar el tipo de cambio utilizado de acuerdo al tipo de moneda. Este dato sólo se utiliza en el caso de que el tipo de moneda, sea diferente a la moneda nacional (peso). Se convierte en requerido cuando se cuente con la información.
B62: Ver campos cuando se cobra o paga con transferencia
B64: | | E64: Anexo técnico
B65: ● Cuenta Origen: Es el número de cuenta bancaria del origen de los recursos de la transferencia. | E65: Atributo opcional para expresar el número de cuenta de origen desde la cual se transfieren los recursos. Se convierte en requerido cuando se cuente con la información.
B66: ● Banco Origen Nacional: Es el banco que realizó la transferencia y tiene residencia en el país, de acuerdo al catálogo de bancos. | E66: Atributo requerido, para expresar el Banco de la cuenta origen de la transferencia, de acuerdo al catálogo publicado en la página de internet del SAT. Se considera banco nacional aquellos bancos de residencia nacional, indistintamente, si el tipo de moneda es nacional o extranjero.
B67: ● Banco Origen Extranjero: Es el banco que realizó la transferencia y no tiene residencia en el país. | E67: Atributo opcional para expresar el nombre completo del banco origen extranjero. Se convierte en requerido cuando se cuente con la información
B68: ● Cuenta Destino: Es el número de cuenta bancaria a la que se transfieren los recursos. | E68: Atributo requerido para expresar el número de cuenta destino, la cual se transfieren los recursos
B69: ● Banco Destino Nacional: Es el banco de la cuenta a la cual se transfieren los recursos y tiene residencia en el país, de acuerdo al catálogo de bancos. | E69: Atributo requerido, para expresar el Banco de la cuenta destino de la transferencia, de acuerdo al catálogo publicado en la página de internet del SAT. Se considera banco nacional aquellos bancos de residencia nacional, indistintamente, si el tipo de moneda es nacional o extranjero.
B70: ● Banco Destino Extranjero: Es el banco de la cuenta a la cual se transfieren los recursos y no tiene con residencia en el país. | E70: Atributo opcional para expresar el nombre completo del banco destino extranjero. Se convierte en requerido cuando se cuente con la información.
B71: ● Fecha: Es la fecha de la transferencia de los recursos. | E71: Atributo requerido, es la fecha de la transferencia.
B72: ● Beneficiario: Nombre o contribuyente beneficiario de la transferencia de los recursos. | E72: Atributo requerido, nombre del beneficiario de la transferencia.
B73: ● RFC: Es el Registro Federal de Contribuyentes relacionado con la transacción, es decir del tercero vinculado. | E73: Atributo requerido para expresar el RFC relacionado con el movimiento. El RFC al que se hace referencia, es el distinto del contribuyente que envía los datos, es decir, el RFC del tercero vinculado.
B74: ● Monto: Es el monto de la transferencia. | E74: Atributo requerido, es el monto transferido.
B75: ● Moneda: Es la moneda (tipo de moneda) diferente a la divisa nacional, de acuerdo al catálogo de monedas. | E75: Atributo opcional para expresar el tipo de moneda utilizado en la transacción, de acuerdo al catálogo publicado en la página de internet del SAT. Este dato sólo se utiliza en el caso de que el tipo de moneda, sea diferente a la moneda nacional (peso). Se convierte en requerido cuando se cuente con la información.
B76: ● Tipo de Cambio: Es el tipo de cambio utilizado en la transacción. | E76: Atributo opcional para expresar el tipo de cambio utilizado de acuerdo al tipo de moneda. Este dato sólo se utiliza en el caso de que el tipo de moneda, sea diferente a la moneda nacional (peso). Se convierte en requerido cuando se cuente con la información.
B78: Ver campos cuando de cobra o paga con otro método de pago
B80: Anexo 24 | E80: Anexo técnico
B81: ● Método de Pago de Póliza: Es el método de pago de la transacción, de acuerdo al catálogo de métodos de pago. | E81: Atributo requerido para expresar el método de pago de la operación, de acuerdo al catálogo publicado en la página de internet del SAT.
B82: ● Fecha: Es la fecha de la transacción utilizando los métodos de pago. | E82: Atributo requerido, es la fecha de la transacción de otros métodos de pago
B83: ● Beneficiario: Nombre o contribuyente beneficiario al cual se le realiza estos métodos de pagos. | E83: Atributo requerido, nombre de la persona o contribuyente a la cual se realiza éstos métodos de pago.
B84: ● RFC: Es el Registro Federal de Contribuyentes relacionado con la transacción, es decir del tercero vinculado. | E84: Atributo requerido para expresar el RFC relacionado con la transacción. El RFC al que se hace referencia, es el distinto del contribuyente que envía los datos, es decir, el RFC del tercero vinculado.
B85: ● Monto: Es el monto del método de pago. | E85: Atributo requerido para expresar el monto del método de pago soporte de la transacción
B86: ● Moneda: Es la moneda (tipo de moneda) diferente a la divisa nacional, de acuerdo al catálogo de monedas. | E86: Atributo opcional para expresar el tipo de moneda utilizado en la transacción, de acuerdo al catálogo publicado en la página de internet del SAT. Este dato sólo se utiliza en el caso de que el tipo de moneda, sea diferente a la moneda nacional (peso).
B87: ● Tipo de Cambio: Es el tipo de cambio utilizado en la transacción. | E87: Atributo opcional para expresar el tipo de cambio utilizado de acuerdo al tipo de moneda. Este dato sólo se utiliza en el caso de que el tipo de moneda, sea diferente a la moneda nacional (peso). Se convierte en requerido cuando se cuente con la información.

Sheet CATALOGOB (hidden)
B3: G. CATÁLOGO DE BANCOS. Catálogo de bancos se utiliza cuando los contribuyentes realicen operaciones con diferentes bancos nacionales, para el registro contable de cada póliza debe apoyarse en el catálogo de bancos. G. Catálogo de bancos.
B5: G.- Catálogo de bancos
B6: Clave | C6: Nombre corto | E6: Nombre o razón social
B7: 2 | C7: BANAMEX | E7: Banco Nacional de México, S.A., Institución de Banca Múltiple, Grupo Financiero Banamex
B8: 6 | C8: BANCOMEXT | E8: Banco Nacional de Comercio Exterior, Sociedad Nacional de Crédito, Institución de Banca de Desarrollo
B9: 9 | C9: BANOBRAS | E9: Banco Nacional de Obras y Servicios Públicos, Sociedad Nacional de Crédito, Institución de Banca de Desarrollo
B10: 12 | C10: BBVA BANCOMER | E10: BBVA Bancomer, S.A., Institución de Banca Múltiple, Grupo Financiero BBVA Bancomer
B11: 14 | C11: SANTANDER | E11: Banco Santander (México), S.A., Institución de Banca Múltiple, Grupo Financiero Santander
B12: 19 | C12: BANJERCITO | E12: Banco Nacional del Ejército, Fuerza Aérea y Armada, Sociedad Nacional de Crédito, Institución de Banca de Desarrollo
B13: 21 | C13: HSBC | E13: HSBC México, S.A., institución De Banca Múltiple, Grupo Financiero HSBC
B14: 30 | C14: BAJIO | E14: Banco del Bajío, S.A., Institución de Banca Múltiple
B15: 32 | C15: IXE | E15: IXE Banco, S.A., Institución de Banca Múltiple, IXE Grupo Financiero
B16: 36 | C16: INBURSA | E16: Banco Inbursa, S.A., Institución de Banca Múltiple, Grupo Financiero Inbursa
B17: 37 | C17: INTERACCIONES | E17: Banco Interacciones, S.A., Institución de Banca Múltiple
B18: 42 | C18: MIFEL | E18: Banca Mifel, S.A., Institución de Banca Múltiple, Grupo Financiero Mifel
B19: 44 | C19: SCOTIABANK | E19: Scotiabank Inverlat, S.A.
B20: 58 | C20: BANREGIO | E20: Banco Regional de Monterrey, S.A., Institución de Banca Múltiple, Banregio Grupo Financiero
B21: 59 | C21: INVEX | E21: Banco Invex, S.A., Institución de Banca Múltiple, Invex Grupo Financiero
B22: 60 | C22: BANSI | E22: Bansi, S.A., Institución de Banca Múltiple
B23: 62 | C23: AFIRME | E23: Banca Afirme, S.A., Institución de Banca Múltiple
B24: 72 | C24: BANORTE | E24: Banco Mercantil del Norte, S.A., Institución de Banca Múltiple, Grupo Financiero Banorte
B25: 102 | C25: THE ROYAL BANK | E25: The Royal Bank of Scotland México, S.A., Institución de Banca Múltiple
B26: 103 | C26: AMERICAN EXPRESS | E26: American Express Bank (México), S.A., Institución de Banca Múltiple
B27: 106 | C27: BAMSA | E27: Bank of America México, S.A., Institución de Banca Múltiple, Grupo Financiero Bank of America
B28: 108 | C28: TOKYO | E28: Bank of Tokyo-Mitsubishi UFJ (México), S.A.
B29: 110 | C29: JP MORGAN | E29: Banco J.P. Morgan, S.A., Institución de Banca Múltiple, J.P. Morgan Grupo Financiero
B30: 112 | C30: BMONEX | E30: Banco Monex, S.A., Institución de Banca Múltiple
B31: 113 | C31: VE POR MAS | E31: Banco Ve Por Mas, S.A. Institución de Banca Múltiple
B32: 116 | C32: ING | E32: ING Bank (México), S.A., Institución de Banca Múltiple, ING Grupo Financiero
B33: 124 | C33: DEUTSCHE | E33: Deutsche Bank México, S.A., Institución de Banca Múltiple
B34: 126 | C34: CREDIT SUISSE | E34: Banco Credit Suisse (México), S.A. Institución de Banca Múltiple, Grupo Financiero Credit Suisse (México)
B35: 127 | C35: AZTECA | E35: Banco Azteca, S.A. Institución de Banca Múltiple.
B36: 128 | C36: AUTOFIN | E36: Banco Autofin México, S.A. Institución de Banca Múltiple
B37: 129 | C37: BARCLAYS | E37: Barclays Bank México, S.A., Institución de Banca Múltiple, Grupo Financiero Barclays México
B38: 130 | C38: COMPARTAMOS | E38: Banco Compartamos, S.A., Institución de Banca Múltiple
B39: 131 | C39: BANCO FAMSA | E39: Banco Ahorro Famsa, S.A., Institución de Banca Múltiple
B40: 132 | C40: BMULTIVA | E40: Banco Multiva, S.A., Institución de Banca Múltiple, Multivalores Grupo Financiero
B41: 133 | C41: ACTINVER | E41: Banco Actinver, S.A. Institución de Banca Múltiple, Grupo Financiero Actinver
B42: 134 | C42: WAL-MART | E42: Banco Wal-Mart de México Adelante, S.A., Institución de Banca Múltiple
B43: 135 | C43: NAFIN | E43: Nacional Financiera, Sociedad Nacional de Crédito, Institución de Banca de Desarrollo
B44: 136 | C44: INTERBANCO | E44: Inter Banco, S.A. Institución de Banca Múltiple
B45: 137 | C45: BANCOPPEL | E45: BanCoppel, S.A., Institución de Banca Múltiple
B46: 138 | C46: ABC CAPITAL | E46: ABC Capital, S.A., Institución de Banca Múltiple
B47: 139 | C47: UBS BANK | E47: UBS Bank México, S.A., Institución de Banca Múltiple, UBS Grupo Financiero
B48: 140 | C48: CONSUBANCO | E48: Consubanco, S.A. Institución de Banca Múltiple
B49: 141 | C49: VOLKSWAGEN | E49: Volkswagen Bank, S.A., Institución de Banca Múltiple
B50: 143 | C50: CIBANCO | E50: CIBanco, S.A.
B51: 145 | C51: BBASE | E51: Banco Base, S.A., Institución de Banca Múltiple
B52: 156 | C52: SABADELL | E52: Banco Sabadell, S.A., Institución de Banca Múltiple.
B53: 166 | C53: BANSEFI | E53: Banco del Ahorro Nacional y Servicios Financieros, Sociedad Nacional de Crédito, Institución de Banca de Desarrollo
B54: 168 | C54: HIPOTECARIA FEDERAL | E54: Sociedad Hipotecaria Federal, Sociedad Nacional de Crédito, Institución de Banca de Desarrollo
B55: 600 | C55: MONEXCB | E55: Monex Casa de Bolsa, S.A. de C.V. Monex Grupo Financiero
B56: 601 | C56: GBM | E56: GBM Grupo Bursátil Mexicano, S.A. de C.V. Casa de Bolsa
B57: 602 | C57: MASARI | E57: Masari Casa de Bolsa, S.A.
B58: 605 | C58: VALUE | E58: Value, S.A. de C.V. Casa de Bolsa
B59: 606 | C59: ESTRUCTURADORES | E59: Estructuradores del Mercado de Valores Casa de Bolsa, S.A. de C.V.
B60: 607 | C60: TIBER | E60: Casa de Cambio Tiber, S.A. de C.V.
B61: 608 | C61: VECTOR | E61: Vector Casa de Bolsa, S.A. de C.V.
B62: 610 | C62: B&B | E62: B y B, Casa de Cambio, S.A. de C.V.
B63: 614 | C63: ACCIVAL | E63: Acciones y Valores Banamex, S.A. de C.V., Casa de Bolsa
B64: 615 | C64: MERRILL LYNCH | E64: Merrill Lynch México, S.A. de C.V. Casa de Bolsa
B65: 616 | C65: FINAMEX | E65: Casa de Bolsa Finamex, S.A. de C.V.
B66: 617 | C66: VALMEX | E66: Valores Mexicanos Casa de Bolsa, S.A. de C.V.
B67: 618 | C67: UNICA | E67: Unica Casa de Cambio, S.A. de C.V.
B68: 619 | C68: MAPFRE | E68: MAPFRE Tepeyac, S.A.
B69: 620 | C69: PROFUTURO | E69: Profuturo G.N.P., S.A. de C.V., Afore
B70: 621 | C70: CB ACTINVER | E70: Actinver Casa de Bolsa, S.A. de C.V.
B71: 622 | C71: OACTIN | E71: OPERADORA ACTINVER, S.A. DE C.V.
B72: 623 | C72: SKANDIA | E72: Skandia Vida, S.A. de C.V.
B73: 626 | C73: CBDEUTSCHE | E73: Deutsche Securities, S.A. de C.V. CASA DE BOLSA
B74: 627 | C74: ZURICH | E74: Zurich Compañía de Seguros, S.A.
B75: 628 | C75: ZURICHVI | E75: Zurich Vida, Compañía de Seguros, S.A.
B76: 629 | D76: SU CASITA | E76: Hipotecaria Su Casita, S.A. de C.V. SOFOM ENR
B77: 630 | D77: CB INTERCAM | E77: Intercam Casa de Bolsa, S.A. de C.V.
B78: 631 | D78: CI BOLSA | E78: CI Casa de Bolsa, S.A. de C.V.
B79: 632 | D79: BULLTICK CB | E79: Bulltick Casa de Bolsa, S.A., de C.V.
B80: 633 | D80: STERLING | E80: Sterling Casa de Cambio, S.A. de C.V.
B81: 634 | D81: FINCOMUN | E81: Fincomún, Servicios Financieros Comunitarios, S.A. de C.V.
B82: 636 | D82: HDI SEGUROS | E82: HDI Seguros, S.A. de C.V.
B83: 637 | D83: ORDER | E83: Order Express Casa de Cambio, S.A. de C.V
B84: 638 | D84: AKALA | E84: Akala, S.A. de C.V., Sociedad Financiera Popular
B85: 640 | D85: CB JPMORGAN | E85: J.P. Morgan Casa de Bolsa, S.A. de C.V. J.P. Morgan Grupo Financiero
B86: 642 | D86: REFORMA | E86: Operadora de Recursos Reforma, S.A. de C.V., S.F.P.
B87: 646 | D87: STP | E87: Sistema de Transferencias y Pagos STP, S.A. de C.V.SOFOM ENR
B88: 647 | D88: TELECOMM | E88: Telecomunicaciones de México
B89: 648 | D89: EVERCORE | E89: Evercore Casa de Bolsa, S.A. de C.V.
B90: 649 | D90: SKANDIA | E90: Skandia Operadora de Fondos, S.A. de C.V.
B91: 651 | D91: SEGMTY | E91: Seguros Monterrey New York Life, S.A de C.V
B92: 652 | D92: ASEA | E92: Solución Asea, S.A. de C.V., Sociedad Financiera Popular
B93: 653 | D93: KUSPIT | E93: Kuspit Casa de Bolsa, S.A. de C.V.
B94: 655 | D94: SOFIEXPRESS | E94: J.P. SOFIEXPRESS, S.A. de C.V., S.F.P.
B95: 656 | D95: UNAGRA | E95: UNAGRA, S.A. de C.V., S.F.P.
B96: 659 | D96: OPCIONES | E96: OPCIONES EMPRESARIALES DEL NORESTE, S.A. DE C.V., S.F.P.
D97: EMPRESARIALES NOROESTE
B98: 901 | D98: CLS | E98: Cls Bank International
B99: 902 | D99: INDEVAL | E99: SD. Indeval, S.A. de C.V.
B100: 670 | D100: LIBERTAD | E100: Libertad Servicios Financieros, S.A. De C.V.
B101: 999 | D101: N/A

Sheet CATALOGOM (hidden)
B4: F. Catálogo de monedas.
B5: F.- Catálogo de códigos de monedas
B6: Código | C6: Moneda
B7: AED | C7: Dirham de EAU
B8: AFN | C8: Afghani
B9: ALL | C9: Lek
B10: AMD | C10: Dram armenio
B11: ANG | C11: Florín antillano neerlandés
B12: AOA | C12: Kwanza
B13: ARS | C13: Peso argentino
B14: AUD | C14: Dólar australiano
B15: AWG | C15: Aruba florin
B16: AZN | C16: Azerbaijanian Manat
B17: BAM | C17: Marco convertible
B18: BBD | C18: Dólar de Barbados
B19: BDT | C19: Taka
B20: BGN | C20: Lev búlgaro
B21: BHD | C21: Dinar de Bahrein
B22: BIF | C22: Franco burundés
B23: BMD | C23: Dólar de Bermudas
B24: BND | C24: Dólar de Brunéi
B25: BOB | C25: Boliviano
B26: BOV | C26: Mvdol
B27: BRL | C27: Real brasileño
B28: BSD | C28: Dólar de las Bahamas
B29: BTN | C29: Ngultrum
B30: BWP | C30: Pula
B31: BYR | C31: Rublo bielorruso
B32: BZD | C32: Dólar de Belice
B33: CAD | C33: Dólar canadiense
B34: CDF | C34: Franco congoleño
B35: CHE | C35: WIR Euro
B36: CHF | C36: Franco suizo
B37: CHW | C37: WIR Franco
B38: CLF | C38: Unidad de fomento
B39: CLP | C39: Peso chileno
B40: CNY | C40: Yuan Renminbi
B41: COP | C41: Peso colombiano
B42: COU | C42: Unidad de valor real
B43: CRC | C43: Colón costarricense
B44: CUC | C44: Peso convertible
B45: CUP | C45: Peso cubano
B46: CVE | C46: Cabo Verde Escudo
B47: CZK | C47: Corona checa
B48: DJF | C48: Franco de Djibouti
B49: DKK | C49: Corona danesa
B50: DOP | C50: Peso dominicano
B51: DZD | C51: Dinar argelino
B52: EGP | C52: Libra egipcia
B53: ERN | C53: Nakfa
B54: ETB | C54: Birr etíope
B55: EUR | C55: Euro
B56: FJD | C56: Dólar de Fiji
B57: FKP | C57: Libra malvinense
B58: GBP | C58: Libra Esterlina
B59: GEL | C59: Lari
B60: GHS | C60: Cedi de Ghana
B61: GIP | C61: Libra de Gibraltar
B62: GMD | C62: Dalasi
B63: GNF | C63: Franco guineano
B64: GTQ | C64: Quetzal
B65: GYD | C65: Dólar guyanés
B66: HKD | C66: Dólar de Hong Kong
B67: HNL | C67: Lempira
B68: HRK | C68: Kuna
B69: HTG | C69: Gourde
B70: HUF | C70: Florin
B71: IDR | C71: Rupia
B72: ILS | C72: Nuevo shekel israelí
B73: INR | C73: Rupia india
B74: IQD | C74: Dinar iraquí
B75: IRR | C75: Rial iraní
B76: ISK | C76: Corona islandesa
B77: JMD | C77: Dólar jamaiquino
B78: JOD | C78: Dinar jordano
B79: JPY | C79: Yen
B80: KES | C80: Chelín keniano
B81: KGS | C81: Som
B82: KHR | C82: Riel
B83: KMF | C83: Franco comoro
B84: KPW | C84: Won norcoreano
B85: KRW | C85: Won surcoreano
B86: KWD | C86: Dinar kuwaití
B87: KYD | C87: Dólar de las Islas Caimán
B88: KZT | C88: Tenge
B89: LAK | C89: Kip
B90: LBP | C90: Libra libanesa
B91: LKR | C91: Rupia de Sri Lanka
B92: LRD | C92: Dólar liberiano
B93: LSL | C93: Loti
B94: LYD | C94: Dinar libio
B95: MAD | C95: Dirham marroquí
B96: MDL | C96: Leu moldavo
B97: MGA | C97: Ariary malgache
B98: MKD | C98: Denar
B99: MMK | C99: Kyat
B100: MNT | C100: Tugrik
B101: MOP | C101: Pataca
B102: MRO | C102: Ouguiya
B103: MUR | C103: Rupia de Mauricio
B104: MVR | C104: Rupia
B105: MWK | C105: Kwacha
B106: MXN | C106: Peso mexicano
B107: MXV | C107: México Unidad de Inversión (UDI)
B108: MYR | C108: Ringgit malayo
B109: MZN | C109: Mozambique Metical
B110: NAD | C110: Dólar de Namibia
B111: NGN | C111: Naira
B112: NIO | C112: Córdoba Oro
B113: NOK | C113: Corona noruega
B114: NPR | C114: Rupia nepalí
B115: NZD | C115: Dólar de Nueva Zelanda
B116: OMR | C116: Rial omaní
B117: PAB | C117: Balboa
B118: PEN | C118: Nuevo Sol
B119: PGK | C119: Kina
B120: PHP | C120: Peso filipino
B121: PKR | C121: Rupia de Pakistán
B122: PLN | C122: Zloty
B123: PYG | C123: Guaraní
B124: QAR | C124: Qatar Rial
B125: RON | C125: Leu rumano
B126: RSD | C126: Dinar Servio
B127: RUB | C127: Rublo ruso
B128: RWF | C128: Franco ruandés
B129: SAR | C129: Riyal saudí
B130: SBD | C130: Dólar de las Islas Salomón
B131: SCR | C131: Rupia de Seychelles
B132: SDG | C132: Libra sudanesa
B133: SEK | C133: Corona sueca
B134: SGD | C134: Dólar de Singapur
B135: SHP | C135: Libra de Santa Helena
B136: SLL | C136: Leone
B137: SOS | C137: Chelín somalí
B138: SRD | C138: Dólar de Suriname
B139: SSP | C139: Libra Sudanesa Sur
B140: STD | C140: Dobra
B141: SVC | C141: Colón el Salvador
B142: SYP | C142: Libra siria
B143: SZL | C143: Lilangeni
B144: THB | C144: Baht
B145: TJS | C145: Somoni
B146: TMT | C146: Turkmenistán Nuevo Manat
B147: TND | C147: Dinar tunecino
B148: TOP | C148: Pa'anga
B149: TRY | C149: Lira turca
B150: TTD | C150: Dólar de Trinidad y Tobago
B151: TWD | C151: Nuevo Dólar de Taiwán
B152: TZS | C152: Shilling tanzano
B153: UAH | C153: Hryvnia
B154: UGX | C154: Shilling de Uganda
B155: USD | C155: Dólar estadounidense
B156: USN | C156: Dólar estadounidense (día siguiente)
B157: UYI | C157: Peso Uruguay en Unidades Indexadas (URUIURUI)
B158: UYU | C158: Peso uruguayo
B159: UZS | C159: Uzbekistan Sum
B160: VEF | C160: Bolívar
B161: VND | C161: Dong
B162: VUV | C162: Vatu
B163: WST | C163: Tala
B164: XAF | C164: Franco CFA BEAC
B165: XAG | C165: Plata
B166: XAU | C166: Oro
B167: XBA | C167: Unidad de Mercados de Bonos Unidad Europea Composite (EURCO)
B168: XBB | C168: Unidad Monetaria de Bonos de Mercados Unidad Europea (UEM-6)
B169: XBC | C169: Mercados de Bonos Unidad Europea unidad de cuenta a 9 (UCE-9)
B170: XBD | C170: Mercados de Bonos Unidad Europea unidad de cuenta a 17 (UCE-17)
B171: XCD | C171: Dólar del Caribe Oriental
B172: XDR | C172: DEG (Derechos Especiales de Giro)
B173: XOF | C173: Franco CFA BCEAO
B174: XPD | C174: Paladio
B175: XPF | C175: Franco CFP
B176: XPT | C176: Platino
B177: XSU | C177: Sucre
B178: XTS | C178: Códigos reservados específicamente para propósitos de prueba
B179: XUA | C179: Unidad ADB de Cuenta
B180: XXX | C180: Los códigos asignados para las transacciones en que intervenga ninguna moneda
B181: YER | C181: Rial yemení
B182: ZAR | C182: Rand
B183: ZMW | C183: Kwacha zambiano
B184: ZWL | C184: Zimbabwe Dólar

Sheet METODOP (hidden)
B5: H. Catálogo de métodos de pago.
B6: H.- Catálogo de método de pago.
B7: Clave | C7: Concepto
B8: 1 | C8: Efectivo
B9: 2 | C9: Cheque
B10: 3 | C10: Transferencia
B11: 4 | C11: Tarjetas de crédito
B12: 5 | C12: Monederos electrónicos
B13: 6 | C13: Dinero electrónico
B14: 7 | C14: Tarjetas digitales
B15: 8 | C15: Vales de despensa
B16: 9 | C16: Bienes
B17: 10 | C17: Servicio
B18: 11 | C18: Por cuenta de tercero
B19: 12 | C19: Dación en pago
B20: 13 | C20: Pago por subrogación
B21: 14 | C21: Pago por consignación
B22: 15 | C22: Condonación
B23: 16 | C23: Cancelación
B24: 17 | C24: Compensación
B25: 98 | C25: "NA"
B26: 99 | C26: Otros

Sheet FPOLIZA (hidden)
B2: Posicione el cursor en las celdas en color gris para escuchar el narrador de Windows y saber que se captura en cada una de las cuentas.
B4: Formato de una póliza a la que se le relaciona el folio fiscal del CFDI ya sea de la compra o venta.
B6: Pólizas
B8: Tipo de póliza | D8: No. De póliza | F8: Fecha
B10: Concepto
B12: Es la clave de las cuentas o subcuentas que se registran en la transacción. No. De cta. | C12: Es el nombre de las cuentas o subcuentas que se registran en la transacción. Cuenta | D12: Descripción de la transacción. Concepto | F12: Es el monto del cargo a la cuenta o subcuenta que se afecta en la transacción. Debe | G12: Es el monto del abono a la cuenta o subcuenta que se afecta en la transacción. Haber | I12: Clave del UUID (folio fiscal) del Comprobante Fiscal Digital por Internet que soporte la transacción. UUID_CFDI | J12: Es el RFC del receptor si se trata de una venta, o el RFC del emisor si se trata de una compra RFC | K12: Es el monto total del Comprobante Fiscal Digital por Internet que soporte la transacción (incluyendo el IVA en su caso). Monto total | L12: Solo en el caso de divisa distinta a la nacional Moneda | M12: Solo cuando la moneda es distinta a la divisa nacional Tipo de cambio
B17: Formato de una póliza a la que se le relaciona un comprobante del extranjero
B19: Polizas
B21: Tipo de póliza | D21: No. De póliza | F21: Fecha
B23: Concepto
B25: Es la clave de las cuentas o subcuentas que se registran en la transacción. No. De cta. | C25: Es el nombre de las cuentas o subcuentas que se registran en la transacción. Cuenta | D25: Descripción de la transacción. Concepto | F25: Es el monto del cargo a la cuenta o subcuenta que se afecta en la transacción. Debe | G25: Es el monto del abono a la cuenta o subcuenta que se afecta en la transacción. Haber | I25: Se trata del número de factura Número de factura | J25: Es el número de identificador fiscal del extranjero TaxID | K25: Es el monto en la moneda en que se encuentre el comprobante Monto total | L25: De acuerdo a la clave del catálogo de moneda del anexo 24 Moneda | M25: Es el tipo de cambio al que se registro la operación Tipo de cambio
B29: Formato de una póliza a la que se le relaciona los datos del cheque con el que fue pagada la operación
B32: Pólizas
B34: Tipo de póliza | D34: No. De póliza | F34: Fecha
B36: Concepto
B38: Es la clave de las cuentas o subcuentas que se registran en la transacción. No. De cta. | C38: Es el nombre de las cuentas o subcuentas que se registran en la transacción. Cuenta | D38: Descripción de la transacción. Concepto | F38: Es el monto del cargo a la cuenta o subcuenta que se afecta en la transacción. Debe | G38: Es el monto del abono a la cuenta o subcuenta que se afecta en la transacción. Haber | I38: Es el número de cheque completo Número de cheque | J38: Es la clave del catálogo de bancos del anexo 24, de donde se emite el cheque Banco emisor nacional | K38: Se captura el nombre del banco del extranjero, solo si banco emisor nacional esta vacío Banco emisor extranjero | L38: Es el número de cuenta de donde saldrán los recursos Cuenta origen | M38: Es la fecha de emisión de cheque Fecha | N38: Es el beneficiario del cheque, es decir a nombre de quien se emitió Beneficiario | O38: Es el RFC del tercero vinculado con la operación RFC | P38: Es el importe por el cual se emitió el cheque Monto | Q38: De acuerdo a la clave del catálogo de moneda del anexo 24 Moneda | R38: Es el tipo de cambio al que se registro la operación Tipo de cambio
B42: Formato de una póliza a la que se le relaciona los datos de la transferencia con el que fue pagada la operación
B45: Pólizas
B47: Tipo de póliza | D47: No. De póliza | F47: Fecha
B49: Concepto
B51: Es la clave de las cuentas o subcuentas que se registran en la transacción. No. De cta. | C51: Es el nombre de las cuentas o subcuentas que se registran en la transacción. Cuenta | D51: Descripción de la transacción. Concepto | F51: Es el monto del cargo a la cuenta o subcuenta que se afecta en la transacción. Debe | G51: Es el monto del abono a la cuenta o subcuenta que se afecta en la transacción. Haber | I51: Es el número de cuenta de donde saldrán los recursos Cuenta origen | J51: Es la clave del catálogo de bancos del anexo 24, de donde se transfieren los recursos Banco origen nacional | K51: Se captura el nombre del banco del extranjero, solo si banco origen nacional esta vacío Banco origen extranjero | L51: Es el número de cuenta a donde se transfirió el dinero Cuenta destino | M51: Es la clave del catálogo de bancos del anexo 24, a donde se transfieren los recursos Banco destino nacional | N51: Se captura el nombre del banco del extranjero, solo si banco emisor nacional esta vacío Banco origen extranjero | O51: Es la fecha del día en que se transfieren los recursos Fecha | P51: Es el beneficiario de la cuenta a donde se transfieren los recursos Beneficiario | Q51: Es el RFC del tercero vinculado con la operación RFC | R51: Es el importe de la transferencia efectuada Monto | S51: De acuerdo a la clave del catálogo de moneda del anexo 24 Moneda | T51: Es el tipo de cambio al que se registro la operación Tipo de cambio
B55: Formato de una póliza a la que se le relaciona los datos de otro método de pago cuando el pago es diferente a cheque y/o transferencia
B57: Pólizas
B59: Tipo de póliza | D59: No. De póliza | F59: Fecha
B61: Concepto
B63: Es la clave de las cuentas o subcuentas que se registran en la transacción. No. De cta. | C63: Es el nombre de las cuentas o subcuentas que se registran en la transacción. Cuenta | D63: Descripción de la transacción. Concepto | F63: Es el monto del cargo a la cuenta o subcuenta que se afecta en la transacción. Debe | G63: Es el monto del abono a la cuenta o subcuenta que se afecta en la transacción. Haber | I63: Es la clave del catálogo de métodos de pago del anexo 24 Método de pago | J63: Es la fecha en que se realizo el pago Fecha | K63: Es el beneficiario del pago efectuado Beneficiario | L63: Es el RFC del tercero vinculado con la operación RFC | M63: Es el importe que se pago en la operación Monto | N63: De acuerdo a la clave del catálogo de moneda del anexo 24 Moneda | O63: Es el tipo de cambio al que se registro la operación Tipo de cambio

Sheet EJEMPLO (hidden)

Sheet EJEMPLOS (hidden)
B4: Registro venta de activo fijo
B6: Tipo póliza | C6: Dr | D6: No. | E6: 4 | F6: Fecha | G6: =TODAY() -> 2025-03-18
B8: Concepto | C8: Venta de automovil marca x con no. Motor x, fact. No. X
B10: No. Cta. | C10: Cuenta | D10: Concepto | F10: Debe | G10: Haber | I10: UUID_CFDI | J10: RFC | K10: Monto | L10: Moneda | M10: T.C.
C11: Depreciaciòn acumulada | F11: 100000
C12: Deudores div. | F12: 266800
C13: Equipo de transporte | G13: 300000
C14: IVA trasladado pend. De cobro | G14: =230000*0.16 -> 36800
C15: Utilidad en vta. De activo fijo | G15: 30000 | I15: Folio fiscal | J15: Del recepto | K15: =230000*1.16 -> 266800
C16: Utilidad fiscal en venta de activo fijo | F16: 23800
C17: Venta de activo fijo utilidad fiscal | G17: 23800
B19: Cobro de la venta del activo fijo
B21: Tipo póliza | C21: Ig | D21: No. | E21: 8 | F21: Fecha | G21: =TODAY() -> 2025-03-18
B23: Concepto | C23: Cobro fact. X venta activo fijo, contado, transferencia electronica de fondos, pago en una sola exhibicion, "NA"
B25: No. Cta. | C25: Cuenta | D25: Concepto | F25: Debe | G25: Haber
C26: Bancos | F26: =F12 -> 266800
C27: Deudores div. | G27: =F26 -> 266800
C28: IVA trasladado pendiente de cobro | F28: =G14 -> 36800
C29: IVA trasladado cobrado | G29: =F28 -> 36800
B32: ="Registro nomina " & IF(DAY(G34)<=15,1,2)& " quincena de " & TEXT(G34,"MMMM") -> Registro nomina 2 quincena de marzo
B34: Tipo póliza | C34: Dr | D34: No. | E34: 18 | F34: Fecha | G34: =TODAY() -> 2025-03-18
B36: Concepto | C36: =B32& " de "&YEAR(G34) -> Registro nomina 2 quincena de marzo de 2025
B38: No. Cta. | C38: Cuenta | D38: Concepto | F38: Debe | G38: Haber | I38: UUID_CFDI | J38: RFC | K38: Monto | L38: Moneda | M38: T.C.
C39: Gastos generales
C40: Sueldos y salarios | F40: 100000 | I40: Folio fiscal | J40: Todos | K40: =G45 -> 125800
C41: Tiempo extra | F41: 12000
C42: Bono | F42: 15000
C43: Despensa | F43: 21000
C44: Subsidio al empleo | F44: 1000
C45: Acreedores div. | G45: =SUM(F40:F44)-G47-G48 -> 125800
C46: Contribuciones por pagar
C47: Retenciòn ISR salarios | G47: 13400
C48: Retencion IMSS | G48: 9800
B51: Pago de la nomina
B53: Tipo póliza | C53: Eg | D53: No. | E53: 18 | F53: Fecha | G53: 2017-06-15
B55: Concepto | C55: ="Tr. 12234 pago " & MID(B32,10,LEN(B32)-9) -> Tr. 12234 pago nomina 2 quincena de marzo
B57: No. Cta. | C57: Cuenta | D57: Concepto | F57: Debe | G57: Haber | I57: Cuenta origen | J57: Banco origen nacional | K57: Banco origen extranjero | L57: Cuenta destino | M57: Banco destino nacional | N57: Banco destino extranjero | O57: Fecha | P57: Beneficiario | Q57: RFC | R57: Monto | S57: Moneda | T57: T.C.
C58: Acreedores div. | F58: =G45 -> 125800
C59: Bancos | G59: =F58 -> 125800 | I59: 98765 | J59: 012 | L59: 98765 | M59: 012 | O59: 42901 | P59: Banco | Q59: XAXX010101000 | R59: =G59 -> 125800
B62: Registro de una venta
B64: Tipo póliza | C64: Dr | D64: No. | E64: 1 | F64: Fecha | G64: =TODAY() -> 2025-03-18
B66: Concepto | C66: ="Ventas del dia"&" "& TEXT(TODAY(),"dd/mm/aaaa") -> Ventas del dia 18/03/2025
B68: No. Cta. | C68: Cuenta | D68: Concepto | F68: Debe | G68: Haber | I68: UUID_CFDI | J68: RFC | K68: Monto_total | L68: Moneda | M68: Tipo de cambio
C69: Clientes | F69: 500000
C70: Ventas | G70: =F69/1.16 -> 431034.4828 | I70: Folio fiscal | J70: Del receptor | K70: =F69 -> 500000
C71: IVA trasladado pendiente de cobro | G71: =G70*0.16 -> 68965.51724
B74: Registro de la cobranza
B76: Tipo póliza | C76: Ig | D76: No. | E76: 8 | F76: Fecha | G76: =TODAY() -> 2025-03-18
B78: Concepto | C78: ="Cobranza del dia " & TEXT(TODAY(),"dd/mm/aaaa") & " NA" -> Cobranza del dia 18/03/2025 NA
B80: No. Cta. | C80: Cuenta | D80: Concepto | F80: Debe | G80: Haber
C81: Bancos | F81: 100000
C82: Clientes | G82: 100000
C83: IVA trasladado pendiente de cobro | F83: =(F81/1.16)*0.16 -> 13793.10345
C84: IVA trasladado cobrado | G84: =F83 -> 13793.10345
B87: Compra de mercancia del extranjero
B89: Tipo póliza | C89: Dr | D89: No. | E89: 5 | F89: Fecha | G89: =TODAY() -> 2025-03-18
B91: Concepto | C91: Registro fact. X del proveedor X, con valor 100,000 dolares al t.c. 19.45
B93: No. Cta. | C93: Cuenta | D93: Concepto | F93: Debe | G93: Haber | I93: No. Factura | J93: TaxID | K93: Monto | L93: Moneda | M93: T.C.
C94: Mercancia en transito | F94: =100000*19.45 -> 1945000 | I94: 76 | J94: k98765 | K94: 100000 | L94: USD | M94: 19.45
C95: Proveedores extranjeros | G95: =F94 -> 1945000
B99: Pago al proveedor por casa de cambio
B101: Tipo póliza | C101: Eg | D101: No. | E101: 8 | F101: Fecha | G101: =TODAY() -> 2025-03-18
B103: Concepto | C103: Tr. 8765 casa de cambio, compra de 100,000 dolares al t.c. 19.20, para pago de factura x del proveer x.
B105: No. Cta. | C105: Cuenta | D105: Concepto | F105: Debe | G105: Haber | I105: UUID_CFDI | J105: RFC | K105: Monto | L105: Moneda | M105: T.C. | O105: Cuenta origen | P105: Banco origen nacional | Q105: Banco origen extranjero | R105: Cuenta destino | S105: Banco destino nacional | T105: Banco destino extranjero | U105: Fecha | V105: Beneficiario | W105: RFC | X105: Monto | Y105: Moneda | Z105: T.C. | AB105: Mètodo de pago | AC105: Fecha | AD105: Beneficiario | AE105: RFC | AF105: Monto | AG105: Moneda | AH105: T.C.
C106: Caja moneda extranjera | F106: =100000*19.2 -> 1920000 | I106: Folio fiscal | J106: Casa cambio | K106: =F106 -> 1920000
C107: Bancos | G107: =F106 -> 1920000 | O107: 98765 | P107: 002 | R107: 5432 | S107: 012 | U107: aplicaciòn | V107: Casa de camibo | X107: =G107 -> 1920000
C108: Proveedor del extranjero | F108: =G95 -> 1945000 | AB108: 99 | AC108: aplicaciòn | AD108: proveedor extranjero | AE108: XEXX010101000 | AF108: 100000 | AG108: USD | AH108: 19.2
C109: =C106 -> Caja moneda extranjera | G109: =G107 -> 1920000
C110: Utilidad en cambios | G110: =F108-G109 -> 25000
B113: Anticipo agenta aduanal
B115: Tipo póliza | C115: Eg | D115: No. | E115: 9 | F115: Fecha | G115: =TODAY() -> 2025-03-18
B117: Concepto | C117: Tr. 9876 agente aduanal, para gastos por cuenta de terceros
B119: No. Cta. | C119: Cuenta | D119: Concepto | F119: Debe | G119: Haber
C120: Deudores div. | F120: 50000
C121: Bancos | G121: 50000
B124: Registro de la cuenta de gastos
B126: Tipo póliza | C126: Dr | D126: No. | E126: 4 | F126: Fecha | G126: =TODAY() -> 2025-03-18
B128: Concepto | C128: Registro cuenta de gastos del p.i. xx xx xxxx xxxxxxx correspondiente a la fact. X
B130: No. Cta. | C130: Cuenta | D130: Concepto | F130: Debe | G130: Haber | I130: UUID_CFDI | J130: RFC | K130: Monto | L130: Moneda | M130: T.C. | O130: Mètodo de pago | P130: Fecha | Q130: Beneficiario | R130: RFC | S130: Monto | T130: Moneda | U130: T.C.
C131: Gastos de importación
C132: Limpieza contenedor | F132: 4000 | I132: Folio fiscal | J132: Emisor | K132: =F132*1.16 -> 4640 | O132: 11 | P132: comprobante | Q132: Emisor | R132: Emisor | S132: =K132 -> 4640
C133: Almacenaje | F133: 13000 | I133: Folio fiscal | J133: Emisor | K133: =F133*1.16 -> 15080 | O133: 11 | P133: comprobante | Q133: Emisor | R133: Emisor | S133: =K133 -> 15080
C134: Flete terrestre | F134: 18000 | I134: Folio fiscal | J134: Emisor | K134: =F134*1.16 -> 20880 | O134: 11 | P134: comprobante | Q134: Emisor | R134: Emisor | S134: =K134 -> 20880
C135: Custodia | F135: 7000 | I135: Folio fiscal | J135: Emisor | K135: =F135*1.16 -> 8120 | O135: 11 | P135: comprobante | Q135: Emisor | R135: Emisor | S135: =K135 -> 8120
C136: Servicios complementarios | D136: Cuenta de gastos No. 876 | F136: 4000 | O136: 11 | P136: comprobante | Q136: Emisor | R136: Emisor | S136: =F136 -> 4000
C137: Honorarios agente aduanal | F137: 14000 | I137: =I135 -> Folio fiscal | J137: Emisor | K137: =F137*1.16 -> 16240 | O137: 11 | P137: comprobante | Q137: Emisor | R137: Emisor | S137: =K137 -> 16240
C138: IVA acreditable pagado | F138: =SUM(F132:F135)*0.16 -> 6720
C139: Deudores diversos | G139: =F120 -> 50000
C140: Acreedores diversos | G140: =SUM(F132:F138)-G139 -> 16720
B143: Pasivo de las contribuciones
B145: Tipo póliza | C145: Dr | D145: No. | E145: 30 | F145: Fecha | G145: =DATE(YEAR(TODAY()),MONTH(TODAY()),DAY(EOMONTH(TODAY(),0))) -> 2025-03-31
B147: Concepto | C147: ="Registro contribuciones federales " & TEXT(TODAY(),"MMMM") & YEAR(TODAY()) -> Registro contribuciones federales marzo2025
B149: No. Cta. | C149: Cuenta | D149: Concepto | F149: Debe | G149: Haber
C150: Impuestos anticipados | F150: 12000
C151: IVA trasladado cobrado | F151: 45678.98
C152: IVA acreditable pagado | G152: 23456.78
C153: Retenciòn ISR de salarios | F153: 13450
C154: Contribuciones x pagar
C155: ISR | G155: =F150 -> 12000
C156: IVA | G156: 22222
C157: Ret. De ISR x salarios | G157: =F153 -> 13450
C158: Diferencia x redondeo | G158: 0.2
B161: Registro del pago de contribuciones
B163: Tipo póliza | C163: Eg | D163: No. | E163: 17 | F163: Fecha | G163: =DATE(YEAR(TODAY()),MONTH(TODAY())+1,17) -> 2025-04-17
B165: Concepto | C165: ="Tr. 87654 Pago de impuestos federales "& TEXT(DATE(YEAR(G163),MONTH(G163)-1,DAY(G163)),"mmmm")&" " & YEAR(G163) &", con No. De operaciòn 87654" -> Tr. 87654 Pago de impuestos federales marzo 2025, con No. De operaciòn 87654
B167: No. Cta. | C167: Cuenta | D167: Concepto | F167: Debe | G167: Haber | I167: Mètodo de pago | J167: Fecha | K167: Beneficiario | L167: RFC | M167: Monto | N167: Moneda | O167: T.C. | Q167: Cuenta origen | R167: Banco origen nacional | S167: Banco origen extranjero | T167: Cuenta destino | U167: Banco destino nacional | V167: Banco destino extranjero | W167: Fecha | X167: Beneficiario | Y167: RFC | Z167: Monto | AA167: Moneda | AB167: T.C.
C168: Contribuciones por pagar | F168: =G155+G156+G157 -> 47672
C169: ISR saldo a favor | G169: 12000 | I169: 17 | J169: Declaraciòn | K169: SAT | L169: SAT970701NN3 | M169: 12000
C170: Bancos | G170: =F168-G169 -> 35672 | Q170: 876543 | R170: 002 | T170: Linea captura | U170: 999 | W170: Pago | X170: Tesoreria de la federacion | Y170: XAXX010101000 | Z170: =G170 -> 35672
B173: Registro de viaticos
B175: Tipo póliza | C175: Eg | D175: No. | E175: 4 | F175: Fecha | G175: =TODAY() -> 2025-03-18
B177: Concepto | C177: Tr. 76543 empleado x, gastos por comprobar (viaticos)
B179: No. Cta. | C179: Cuenta | D179: Concepto | F179: Debe | G179: Haber
C180: Deudores div. | F180: 12000
C181: Bancos | G181: 12000
B184: Registro de comprobantes de viaticos
B186: Tipo póliza | C186: Dr | D186: No. | E186: 7 | F186: Fecha | G186: =TODAY() -> 2025-03-18
B188: Concepto | C188: Comprobaciòn de gastos (viaticos) de la transferencia no. 8765
B190: No. Cta. | C190: Cuenta | D190: Concepto | F190: Debe | G190: Haber | I190: UUID_CFDI | J190: RFC | K190: Monto | L190: Moneda | M190: T.C. | O190: Mètodo de pago | P190: Fecha | Q190: Beneficiario | R190: RFC | S190: Monto | T190: Moneda | U190: T.C.
C191: Gastos generales
C192: Hospedaje | F192: 2500 | I192: Folio fiscal | J192: Emisor | K192: =F192*1.16 -> 2900 | O192: 11 | P192: Comprobante | Q192: Comprobante | R192: Comprobante | S192: =K192 -> 2900
C193: Transporte | F193: 2000 | I193: Folio fiscal | J193: Emisor | K193: =F193*1.16 -> 2320 | O193: 11 | P193: Comprobante | Q193: Comprobante | R193: Comprobante | S193: =K193 -> 2320
C194: Alimentaciòn | F194: 3200 | I194: Folio fiscal | J194: Emisor | K194: 3712 | O194: 11 | P194: Comprobante | Q194: Comprobante | R194: Comprobante | S194: 3712
C195: Renta de automovil | F195: 1200 | I195: Folio fiscal | J195: Emisor | K195: 1392 | O195: 11 | P195: Comprobante | Q195: Comprobante | R195: Comprobante | S195: 1392
C196: Lavanderia | F196: 400 | O196: 11 | P196: Comprobante | Q196: Comprobante | R196: Comprobante | S196: =F196 -> 400
C197: Estacionamiento | F197: 120 | O197: 11 | P197: Comprobante | Q197: Comprobante | R197: Comprobante | S197: =F197 -> 120
C198: Farmacia | F198: 700 | O198: 11 | P198: Comprobante | Q198: Comprobante | R198: Comprobante | S198: 700
C199: Vales de caja chica | F199: 456 | O199: 11 | P199: Comprobante | Q199: Comprobante | R199: Comprobante | S199: 456
C200: IVA acreditable pagado | F200: =(F192+F193+F194+F195)*0.16 -> 1424
C201: Deudores diversos | G201: =F180 -> 12000
B203: Reposiciòn de caja chica
B205: Tipo póliza | C205: Dr | D205: No. | E205: 9 | F205: Fecha | G205: =TODAY() -> 2025-03-18
B207: Concepto | C207: Registro comprobantes caja chica semena 23 de 2017
B209: No. Cta. | C209: Cuenta | D209: Concepto | F209: Debe | G209: Haber | I209: UUID_CFDI | J209: RFC | K209: Monto | L209: Moneda | M209: T.C. | O209: Mètodo de pago | P209: Fecha | Q209: Beneficiario | R209: RFC | S209: Monto | T209: Moneda | U209: T.C.
C210: Gastos generales
C211: Papeleria y art. De oficina | F211: 500 | I211: Folio fiscal | J211: Del emisor | K211: =F211+F214 -> 580 | O211: 01 | P211: Del cfdi | Q211: El emisor | S211: =K211 -> 580
C212: Estacionamiento | D212: Estacionamiento folio 765 | F212: 70 | O212: 01 | P212: Del comprobante | Q212: El emisor | S212: =F212 -> 70
C213: Pasajes | D213: Pasajes vale de caja chica No. 87 | F213: 85 | O213: 01 | P213: Del vale | Q213: Contribuyente | R213: XAXX010101000 | S213: =F213 -> 85
C214: IVA acreditable pagado | F214: =F211*0.16 -> 80
C215: Acreedores div.
C216: Responsable de la caja chica | G216: =SUM(F211:F214) -> 735
B219: Reposiciòn de caja chica
B221: Tipo póliza | C221: Eg | D221: No. | E221: 9 | F221: Fecha | G221: =TODAY() -> 2025-03-18
B223: Concepto | C223: ="Ch. 9876 Responsable de caja chica, Reposiciòn de caja chica semana " & WEEKNUM(TODAY()) &" de " & YEAR(G221) -> Ch. 9876 Responsable de caja chica, Reposiciòn de caja chica semana 12 de 2025
B225: No. Cta. | C225: Cuenta | D225: Concepto | F225: Debe | G225: Haber
C226: Acreedores div. | F226: =G216 -> 735
C227: Bancos | G227: =F226 -> 735
B229: Artículo 33 RCFF.- Para los efectos del artículo 28, fracciones I y II del Código, se estará a lo siguiente:
B231: B. Los registros o asientos contables deberán:
B233: I. Ser analíticos y efectuarse en el mes en que se realicen las operaciones, actos o actividades a que se refieran, a más tardar dentro de los cinco días siguientes a la realización de la operación, acto o actividad;
B234: II. Integrarse en el libro diario, en forma descriptiva, todas las operaciones, actos o actividades siguiendo el orden cronológico en que éstos se efectúen, indicando el movimiento de cargo o abono que a cada una corresponda, así como integrarse los nombres de las cuentas de la contabilidad, su saldo al final del periodo de registro inmediato anterior, el total del movimiento de cargo o abono a cada cuenta en el periodo y su saldo final. Podrán llevarse libros diario y mayor por establecimientos o dependencias, por tipos de actividad o por cualquier otra clasificación, pero en todos los casos deberán existir los libros diario y mayor general en los que se concentren todas las operaciones del contribuyente;
B235: III. Permitir la identificación de cada operación, acto o actividad y sus características, relacionándolas con los folios asignados a los comprobantes fiscales o con la documentación comprobatoria, de tal forma que pueda identificarse la forma de pago, las distintas contribuciones, tasas y cuotas, incluyendo aquellas operaciones, actos o actividades por las que no se deban pagar contribuciones, de acuerdo a la operación, acto o actividad de que se trate;
B236: IV. Permitir la identificación de las inversiones realizadas relacionándolas con la documentación comprobatoria o con los comprobantes fiscales, de tal forma que pueda precisarse la fecha de adquisición del bien o de efectuada la inversión, su descripción, el monto original de la inversión, el porcentaje e importe de su deducción anual, en su caso, así como la fecha de inicio de su deducción;
B237: V. Relacionar cada operación, acto o actividad con los saldos que den como resultado las cifras finales de las cuentas;
B238: VI. Formular los estados de posición financiera, de resultados, de variaciones en el capital contable, de origen y aplicación de recursos, así como las balanzas de comprobación, incluyendo las cuentas de orden y las notas a dichos estados;
B239: VII. Relacionar los estados de posición financiera con las cuentas de cada operación;
B240: VIII. Identificar las contribuciones que se deban cancelar o devolver, en virtud de devoluciones que se reciban y descuentos o bonificaciones que se otorguen conforme a las disposiciones fiscales;
B241: IX. Comprobar el cumplimiento de los requisitos relativos al otorgamiento de estímulos fiscales y de subsidios;
B242: X. Identificar los bienes distinguiendo, entre los adquiridos o producidos, los correspondientes a materias primas y productos terminados o semiterminados, los enajenados, así como los destinados a donación o, en su caso, destrucción;
B243: XI. Plasmarse en idioma español y consignar los valores en moneda nacional. Cuando la información de los comprobantes fiscales o de los datos y documentación que integran la contabilidad estén en idioma distinto al español, o los valores se consignen en moneda extranjera, deberán acompañarse de la traducción correspondiente y señalar el tipo de cambio utilizado por cada operación;
B244: XII. Establecer por centro de costos, identificando las operaciones, actos o actividades de cada sucursal o establecimiento, incluyendo aquéllos que se localicen en el extranjero;
B245: XIII. Señalar la fecha de realización de la operación, acto o actividad, su descripción o concepto, la cantidad o unidad de medida en su caso, la forma de pago de la operación, acto o actividad, especificando si fue de contado, a crédito, a plazos o en parcialidades, y el medio de pago o de extinción de dicha obligación, según corresponda. Tratándose de operaciones a crédito, a plazos o en parcialidades, por cada pago o abono que se reciba o se realice, incluyendo el anticipo o enganche según corresponda. Además de lo señalado en el párrafo anterior, deberán registrar el monto del pago, precisando si se efectúa en efectivo, transferencia interbancaria de fondos, cheque nominativo para abono en cuenta, tarjeta de débito, crédito o de servicios, monedero electrónico o por cualquier otro medio. Cuando el pago se realice en especie o permuta, deberá indicarse el tipo de bien o servicio otorgado como contraprestación y su valor;
B246: XIV. Permitir la identificación de los depósitos y retiros en las cuentas bancarias abiertas a nombre del contribuyente y conciliarse contra las operaciones realizadas y su documentación soporte, como son los estados de cuenta emitidos por las entidades financieras;
B247: XV. Los registros de inventarios de mercancías, materias primas, productos en proceso y terminados, en los que se llevará el control sobre los mismos, que permitan identificar cada unidad, tipo de mercancía o producto en proceso y fecha de adquisición o enajenación según se trate, así como el aumento o la disminución en dichos inventarios y las existencias al inicio y al final de cada mes y al cierre del ejercicio fiscal, precisando su fecha de entrega o recepción, así como si se trata de una devolución, donación o destrucción, cuando se den estos supuestos. Para efectos del párrafo anterior, en el control de inventarios deberá identificarse el método de valuación utilizado y la fecha a partir de la cual se usa, ya sea que se trate del método de primeras entradas primeras salidas, últimas entradas primeras salidas, costo identificado, costo promedio o detallista según corresponda;
B248: XVI. Los registros relativos a la opción de diferimiento de la causación de contribuciones conforme a las disposiciones fiscales, en el caso que se celebren contratos de arrendamiento financiero. Dichos registros deberán permitir identificar la parte correspondiente de las operaciones en cada ejercicio fiscal, inclusive mediante cuentas de orden;
B249: XVII. El control de los donativos de los bienes recibidos por las donatarias autorizadas en términos de la Ley del Impuesto sobre la Renta, el cual deberá permitir identificar a los donantes, los bienes recibidos, los bienes entregados a sus beneficiarios, las cuotas de recuperación que obtengan por los bienes recibidos en donación y el registro de la destrucción o donación de las mercancías o bienes en el ejercicio en el que se efectúen, y
B250: XVIII. Contener el impuesto al valor agregado que le haya sido trasladado al contribuyente y el que haya pagado en la importación, correspondiente a la parte de sus gastos e inversiones, conforme a los supuestos siguientes: a) La adquisición de bienes, de servicios y el uso o goce temporal de bienes, que se utilicen exclusivamente para realizar sus actividades por las que deban pagar el impuesto; b) La adquisición de bienes, de servicios y el uso o goce temporal de bienes, que se utilicen exclusivamente para realizar sus actividades por las que no deban pagar el impuesto, y c) La adquisición de bienes, de servicios y el uso o goce temporal de bienes, que se utilicen indistintamente para realizar tanto actividades por las que se deba pagar el impuesto, como aquéllas por las que no se está obligado al pago del mismo. Cuando el destino de los bienes o servicios varíe y se deba efectuar el ajuste del acreditamiento previsto en el artículo 5o.-A de la Ley del Impuesto al Valor Agregado, se deberá registrar su efecto en la contabilidad.

Sheet CUENTASO (hidden)
B3: Cuentas de orden para efectos fiscales
B4: Deducción | C4: Cuenta | D4: Contra-cuenta
B5: Deducción de inversiones | C5: Deducción fiscal | D5: Fiscal deducción
B6: Pérdida en venta de activo fijo | C6: Pérdida en venta de activo fijo | D6: Venta de activo fijo pérdida
B7: Ajuste anual por inflación deducible | C7: Ajuste anual por inflación deducible | D7: Deducible ajuste anual por inflación
B8: Compras | C8: Compras pagadas | D8: Pagadas compras
B9: Sueldos deducibles | C9: Sueldos deducibles | D9: Deducibles sueldos
B10: Ajuste anual por inflación acumulable | C10: Ajuste anual por inflación acumulable | D10: Acumulable ajuste anual por inflación
B11: Ingresos | C11: Ingresos cobrados | D11: Cobrados ingresos
B12: Ganancia en venta de activo fijo | C12: Ganancia en venta de activo fijo | D12: Venta de activo fijo ganancia

Sheet CFDIE (hidden)
A1: Hoja para importar los XML emitidos por la empresa (excepto complemento de pagos y nómina)
T3: Información en caso de factura global
A4: Fecha de emisión | B4: Tipo de comprobante | C4: Tipo de comprobante del catálogo del SAT | D4: Exportación | E4: Clave de exportación catálogo del SAT | F4: Serie | G4: Folio | H4: Folio fiscal | I4: RFC emisor | J4: Emisor | K4: Régimen fiscal | L4: Tipo de régimen catálogo del SAT | M4: RFC receptor | N4: Receptor | O4: Régimen fiscal | P4: Tipo de régimen catálogo del SAT | Q4: Domicilio fiscal receptor | R4: Uso del CFDI | S4: Uso del CFDI del catálogo del SAT | T4: Periodicidad | U4: Descripción de la clave del catálogo del SAT | V4: Meses | W4: Descripción de la clave del catálogo del SAT | X4: Año | Y4: Clave producto/servicio SAT | Z4: Descripción de la clave del catálogo del SAT | AA4: Palabras similares | AB4: Clave unidad de medida | AC4: Unidad de medida del catálogo del SAT | AD4: Unidad | AE4: Cantidad | AF4: Descripción | AG4: Valor unitario | AH4: Importe | AI4: Descuento | AJ4: Objeto del impuesto | AK4: Tipo de objeto del impuesto catálogo del SAT | AL4: Base para IEPS | AM4: Tipo factor | AN4: Tasa o cuota | AO4: Total IEPS trasladado del comprobante | AP4: Base para IVA | AQ4: Tipo factor | AR4: Tasa o cuota | AS4: Total IVA trasladado del comprobante | AT4: Base retención ISR | AU4: Tipo factor | AV4: Tasa o cuota | AW4: Retención de ISR | AX4: Base retención IVA | AY4: Tipo factor | AZ4: Tasa o cuota | BA4: Retención IVA | BB4: Total del comprobante | BC4: Tipo de relación | BD4: Tipo de relación del catálogo del SAT | BE4: UUID relación | BF4: Forma de pago | BG4: Forma de pago del catálogo del SAT | BH4: Método de pago | BI4: Método de pago catálogo del SAT | BJ4: Moneda | BK4: Moneda del catálogo del SAT | BL4: Tipo de cambio | BM4: No. de pedimento | BN4: Cuenta predial | BO4: Fecha de cancelación | BP4: No. de complementos de pago | BQ4: Importe pagado | BR4: Saldo | BS4: Ruta del archivo | BT4: Operación convertida a moneda nacional | BU4: Impuestos locales

Sheet RPAGOSE (hidden)
B2: Hoja para importar los XML emitidos con el complemento de recepción de pagos
V5: Complemento de recepción de pagos
J6: Emisor | M6: Receptor | P6: Campos generales CFDI | AG6: Solo que el pago se reciba en SPEI | AK6: Documentos que se cobran | AU6: Timbre fiscal del complemento de recepción de pagos | BG6: Retenciones | BP6: Impuestos trasladados | BT6: Impuestos retenidos
B7: Fecha de emisión | C7: Folio | D7: Serie | E7: Subtotal | F7: Moneda | G7: Total | H7: Tipo de comprobante | I7: Lugar Expedicion | J7: Rfc | K7: Nombre | L7: Régimen fiscal | M7: Rfc | N7: Nombre | O7: Uso del CFDI | P7: ClaveProdServ | Q7: Cantidad | R7: Unidad | S7: Descripcion | T7: ValorUnitario | U7: Importe | V7: Fecha de pago | W7: Forma de pago | X7: MonedaP | Y7: TipoCambioP | Z7: Monto | AA7: NumOperacion | AB7: RfcEmisorCtaOrd | AC7: NomBancoOrdExt | AD7: CtaOrdenante | AE7: RfcEmisorCtaBen | AF7: CtaBeneficiario | AG7: TipoCadPago | AH7: CertPago | AI7: CadPago | AJ7: SelloPago | AK7: IdDocumento | AL7: Serie | AM7: Folio | AN7: MonedaDR | AO7: TipoCambioDR | AP7: MetodoDePagoDR | AQ7: NumParcialidad | AR7: ImpSaldoAnt | AS7: ImpPagado | AT7: ImpSaldoInsoluto | AU7: Fecha de timbrado | AV7: UUID | AW7: Total factura | AX7: Importe cobrado | AY7: Factor de pago | AZ7: Base IVA al 16% | BA7: IVA al 16% | BB7: Base IVA al 8% | BC7: IVA al 8% | BD7: Base IVA al 0% | BE7: Base IVA exento | BF7: IEPS | BG7: Base retención ISR | BH7: Retención ISR | BI7: Base retención IVA | BJ7: IVA | BK7: Ruta en donde se encuentra el archivo | BL7: Fecha de cancelación | BM7: Fecha de factura | BN7: Importe pagado | BO7: Objeto de impuestos DR | BP7: Base IEPS | BQ7: IEPS | BR7: Base IVA | BS7: IVA | BT7: Base ISR | BU7: ISR | BV7: Base IVA | BW7: IVA | BX7: Base para ISR | BY7: Impuestos locales | BZ7: Uso del CFDI

Sheet VENTASP (hidden)
B4: Fecha inicial
B5: Fecha final
B6: Tipo de comprobante
B7: =IFERROR(IF(OR(C6="I = Ingreso",C6="E = Egreso"),"¿Con método de pago?",""),"") -> 
B9: Concentrado de CFDI emitidos de tipo Ingreso
B10: c_FormaPago | C10: Descripción | D10: Bancarizado | E10: Importe | F10: Descuento | G10: Importe-Descuento | H10: IEPS | I10: IVA | J10: Ret. ISR | K10: Ret. IVA | L10: Impuestos locales | M10: Total del comprobante | N10: Total de CFDI vigentes
B11: 1 | C11: Efectivo | D11: No
B12: 2 | C12: Cheque nominativo | D12: Sí
B13: 3 | C13: Transferencia electrónica de fondos | D13: Sí
B14: 4 | C14: Tarjeta de crédito | D14: Sí
B15: 5 | C15: Monedero electrónico | D15: Sí
B16: 6 | C16: Dinero electrónico | D16: Sí
B17: 8 | C17: Vales de despensa | D17: No
B18: 12 | C18: Dación en pago | D18: No
B19: 13 | C19: Pago por subrogación | D19: No
B20: 14 | C20: Pago por consignación | D20: No
B21: 15 | C21: Condonación | D21: No
B22: 17 | C22: Compensación | D22: No
B23: 23 | C23: Novación | D23: No
B24: 24 | C24: Confusión | D24: No
B25: 25 | C25: Remisión de deuda | D25: No
B26: 26 | C26: Prescripción o caducidad | D26: No
B27: 27 | C27: A satisfacción del acreedor | D27: No
B28: 28 | C28: Tarjeta de débito | D28: Sí
B29: 29 | C29: Tarjeta de servicios | D29: Sí
B30: 30 | C30: Aplicación de anticipos | D30: No
B31: 31 | C31: Intermediario pagos | D31: No
B32: 99 | C32: Por definir | D32: Opcional
D33: Totales

Sheet CFDIR (hidden)
A2: Hoja para importar los XML recibidos por la empresa (excepto complemento de pagos y nómina)
T3: Información en caso de factura global
A4: Fecha de emisión | B4: Tipo de comprobante | C4: Tipo de comprobante del catálogo del SAT | D4: Exportación | E4: Clave de exportación catálogo del SAT | F4: Serie | G4: Folio | H4: Folio fiscal | I4: RFC emisor | J4: Emisor | K4: Régimen fiscal | L4: Tipo de régimen catálogo del SAT | M4: RFC receptor | N4: Receptor | O4: Régimen fiscal | P4: Tipo de régimen catálogo del SAT | Q4: Domicilio fiscal receptor | R4: Uso del CFDI | S4: Uso del CFDI del catálogo del SAT | T4: Periodicidad | U4: Descripción de la clave del catálogo del SAT | V4: Meses | W4: Descripción de la clave del catálogo del SAT | X4: Año | Y4: Clave producto/servicio SAT | Z4: Descripción de la clave del catálogo del SAT | AA4: Palabras similares | AB4: Clave unidad de medida | AC4: Unidad de medida del catálogo del SAT | AD4: Unidad | AE4: Cantidad | AF4: Descripción | AG4: Valor unitario | AH4: Importe | AI4: Descuento | AJ4: Objeto del impuesto | AK4: Tipo de objeto del impuesto catálogo del SAT | AL4: Base para IEPS | AM4: Tipo factor | AN4: Tasa o cuota | AO4: Total IEPS trasladado del comprobante | AP4: Base para IVA | AQ4: Tipo factor | AR4: Tasa o cuota | AS4: Total IVA trasladado del comprobante | AT4: Base retención ISR | AU4: Tipo factor | AV4: Tasa o cuota | AW4: Retención de ISR | AX4: Base retención IVA | AY4: Tipo factor | AZ4: Tasa o cuota | BA4: Retención IVA | BB4: Total del comprobante | BC4: Tipo de relación | BD4: Tipo de relación del catálogo del SAT | BE4: UUID relación | BF4: Forma de pago | BG4: Forma de pago del catálogo del SAT | BH4: Método de pago | BI4: Método de pago catálogo del SAT | BJ4: Moneda | BK4: Moneda del catálogo del SAT | BL4: Tipo de cambio | BM4: No. de pedimento | BN4: Cuenta predial | BO4: Fecha de cancelación | BP4: No. de complementos de pago | BQ4: Importe pagado | BR4: Saldo | BS4: Ruta del archivo | BT4: Operación convertida a moneda nacional | BU4: Impuestos locales

Sheet RPAGOSR (hidden)
B2: Hoja para importar los XML recibidos con el complemento de recepción de pagos
V5: Complemento de recepción de pagos
J6: Emisor | M6: Receptor | P6: Campos generales CFDI | AG6: Solo que el pago se reciba en SPEI | AK6: Documentos que se cobran | AU6: Timbre fiscal del complemento de recepción de pagos | BG6: Retenciones | BP6: Impuestos trasladados | BT6: Impuestos retenidos
B7: Fecha de emisión | C7: Folio | D7: Serie | E7: Subtotal | F7: Moneda | G7: Total | H7: Tipo de comprobante | I7: Lugar Expedicion | J7: Rfc | K7: Nombre | L7: Régimen fiscal | M7: Rfc | N7: Nombre | O7: Uso del CFDI | P7: ClaveProdServ | Q7: Cantidad | R7: Unidad | S7: Descripcion | T7: ValorUnitario | U7: Importe | V7: Fecha de pago | W7: Forma de pago | X7: MonedaP | Y7: TipoCambioP | Z7: Monto | AA7: NumOperacion | AB7: RfcEmisorCtaOrd | AC7: NomBancoOrdExt | AD7: CtaOrdenante | AE7: RfcEmisorCtaBen | AF7: CtaBeneficiario | AG7: TipoCadPago | AH7: CertPago | AI7: CadPago | AJ7: SelloPago | AK7: IdDocumento | AL7: Serie | AM7: Folio | AN7: MonedaDR | AO7: TipoCambioDR | AP7: MetodoDePagoDR | AQ7: NumParcialidad | AR7: ImpSaldoAnt | AS7: ImpPagado | AT7: ImpSaldoInsoluto | AU7: Fecha de timbrado | AV7: UUID | AW7: Total factura | AX7: Importe cobrado | AY7: Factor de pago | AZ7: Base IVA al 16% | BA7: IVA al 16% | BB7: Base IVA al 8% | BC7: IVA al 8% | BD7: Base IVA al 0% | BE7: Base IVA exento | BF7: IEPS | BG7: Base retención ISR | BH7: Retención ISR | BI7: Base retención IVA | BJ7: IVA | BK7: Ruta en donde se encuentra el archivo | BL7: Fecha de cancelación | BM7: Fecha de factura | BN7: Importe pagado | BO7: Objeto de impuestos DR | BP7: Base IEPS | BQ7: IEPS | BR7: Base IVA | BS7: IVA | BT7: Base ISR | BU7: ISR | BV7: Base IVA | BW7: IVA | BX7: Base para ISR | BY7: Impuestos locales | BZ7: Uso del CFDI

Sheet GASTOSP (hidden)
B4: Fecha inicial
B5: Fecha final
B6: Tipo de comprobante
B7: =IFERROR(IF(OR(C6="I = Ingreso",C6="E = Egreso"),"¿Con método de pago?",""),"") -> 
B10: Concentrado de CFDI recibidos de tipo Ingreso
B11: c_FormaPago | C11: Descripción | D11: Bancarizado | E11: Importe | F11: Descuento | G11: Importe-Descuento | H11: IEPS | I11: IVA | J11: Ret. ISR | K11: Ret. IVA | L11: Impuestos locales | M11: Total del comprobante | N11: Total de CFDI vigentes
B12: 1 | C12: Efectivo | D12: No | N12: 1
B13: 2 | C13: Cheque nominativo | D13: Sí | N13: 0
B14: 3 | C14: Transferencia electrónica de fondos | D14: Sí | N14: 10
B15: 4 | C15: Tarjeta de crédito | D15: Sí | N15: 12
B16: 5 | C16: Monedero electrónico | D16: Sí | N16: 0
B17: 6 | C17: Dinero electrónico | D17: Sí | N17: 0
B18: 8 | C18: Vales de despensa | D18: No | N18: 0
B19: 12 | C19: Dación en pago | D19: No | N19: 0
B20: 13 | C20: Pago por subrogación | D20: No | N20: 0
B21: 14 | C21: Pago por consignación | D21: No | N21: 0
B22: 15 | C22: Condonación | D22: No | N22: 0
B23: 17 | C23: Compensación | D23: No | N23: 3
B24: 23 | C24: Novación | D24: No | N24: 0
B25: 24 | C25: Confusión | D25: No | N25: 0
B26: 25 | C26: Remisión de deuda | D26: No | N26: 0
B27: 26 | C27: Prescripción o caducidad | D27: No | N27: 0
B28: 27 | C28: A satisfacción del acreedor | D28: No | N28: 0
B29: 28 | C29: Tarjeta de débito | D29: Sí | N29: 7
B30: 29 | C30: Tarjeta de servicios | D30: Sí | N30: 1
B31: 30 | C31: Aplicación de anticipos | D31: No | N31: 0
B32: 31 | C32: Intermediario pagos | D32: No | N32: 0
B33: 99 | C33: Por definir | D33: Opcional | N33: 0
D34: Totales | N34: =SUM(N12:N33) -> 34

Sheet BALANZA XML (hidden)
B4: RFC | E4: Nivel al que se genera la balanza | G4: 2
B5: Año | C5: 2023 | E5: Tipo de balanza | F5: N
B6: Mes | C6: 13 | E6: =IF(F5="BC","Fecha de modificación de la balanza","") -> 
B7: Total de cuentas | C7: =IFERROR(IF(COUNTA(B10:B300000)<=0,"",COUNTA(B10:B300000)),"") -> 326 | E7: Ruta en donde se guardara el archivo
B9: No. de cuenta | C9: Cuenta | D9: Saldo inicial | E9: Debe | F9: Haber | G9: Saldo final | J9: Nivel
B10: 1000-000-000 | C10: CAJA | D10: 30287.99 | E10: 0 | F10: 886 | G10: 29401.99 | J10: 1
B11: 1000-001-000 | C11: Fondo fijo | D11: 0 | E11: 0 | F11: 0 | G11: 0 | J11: 2
B12: 1000-002-000 | C12: Fondo variable | D12: 30287.99 | E12: 0 | F12: 886 | G12: 29401.99 | J12: 2
B13: 1010-000-000 | C13: BANCOS | D13: 1190893.86 | E13: 2983252.51 | F13: 3195060.3 | G13: 979086.07 | J13: 1
B14: 1010-001-000 | C14: Bancos Nacionales | D14: 1190893.86 | E14: 2983252.51 | F14: 3195060.3 | G14: 979086.07 | J14: 2
B15: 1010-001-001 | C15: Banamex #6510 | D15: 1190350.9 | E15: 1583251.24 | F15: 1867343.17 | G15: 906258.97 | J15: 2
B16: 1010-001-002 | C16: Inverlat #7604 | D16: 542.96 | E16: 1400001.27 | F16: 1327717.13 | G16: 72827.1 | J16: 1
B17: 1012-000-000 | C17: INVERSIONES | D17: 2866903.05 | E17: 309904.55 | F17: 1002862.31 | G17: 2173945.29 | J17: 2
B18: 1012-001-000 | C18: Fondo de inversion | D18: 2866903.05 | E18: 309904.55 | F18: 1002862.31 | G18: 2173945.29 | J18: 2
B19: 1012-001-001 | C19: Inverlat #7604 | D19: 2866903.05 | E19: 309904.55 | F19: 1002862.31 | G19: 2173945.29 | J19: 1
B20: 1015-000-000 | C20: CLIENTES | D20: 143644.55 | E20: 561196.21 | F20: 592809.21 | G20: 112031.55 | J20: 2
B21: 1015-001-000 | C21: Clientes nacionales | D21: 143644.55 | E21: 561196.21 | F21: 592809.21 | G21: 112031.55 | J21: 1
B22: 1015-002-000 | C22: Clientes extranjeros | D22: 0 | E22: 0 | F22: 0 | G22: 0 | J22: 2
B23: 1016-000-000 | C23: ESTIMACION PARA CUENTAS INCOBRABLES | D23: 0 | E23: 0 | F23: 0 | G23: 0 | J23: 2
B24: 1016-001-000 | C24: Estimacion para cuentas incobrables nacionales | D24: 0 | E24: 0 | F24: 0 | G24: 0 | J24: 1
B25: 1020-000-000 | C25: DEUDORES DIVERSOS | D25: 5500 | E25: 0 | F25: 0 | G25: 5500 | J25: 2
B26: 1020-001-000 | C26: Prestamos a empleados | D26: 0 | E26: 0 | F26: 0 | G26: 0 | J26: 2
B27: 1020-001-001 | C27: Martinez | D27: 0 | E27: 0 | F27: 0 | G27: 0 | J27: 1
B28: 1020-002-000 | C28: Prestamos a socios | D28: 0 | E28: 0 | F28: 0 | G28: 0 | J28: 2
B29: 1020-003-000 | C29: Otras transacciones | D29: 5500 | E29: 0 | F29: 0 | G29: 5500 | J29: 2
B30: 1020-003-001 | C30: Jaime | D30: 5500 | E30: 0 | F30: 0 | G30: 5500 | J30: 1
B31: 1020-003-002 | C31: Diversos | D31: 0 | E31: 0 | F31: 0 | G31: 0 | J31: 2
B32: 1020-003-003 | C32: alberto | D32: 0 | E32: 0 | F32: 0 | G32: 0 | J32: 2
B33: 1020-003-004 | C33: Power Moto SA de CV | D33: 0 | E33: 0 | F33: 0 | G33: 0 | J33: 1
B34: 1020-003-005 | C34: padilla | D34: 0 | E34: 0 | F34: 0 | G34: 0 | J34: 2
B35: 1021-000-000 | C35: SUBSIDIO AL EMPLEO | D35: 1825.16 | E35: 85.9 | F35: 0 | G35: 1911.06 | J35: 1
B36: 1021-001-000 | C36: Subsidio al empleo | D36: 1825.16 | E36: 85.9 | F36: 0 | G36: 1911.06 | J36: 2
B37: 1025-000-000 | C37: ANTICIPO A PROVEEDORES | D37: 2408.97 | E37: 19860.3 | F37: 18234.75 | G37: 4034.52 | J37: 2
B38: 1025-001-000 | C38: Anticipo a proveedores nacionales | D38: 2408.97 | E38: 19860.3 | F38: 18234.75 | G38: 4034.52 | J38: 1
B39: 1025-001-001 | C39: cesar | D39: 0 | E39: 0 | F39: 0 | G39: 0 | J39: 2
B40: 1025-001-002 | C40: Hotel Costa Brava SA | D40: 0 | E40: 0 | F40: 0 | G40: 0 | J40: 2
B41: 1025-001-003 | C41: A | D41: 0 | E41: 0 | F41: 0 | G41: 0 | J41: 1
B42: 1025-001-004 | C42: B | D42: 0 | E42: 0 | F42: 0 | G42: 0 | J42: 2
B43: 1025-001-005 | C43: C | D43: 0 | E43: 0 | F43: 0 | G43: 0 | J43: 2
B44: 1025-001-006 | C44: D | D44: 0 | E44: 0 | F44: 0 | G44: 0 | J44: 1
B45: 1025-001-007 | C45: E | D45: 0 | E45: 0 | F45: 0 | G45: 0 | J45: 2
B46: 1025-001-008 | C46: F | D46: 0 | E46: 0 | F46: 0 | G46: 0 | J46: 2
B47: 1025-001-009 | C47: G | D47: 324.64 | E47: 19000 | F47: 15290.12 | G47: 4034.52 | J47: 1
B48: 1025-001-010 | C48: Hotel Costa Brava SA | D48: 0 | E48: 0 | F48: 0 | G48: 0 | J48: 2
B49: 1025-001-011 | C49: Motos Eje Central SA de CV | D49: 0 | E49: 0 | F49: 0 | G49: 0 | J49: 1
B50: 1025-001-012 | C50: TAR | D50: 0 | E50: 0 | F50: 0 | G50: 0 | J50: 2
B51: 1025-001-013 | C51: Reyes Rayon Fernando Valentin José | D51: 0 | E51: 0 | F51: 0 | G51: 0 | J51: 2
B52: 1025-001-014 | C52: Operadora Paypal de Mexico S de RL de CV | D52: 2084.33 | E52: 860.3 | F52: 2944.63 | G52: 0 | J52: 1
B53: 1025-001-015 | C53: Power Moto SA de CV | D53: 0 | E53: 0 | F53: 0 | G53: 0 | J53: 2
B54: 1025-001-016 | C54: Distribuidora de Motos RM SA de CV | D54: 0 | E54: 0 | F54: 0 | G54: 0 | J54: 2
B55: 1025-001-017 | C55: Instituto De Enseñanza Superior En Contaduria y Administracion SC | D55: 0 | E55: 0 | F55: 0 | G55: 0 | J55: 1
B56: 1025-001-018 | C56: Asociación Mexicana de Contadores Públicos, Colegio Profesional en el Distrito Federal A.C. | D56: 0 | E56: 0 | F56: 0 | G56: 0 | J56: 2
B57: 1025-001-019 | C57: Si Vale México | D57: 0 | E57: 0 | F57: 0 | G57: 0 | J57: 2
B58: 1025-001-020 | C58: Radiomóvil Dipsa SA de CV | D58: 0 | E58: 0 | F58: 0 | G58: 0 | J58: 1
B59: 1025-001-021 | C59: Cablevisión SA de CV | D59: 0 | E59: 0 | F59: 0 | G59: 0 | J59: 2
B60: 1025-001-022 | C60: Varios | D60: 0 | E60: 0 | F60: 0 | G60: 0 | J60: 2
B61: 1025-002-000 | C61: Anticipo a proveedores extranjeros | D61: 0 | E61: 0 | F61: 0 | G61: 0 | J61: 1
B62: 1027-000-000 | C62: IMPUESTOS A FAVOR PENDIENTE PRESENTAR | D62: 7659 | E62: 0 | F62: 0 | G62: 7659 | J62: 2
B63: 1027-001-000 | C63: IVA | D63: 7659 | E63: 0 | F63: 0 | G63: 7659 | J63: 1
B64: 1028-000-000 | C64: IMPUESTOS A FAVOR | D64: 192577 | E64: 0 | F64: 0 | G64: 192577 | J64: 2
B65: 1028-001-000 | C65: ISR | D65: 27833 | E65: 0 | F65: 0 | G65: 27833 | J65: 2
B66: 1028-002-000 | C66: IVA | D66: 81004 | E66: 0 | F66: 0 | G66: 81004 | J66: 1
B67: 1028-003-000 | C67: Pago de lo indebido | D67: 83740 | E67: 0 | F67: 0 | G67: 83740 | J67: 2
B68: 1030-000-000 | C68: INVENTARIOS | D68: 177328.94 | E68: 26955.29 | F68: 204284.23 | G68: 0 | J68: 2
B69: 1030-001-000 | C69: Mano de obra | D69: 177084.64 | E69: 26955.29 | F69: 204039.93 | G69: 0 | J69: 1
B70: 1030-002-000 | C70: Mercancías | D70: 244.3 | E70: 0 | F70: 244.3 | G70: 0 | J70: 2
B71: 1035-000-000 | C71: IVA ACREDITABLE | D71: 468.21 | E71: 20441.73 | F71: 20094.14 | G71: 815.8 | J71: 2
B72: 1035-001-000 | C72: IVA acreditable pendiente de pago | D72: 324.28 | E72: 4094.02 | F72: 3746.43 | G72: 671.87 | J72: 1
B73: 1035-002-000 | C73: IVA acreditable pagado | D73: 0 | E73: 15770.59 | F73: 15770.59 | G73: 0 | J73: 2
B74: 1035-003-000 | C74: IVA acreditable por retenciones pendientes de pago | D74: 0 | E74: 0 | F74: 0 | G74: 0 | J74: 2
B75: 1035-004-000 | C75: IVA acreditable por retenciones pagadas | D75: 0 | E75: 0 | F75: 0 | G75: 0 | J75: 1
B76: 1035-005-000 | C76: IVA acreditable por importación de intangibles | D76: 143.93 | E76: 577.12 | F76: 577.12 | G76: 143.93 | J76: 2
B77: 1040-000-000 | C77: IMPUESTOS ANTICIPADOS Y OTROS | D77: 102887.83 | E77: 2861.04 | F77: 0 | G77: 105748.87 | J77: 1
B78: 1040-001-000 | C78: P.P. ISR | D78: 0 | E78: 0 | F78: 0 | G78: 0 | J78: 2
B79: 1040-002-000 | C79: Retencion de ISR bancario | D79: 102887.81 | E79: 2861.04 | F79: 0 | G79: 105748.85 | J79: 2
B80: 1040-003-000 | C80: IVA retenido en factura 6% | D80: 0 | E80: 0 | F80: 0 | G80: 0 | J80: 1
B81: 1040-004-000 | C81: IVA retenido 6% cobrado | D81: 0.02 | E81: 0 | F81: 0 | G81: 0.02 | J81: 2
B82: 1045-000-000 | C82: PAGOS ANTICIPADOS | D82: 0 | E82: 0 | F82: 0 | G82: 0 | J82: 2
B83: 1045-001-000 | C83: Pagos anticipados | D83: 0 | E83: 0 | F83: 0 | G83: 0 | J83: 1
B84: 1046-000-000 | C84: SEGUROS PAGADOS POR ANTICIPADO | D84: 8255 | E84: 0 | F84: 1306.14 | G84: 6948.86 | J84: 2
B85: 1046-001-000 | C85: Seguros pagados x anticipado | D85: 8255 | E85: 0 | F85: 1306.14 | G85: 6948.86 | J85: 2
B86: 1048-000-000 | C86: TERRENOS | D86: 291523.92 | E86: 0 | F86: 0 | G86: 291523.92 | J86: 1
B87: 1048-001-000 | C87: Terrenos | D87: 291523.92 | E87: 0 | F87: 0 | G87: 291523.92 | J87: 2
B88: 1049-000-000 | C88: EDIFICIOS Y CONSTRUCCIONES | D88: 1169977.4 | E88: 0 | F88: 0 | G88: 1169977.4 | J88: 2
B89: 1049-001-000 | C89: Edificios | D89: 1169977.4 | E89: 0 | F89: 0 | G89: 1169977.4 | J89: 1
B90: 1050-000-000 | C90: MOBILIARIO Y EQUIPO DE OFICINA | D90: 59048.8 | E90: 0 | F90: 0 | G90: 59048.8 | J90: 2
B91: 1050-001-000 | C91: Mobiliario y equipo de oficina | D91: 59048.8 | E91: 0 | F91: 0 | G91: 59048.8 | J91: 1
B92: 1060-000-000 | C92: EQUIPO DE COMPUTO | D92: 306358.93 | E92: 23706.03 | F92: 0 | G92: 330064.96 | J92: 2
B93: 1060-001-000 | C93: Equipo de computo | D93: 306358.93 | E93: 23706.03 | F93: 0 | G93: 330064.96 | J93: 2
B94: 1070-000-000 | C94: EQUIPO DE TRANSPORTE | D94: 467491.39 | E94: 0 | F94: 0 | G94: 467491.39 | J94: 1
B95: 1070-001-000 | C95: Equipo de transporte | D95: 467491.39 | E95: 0 | F95: 0 | G95: 467491.39 | J95: 2
B96: 1080-000-000 | C96: OTROS ACTIVOS | D96: 307573.45 | E96: 0 | F96: 0 | G96: 307573.45 | J96: 2
B97: 1080-001-000 | C97: Otros activos | D97: 307573.45 | E97: 0 | F97: 0 | G97: 307573.45 | J97: 1
B98: 1200-000-000 | C98: DEPRECIACION ACUMULADA | D98: 884809.31 | E98: 0 | F98: 0 | G98: 884809.31 | J98: 2
B99: 1200-001-000 | C99: Depreciacion acumulada equipo de oficina | D99: 21215.8 | E99: 0 | F99: 0 | G99: 21215.8 | J99: 2
B100: 1200-002-000 | C100: Depreciacion acumulada equipo de computo | D100: 224608.2 | E100: 0 | F100: 0 | G100: 224608.2 | J100: 1
B101: 1200-003-000 | C101: Depreciacion acumulada equipo de transporte | D101: 105536.1 | E101: 0 | F101: 0 | G101: 105536.1 | J101: 2
B102: 1200-004-000 | C102: Depreciacion acumulada construcciones | D102: 529406.69 | E102: 0 | F102: 0 | G102: 529406.69 | J102: 2
B103: 1200-005-000 | C103: Depreciacion acumulada otros activos | D103: 4042.52 | E103: 0 | F103: 0 | G103: 4042.52 | J103: 1
B104: 2000-000-000 | C104: PROVEEDORES | D104: 12395.81 | E104: 13752 | F104: 16272.01 | G104: 14915.82 | J104: 2
B105: 2000-001-000 | C105: Proveedores nacionales | D105: 12395.81 | E105: 13752 | F105: 16272.01 | G105: 14915.82 | J105: 1
B106: 2000-001-001 | C106: ADT Private Security Services de Mexico SA de CV | D106: 1631.18 | E106: 1631.18 | F106: 1631.18 | G106: 1631.18 | J106: 2
B107: 2000-001-002 | C107: Asociacion Mexicana de Contadores Publicos. Colegio Profesional en el D.F., A.C. | D107: 720 | E107: 0 | F107: 2520.01 | G107: 3240.01 | J107: 2
B108: 2000-001-003 | C108: Aspel de Mexico SA de CV | D108: 0 | E108: 0 | F108: 0 | G108: 0 | J108: 1
B109: 2000-001-004 | C109: Automotriz Medellin SA de CV | D109: 0 | E109: 0 | F109: 0 | G109: 0 | J109: 2
B110: 2000-001-005 | C110: Axtel SAB de CV | D110: 0 | E110: 0 | F110: 0 | G110: 0 | J110: 2
B111: 2000-001-006 | C111: Comunicaciones Nextel de Mexico SA de CV | D111: 0 | E111: 0 | F111: 0 | G111: 0 | J111: 1
B112: 2000-001-007 | C112: Fk Development Network Sa De Cv | D112: 0 | E112: 0 | F112: 0 | G112: 0 | J112: 2
B113: 2000-001-008 | C113: Gobierno del Distrito Federal | D113: 0 | E113: 0 | F113: 0 | G113: 0 | J113: 2
B114: 2000-001-009 | C114: IMEFI SC | D114: 0 | E114: 0 | F114: 0 | G114: 0 | J114: 1
B115: 2000-001-010 | C115: Reyes Equiguas Leopoldo | D115: 0 | E115: 0 | F115: 0 | G115: 0 | J115: 2
B116: 2000-001-011 | C116: Tax Editores Unidos SA de CV | D116: 10044.3 | E116: 0 | F116: 0 | G116: 10044.3 | J116: 2
B117: 2000-001-012 | C117: Centro de Distribucion Oriente SA de CV | D117: 0 | E117: 0 | F117: 0 | G117: 0 | J117: 1
B118: 2000-001-013 | C118: Total Play Telecomunicaciones SA de CV | D118: 0 | E118: 951.79 | F118: 951.79 | G118: 0 | J118: 2
B119: 2000-001-014 | C119: AT&T Comunicaciones Digitales, S. de R.L. de C.V. | D119: 0 | E119: 788.05 | F119: 788.05 | G119: 0 | J119: 1
B120: 2000-001-015 | C120: Coronado Barcenas Cesar Rogelio | D120: 0 | E120: 0 | F120: 0 | G120: 0 | J120: 2
B121: 2000-001-016 | C121: Motos Suhonya SA de CV | D121: 0 | E121: 0 | F121: 0 | G121: 0 | J121: 2
B122: 2000-001-017 | C122: Operadora de Hoteles Monforte SA de CV | D122: 0 | E122: 0 | F122: 0 | G122: 0 | J122: 1
B123: 2000-001-018 | C123: Hotel Costa Brava SA | D123: 0 | E123: 0 | F123: 0 | G123: 0 | J123: 2
B124: 2000-001-019 | C124: Radiomovil Dipsa SA de CV | D124: 0.33 | E124: 1524.98 | F124: 1524.98 | G124: 0.33 | J124: 2
B125: 2000-001-020 | C125: Mendoza Jiménez Cirilo Efren | D125: 0 | E125: 0 | F125: 0 | G125: 0 | J125: 1
B126: 2000-001-021 | C126: AT&T Comercialización Móvil S de RL de CV | D126: 0 | E126: 886 | F126: 886 | G126: 0 | J126: 2
B127: 2000-001-022 | C127: Parque Ecuestre Rancho Alegre SA de CV | D127: 0 | E127: 0 | F127: 0 | G127: 0 | J127: 2
B128: 2000-001-023 | C128: Brokerage Business Process SA de CV | D128: 0 | E128: 7221 | F128: 7221 | G128: 0 | J128: 1
B129: 2000-001-024 | C129: Becerril Sánchez María Elena Betel | D129: 0 | E129: 0 | F129: 0 | G129: 0 | J129: 2
B130: 2000-001-025 | C130: FTTH de México SA de CV | D130: 0 | E130: 0 | F130: 0 | G130: 0 | J130: 2
B131: 2000-001-026 | C131: Organización Motomundo SA de CV | D131: 0 | E131: 0 | F131: 0 | G131: 0 | J131: 1
B132: 2000-001-027 | C132: Qualitas Compañía de Seguros SA de CV | D132: 0 | E132: 0 | F132: 0 | G132: 0 | J132: 2
B133: 2000-001-028 | C133: Perez Pantoja Daysi Georgina | D133: 0 | E133: 0 | F133: 0 | G133: 0 | J133: 1
B134: 2000-001-029 | C134: Cablevisión SA de CV | D134: 0 | E134: 749 | F134: 749 | G134: 0 | J134: 2
B135: 2000-002-000 | C135: Proveedores extranjeros | D135: 0 | E135: 0 | F135: 0 | G135: 0 | J135: 2
B136: 2005-000-000 | C136: ACREEDORES DIVERSOS | D136: -1577542.38 | E136: 1364029.88 | F136: 609981.72 | G136: -2331590.54 | J136: 1
B137: 2005-001-000 | C137: Acreedores nacionales | D137: -1577542.38 | E137: 1360422.85 | F137: 606374.69 | G137: -2331590.54 | J137: 2
B138: 2005-001-001 | C138: C | D138: 0 | E138: 0 | F138: 0 | G138: 0 | J138: 2
B139: 2005-001-002 | C139: Banamex Tarjeta de credito | D139: 6517.32 | E139: 12170.17 | F139: 5652.85 | G139: 0 | J139: 1
B140: 2005-001-003 | C140: ISABL | D140: 0 | E140: 0 | F140: 0 | G140: 0 | J140: 2
B141: 2005-001-004 | C141: INGI | D141: 0 | E141: 0 | F141: 0 | G141: 0 | J141: 2
B142: 2005-001-005 | C142: Efectivale S de RL de CV | D142: 0 | E142: 145449.6 | F142: 145449.6 | G142: 0 | J142: 1
B143: 2005-001-006 | C143: Bienes Programados SA de CV | D143: 0 | E143: 0 | F143: 0 | G143: 0 | J143: 2
B144: 2005-001-007 | C144: Asimilados a salarios | D144: -1586112.27 | E144: 1130699 | F144: 383777.39 | G144: -2333033.88 | J144: 2
B145: 2005-001-008 | C145: Retención IMSS obrera | D145: 1764.57 | E145: 1357.64 | F145: 1036.41 | G145: 1443.34 | J145: 1
B146: 2005-001-009 | C146: Sueldos por pagar | D146: 0 | E146: 63498.44 | F146: 63498.44 | G146: 0 | J146: 2
B147: 2005-001-010 | C147: Evo Payments Mexico S. De R. L. De C.V. | D147: 0 | E147: 0 | F147: 0 | G147: 0 | J147: 1
B148: 2005-001-011 | C148: Fomento Automotriz Y Servicio Al Transporte, S.A. De C.V. | D148: 0 | E148: 0 | F148: 0 | G148: 0 | J148: 2
B149: 2005-001-012 | C149: RAY | D149: 0 | E149: 0 | F149: 0 | G149: 0 | J149: 2
B150: 2005-001-013 | C150: Depósitos equivocados | D150: 288 | E150: 288 | F150: 0 | G150: 0 | J150: 1
B151: 2005-001-014 | C151: Cresta Narvarte SA de CV | D151: 0 | E151: 0 | F151: 0 | G151: 0 | J151: 2
B152: 2005-001-015 | C152: GUSTAVO | D152: 0 | E152: 0 | F152: 0 | G152: 0 | J152: 2
B153: 2005-001-016 | C153: MARGARITO | D153: 0 | E153: 0 | F153: 0 | G153: 0 | J153: 1
B154: 2005-001-017 | C154: Electrobike de Mexico SA de CV | D154: 0 | E154: 0 | F154: 0 | G154: 0 | J154: 2
B155: 2005-001-018 | C155: El Águila Compañía de Seguros SA de CV | D155: 0 | E155: 0 | F155: 0 | G155: 0 | J155: 2
B156: 2005-001-019 | C156: ROSALBA | D156: 0 | E156: 0 | F156: 0 | G156: 0 | J156: 1
B157: 2005-001-020 | C157: Cever San Antonio SA de CV | D157: 0 | E157: 0 | F157: 0 | G157: 0 | J157: 2
B158: 2005-001-021 | C158: Power Moto SA de CV | D158: 0 | E158: 0 | F158: 0 | G158: 0 | J158: 2
B159: 2005-001-022 | C159: Comercializadora de Motocicletas de Calidad SA de CV | D159: 0 | E159: 0 | F159: 0 | G159: 0 | J159: 1
B160: 2005-001-023 | C160: ENRIQUE | D160: 0 | E160: 0 | F160: 0 | G160: 0 | J160: 2
B161: 2005-001-024 | C161: Sofam Motos SA de CV | D161: 0 | E161: 0 | F161: 0 | G161: 0 | J161: 1
B162: 2005-001-025 | C162: Utilidades Digitales Mx SA de CV | D162: 0 | E162: 0 | F162: 0 | G162: 0 | J162: 2
B163: 2005-001-026 | C163: Acreedores varios | D163: 0 | E163: 6960 | F163: 6960 | G163: 0 | J163: 2
B164: 2005-001-027 | C164: HDI Seguros SA de CV | D164: 0 | E164: 0 | F164: 0 | G164: 0 | J164: 1
B165: 2005-001-028 | C165: Teléfonos de México SAB de CV | D165: 0 | E165: 0 | F165: 0 | G165: 0 | J165: 2
B166: 2005-001-029 | C166: Si Vale México | D166: 0 | E166: 0 | F166: 0 | G166: 0 | J166: 2
B167: 2005-002-000 | C167: Acreedores extranjeros | D167: 0 | E167: 3607.03 | F167: 3607.03 | G167: 0 | J167: 1
B168: 2005-002-001 | C168: LIMITE | D168: 0 | E168: 2346.2 | F168: 2346.2 | G168: 0 | J168: 2
B169: 2005-002-002 | C169: ZOO | D169: 0 | E169: 455.13 | F169: 455.13 | G169: 0 | J169: 2
B170: 2005-002-003 | C170: Facebook Ireland Limited | D170: 0 | E170: 805.7 | F170: 805.7 | G170: 0 | J170: 1
B171: 2005-002-004 | C171: Wix.com LTD | D171: 0 | E171: 0 | F171: 0 | G171: 0 | J171: 2
B172: 2005-002-005 | C172: Cleverbridge | D172: 0 | E172: 0 | F172: 0 | G172: 0 | J172: 2
B173: 2005-002-006 | C173: Norton LifeLock Inc | D173: 0 | E173: 0 | F173: 0 | G173: 0 | J173: 1
B174: 2005-002-007 | C174: Upclick Malta Limited | D174: 0 | E174: 0 | F174: 0 | G174: 0 | J174: 2
B175: 2005-002-008 | C175: BifDefender | D175: 0 | E175: 0 | F175: 0 | G175: 0 | J175: 1
B176: 2005-002-009 | C176: Blue Snap INC | D176: 0 | E176: 0 | F176: 0 | G176: 0 | J176: 2
B177: 2005-002-010 | C177: Canva Pty Ltd | D177: 0 | E177: 0 | F177: 0 | G177: 0 | J177: 2
B178: 2007-000-000 | C178: ANTICIPO DE CLIENTES | D178: 2074.14 | E178: 0 | F178: 0 | G178: 2074.14 | J178: 1
B179: 2007-001-000 | C179: Anticipo de clientes | D179: 2074.14 | E179: 0 | F179: 0 | G179: 2074.14 | J179: 2
B180: 2010-000-000 | C180: IVA TRASLADADO | D180: 19813.06 | E180: 162224.62 | F180: 157864.2 | G180: 15452.64 | J180: 2
B181: 2010-001-000 | C181: IVA trasladado pendiente de cobro | D181: 19813.06 | E181: 81766.31 | F181: 77405.89 | G181: 15452.64 | J181: 1
B182: 2010-002-000 | C182: IVA trasladado cobrado | D182: 0 | E182: 80458.31 | F182: 80458.31 | G182: 0 | J182: 2
B183: 2016-000-000 | C183: IMPUESTOS PENDIENTES DE RETENER | D183: 0 | E183: 0 | F183: 0 | G183: 0 | J183: 2
B184: 2016-001-000 | C184: Retencion ISR honorarios | D184: 0 | E184: 0 | F184: 0 | G184: 0 | J184: 1
B185: 2016-002-000 | C185: Retencion IVA honorarios | D185: 0 | E185: 0 | F185: 0 | G185: 0 | J185: 2
B186: 2016-003-000 | C186: Retención ISR RESICOPF | D186: 0 | E186: 0 | F186: 0 | G186: 0 | J186: 2
B187: 2020-000-000 | C187: IMPUESTOS Y APORTACIONES DE SEGURIDAD SOCIAL POR PAGAR | D187: 949304.88 | E187: 138758.13 | F187: 191056.92 | G187: 1001603.67 | J187: 1
B188: 2020-001-000 | C188: ISR | D188: 387797 | E188: 0 | F188: 0 | G188: 387797 | J188: 2
B189: 2020-002-000 | C189: IVA | D189: 147644 | E189: 81559 | F189: 64688 | G189: 130773 | J189: 1
B190: 2020-003-000 | C190: Retencion salarios | D190: 424 | E190: 883 | F190: 1735 | G190: 1276 | J190: 2
B191: 2020-004-000 | C191: Retencion asimilados a salarios | D191: 407557 | E191: 50000.06 | F191: 109615.06 | G191: 467172 | J191: 2
B192: 2020-005-000 | C192: Retencion honorarios | D192: 0 | E192: 0 | F192: 0 | G192: 0 | J192: 1
B193: 2020-006-000 | C193: IVA retenciones | D193: 0 | E193: 0 | F193: 0 | G193: 0 | J193: 2
B194: 2020-007-000 | C194: Impuesto sobre nominas | D194: 0 | E194: 0 | F194: 0 | G194: 0 | J194: 2
B195: 2020-008-000 | C195: IMSS | D195: 5738.95 | E195: 5738.95 | F195: 5694.64 | G195: 5694.64 | J195: 1
B196: 2020-008-001 | C196: Cuotas obreras | D196: 490.59 | E196: 490.59 | F196: 484.88 | G196: 484.88 | J196: 2
B197: 2020-008-002 | C197: Cuotas Patronales | D197: 5248.36 | E197: 5248.36 | F197: 5209.76 | G197: 5209.76 | J197: 2
B198: 2020-009-000 | C198: Cesantia, Vejez y retiro | D198: 0 | E198: 0 | F198: 4868.11 | G198: 4868.11 | J198: 1
B199: 2020-009-001 | C199: Cuotas obreras | D199: 0 | E199: 0 | F199: 872.76 | G199: 872.76 | J199: 2
B200: 2020-009-002 | C200: Cuotas Patronales | D200: 0 | E200: 0 | F200: 3995.35 | G200: 3995.35 | J200: 2
B201: 2020-010-000 | C201: INFONAVIT | D201: 0 | E201: 0 | F201: 3878.99 | G201: 3878.99 | J201: 1
B202: 2020-011-000 | C202: IVA por pagar por intangibles importados | D202: 143.93 | E202: 577.12 | F202: 577.12 | G202: 143.93 | J202: 2
B203: 2020-012-000 | C203: Retención ISR RESICOPF | D203: 0 | E203: 0 | F203: 0 | G203: 0 | J203: 1
B204: 3000-000-000 | C204: CAPITAL SOCIAL | D204: 3963851.48 | E204: 0 | F204: 0 | G204: 3963851.48 | J204: 2
... 131 more rows

Sheet RPOLIZA (hidden)

Sheet CLAVESPS (hidden)
B2: c_ClaveProdServ | C2: Descripción | D2: Palabras similares | G2: Catálogo de claves de unidad de medida | J2: Cátalogo de formas de pago | M2: Catálogo de moneda | P2: Catálogo tipo de comprobante | S2: Catálogo de régimen fiscal | V2: Catálogo del uso del CFDI | Y2: Catálogo tipo de relación | AB2: Catálogo metodo de pago | AE2: Catálogo exportación V. 4.0 | AH2: Catálogo objeto V. 4.0 | AK2: Catálogo periodicidad V. 4.0 | AN2: Catálogo meses V. 4.0
B3: 01010101 | C3: No existe en el catálogo | D3: Público en general | G3: c_ClaveUnidad | H3: Nombre | J3: c_FormaPago | K3: Descripción | M3: c_Moneda | N3: Descripción | P3: c_TipoDeComprobante | Q3: Descripción | S3: c_RegimenFiscal | T3: Descripción | V3: c_UsoCFDI | W3: Descripción | Y3: c_TipoRelacion | Z3: Descripción | AB3: c_MetodoPago | AC3: Descripción | AE3: Clave | AF3: Descripción | AH3: Clave | AI3: Descripción | AK3: Clave | AL3: Descripción | AN3: Clave | AO3: Descripción
B4: 10101500 | C4: Animales vivos de granja | G4: 18 | H4: Tambor de cincuenta y cinco galones (EUA) | J4: 1 | K4: Efectivo | M4: AED | N4: Dirham de EAU | P4: I | Q4: Ingreso | S4: 601 | T4: General de Ley Personas Morales | V4: G01 | W4: Adquisición de mercancias | Y4: 01 | Z4: Nota de crédito de los documentos relacionados | AB4: PUE | AC4: Pago en una sola exhibición | AE4: 1 | AF4: No aplica | AH4: 1 | AI4: No objeto de impuesto. | AK4: 1 | AL4: Diario | AN4: 1 | AO4: Enero
B5: 10101501 | C5: Gatos vivos | G5: 19 | H5: Camión cisterna | J5: 2 | K5: Cheque nominativo | M5: AFN | N5: Afghani | P5: E | Q5: Egreso | S5: 603 | T5: Personas Morales con Fines no Lucrativos | V5: G02 | W5: Devoluciones, descuentos o bonificaciones | Y5: 02 | Z5: Nota de débito de los documentos relacionados | AB5: PPD | AC5: Pago en parcialidades o diferido | AE5: 2 | AF5: Definitiva | AH5: 2 | AI5: Sí objeto de impuesto. | AK5: 2 | AL5: Semanal | AN5: 2 | AO5: Febrero
B6: 10101502 | C6: Perros | G6: 26 | H6: Tonelada real | J6: 3 | K6: Transferencia electrónica de fondos | M6: ALL | N6: Lek | P6: T | Q6: Traslado | S6: 605 | T6: Sueldos y Salarios e Ingresos Asimilados a Salarios | V6: G03 | W6: Gastos en general | Y6: 03 | Z6: Devolución de mercancía sobre facturas o traslados previos | AE6: 3 | AF6: Temporal | AH6: 3 | AI6: Sí objeto del impuesto y no obligado al desglose. | AK6: 3 | AL6: Quincenal | AN6: 3 | AO6: Marzo
B7: 10101504 | C7: Visón | G7: 29 | H7: Libra por mil pies cuadrados | J7: 4 | K7: Tarjeta de crédito | M7: AMD | N7: Dram armenio | P7: N | Q7: Nómina | S7: 606 | T7: Arrendamiento | V7: I01 | W7: Construcciones | Y7: 04 | Z7: Sustitución de los CFDI previos | AH7: 4 | AI7: Sí objeto del impuesto y no causa impuesto. | AK7: 4 | AL7: Mensual | AN7: 4 | AO7: Abril
B8: 10101505 | C8: Ratas | G8: 30 | H8: Día de potencia de caballos por tonelada métrica de aire seco | J8: 5 | K8: Monedero electrónico | M8: ANG | N8: Florín antillano neerlandés | S8: 608 | T8: Demás ingresos | V8: I02 | W8: Mobilario y equipo de oficina por inversiones | Y8: 05 | Z8: Traslados de mercancias facturados previamente | AK8: 5 | AL8: Bimestral | AN8: 5 | AO8: Mayo
B9: 10101506 | C9: Caballos | D9: Equinos, Potrancas, Potras, Potrillos, Potros, Yeguas | G9: 31 | H9: Pescar | J9: 6 | K9: Dinero electrónico | M9: AOA | N9: Kwanza | P9: P | Q9: Pago | S9: 609 | T9: Consolidación | V9: I03 | W9: Equipo de transporte | Y9: 06 | Z9: Factura generada por los traslados previos | AN9: 6 | AO9: Junio
B10: 10101507 | C10: Ovejas | D10: Borregos, Carneros | G10: 32 | H10: Kilogramo por tonelada métrica seca del aire | J10: 8 | K10: Vales de despensa | M10: ARS | N10: Peso Argentino | S10: 610 | T10: Residentes en el Extranjero sin Establecimiento Permanente en México | V10: I04 | W10: Equipo de computo y accesorios | Y10: 07 | Z10: CFDI por aplicación de anticipo | AN10: 7 | AO10: Julio
B11: 10101508 | C11: Cabras | D11: Borregos cimarrones, Cabritos, Cabros, Carnero de las Rocosas, Chivas, Chivatos, Chivos, Irascos, Machos cabríos, Chivos | G11: 36 | H11: Pie cúbico por minuto por pie cuadrado | J11: 12 | K11: Dación en pago | M11: AUD | N11: Dólar Australiano | S11: 611 | T11: Ingresos por Dividendos (socios y accionistas) | V11: I05 | W11: Dados, troqueles, moldes, matrices y herramental | Y11: 08 | Z11: Factura generada por pagos en parcialidades | AN11: 8 | AO11: Agosto
B12: 10101509 | C12: Asnos | D12: Borricos, Burros | G12: 44 | H12: Bolsa a granel de quinientos kilos | J12: 13 | K12: Pago por subrogación | M12: AWG | N12: Aruba Florin | S12: 612 | T12: Personas Físicas con Actividades Empresariales y Profesionales | V12: I06 | W12: Comunicaciones telefónicas | Y12: 09 | Z12: Factura generada por pagos diferidos | AN12: 9 | AO12: Septiembre
B13: 10101510 | C13: Ratones | G13: 45 | H13: Bolsa a granel de trescientos kilos | J13: 14 | K13: Pago por consignación | M13: AZN | N13: Azerbaijanian Manat | S13: 614 | T13: Ingresos por intereses | V13: I07 | W13: Comunicaciones satelitales | AN13: 10 | AO13: Octubre
B14: 10101511 | C14: Cerdos | D14: Cerdo montés, Chanchos, Chanchos almizcleros, Chanchos de monte, Cochinillos, Cochinos, Cochinos de monte, Cuche, Cuinos, Gorrinos, Jabalíes americanos, Lechones, Cochinos de monte, Pecaríes, Porcinos, Puercos, Puercos de monte, Tayatos | G14: 46 | H14: Bolsa a granel de cincuenta libras | J14: 15 | K14: Condonación | M14: BAM | N14: Convertibles marca | S14: 616 | T14: Sin obligaciones fiscales | V14: I08 | W14: Otra maquinaria y equipo | AN14: 11 | AO14: Noviembre
B15: 10101512 | C15: Conejos | D15: Liebres | G15: 47 | H15: Bolso de cincuenta libras | J15: 17 | K15: Compensación | M15: BBD | N15: Dólar de Barbados | S15: 620 | T15: Sociedades Cooperativas de Producción que optan por diferir sus ingresos | V15: D01 | W15: Honorarios médicos, dentales y gastos hospitalarios. | AN15: 12 | AO15: Diciembre
B16: 10101513 | C16: Cobayas o conejillos de indias | D16: Chanchito de Indias, Cobayos, Cuilo, Cuyo | G16: 48 | H16: Carga masiva | J16: 23 | K16: Novación | M16: BDT | N16: Taka | S16: 621 | T16: Incorporación Fiscal | V16: D02 | W16: Gastos médicos por incapacidad o discapacidad | AN16: 13 | AO16: Enero-Febrero
B17: 10101514 | C17: Primates | D17: Changos, Chimpancés, Gorilas, Lémures, Macacos, Micos, Monos, Orangutanes, Simios, Monos | G17: 53 | H17: Kilogramo teórico | J17: 24 | K17: Confusión | M17: BGN | N17: Lev búlgaro | S17: 622 | T17: Actividades Agrícolas, Ganaderas, Silvícolas y Pesqueras | V17: D03 | W17: Gastos funerales. | AN17: 14 | AO17: Marzo-Abril
B18: 10101515 | C18: Armadillos | D18: Toches | G18: 54 | H18: Tonelada teórica (UK) | J18: 25 | K18: Remisión de deuda | M18: BHD | N18: Dinar de Bahrein | S18: 623 | T18: Opcional para Grupos de Sociedades | V18: D04 | W18: Donativos. | AN18: 15 | AO18: Mayo-Junio
B19: 10101516 | C19: Ganado vacuno | D19: Bueyes, Búfalos, Cebús, Otros vacunos o bovinos, Toros, Vacas | G19: 62 | H19: Por ciento por 1000 horas | J19: 26 | K19: Prescripción o caducidad | M19: BIF | N19: Burundi Franc | S19: 624 | T19: Coordinados | V19: D05 | W19: Intereses reales efectivamente pagados por créditos hipotecarios (casa habitación). | AN19: 16 | AO19: Julio-Agosto
B20: 10101517 | C20: Camellos | D20: Dromedarios | G20: 63 | H20: Tasa de fracaso en el tiempo | J20: 27 | K20: A satisfacción del acreedor | M20: BMD | N20: Dólar de Bermudas | S20: 628 | T20: Hidrocarburos | V20: D06 | W20: Aportaciones voluntarias al SAR. | AN20: 17 | AO20: Septiembre-Octubre
B21: 10101600 | C21: Pájaros y aves de corral vivos | G21: 64 | H21: Libra por pulgada cuadrada, calibre | J21: 28 | K21: Tarjeta de débito | M21: BND | N21: Dólar de Brunei | S21: 607 | T21: Régimen de Enajenación o Adquisición de Bienes | V21: D07 | W21: Primas por seguros de gastos médicos. | AN21: 18 | AO21: Noviembre-Diciembre
B22: 10101601 | C22: Pollos vivos | D22: Gallinas, Gallinas de guinea, Gallos, Pintadas, Pollitos | G22: 66 | H22: Oersted | J22: 29 | K22: Tarjeta de servicios | M22: BOB | N22: Boliviano | S22: 629 | T22: De los Regímenes Fiscales Preferentes y de las Empresas Multinacionales | V22: D08 | W22: Gastos de transportación escolar obligatoria.
B23: 10101602 | C23: Patos vivos | G23: 69 | H23: Escala específica de prueba | J23: 30 | K23: Aplicación de anticipos | M23: BOV | N23: Mvdol | S23: 630 | T23: Enajenación de acciones en bolsa de valores | V23: D09 | W23: Depósitos en cuentas para el ahorro, primas que tengan como base planes de pensiones.
B24: 10101603 | C24: Pavos vivos | D24: Gallipavos, Guajolotes, Pavos salvajes | G24: 71 | H24: Voltios amperios por libra | J24: 31 | K24: Intermediario pagos | M24: BRL | N24: Real brasileño | S24: 615 | T24: Régimen de los ingresos por obtención de premios | V24: D10 | W24: Pagos por servicios educativos (colegiaturas)
B25: 10101604 | C25: Gansos vivos | G25: 72 | H25: Vatio por libra | J25: 99 | K25: Por definir | M25: BSD | N25: Dólar de las Bahamas | S25: 626 | T25: Régimen Simplificado de Confianza | V25: P01 | W25: Por definir
B26: 10101605 | C26: Faisanes vivos | G26: 73 | H26: Amperios por centímetro | M26: BTN | N26: Ngultrum
B27: 10101700 | C27: Peces vivos | G27: 76 | H27: Gauss | M27: BWP | N27: Pula
B28: 10101701 | C28: Salmones vivos | G28: 78 | H28: Kilogauss | M28: BYR | N28: Rublo bielorruso | S28: Catálogo de régimen fiscal V.4.0 | V28: Catálogo del uso del CFDI V 4.0
B29: 10101702 | C29: Trucha viva | G29: 84 | H29: Kilopound-force por pulgada cuadrada | M29: BZD | N29: Dólar de Belice | S29: c_RegimenFiscal | T29: Descripción | V29: c_UsoCFDI | W29: Descripción
B30: 10101703 | C30: Tilapia viva | D30: Mojarra | G30: 90 | H30: Saybold segundo universal | M30: CAD | N30: Dolar Canadiense | S30: 601 | T30: General de Ley Personas Morales | V30: G01 | W30: Adquisición de mercancías.
B31: 10101704 | C31: Carpa viva | G31: 92 | H31: Calorías por centímetro cúbico | M31: CDF | N31: Franco congoleño | S31: 603 | T31: Personas Morales con Fines no Lucrativos | V31: G02 | W31: Devoluciones, descuentos o bonificaciones.
B32: 10101705 | C32: Anguilas vivas | G32: 93 | H32: Calorías por gramo | M32: CHE | N32: WIR Euro | S32: 605 | T32: Sueldos y Salarios e Ingresos Asimilados a Salarios | V32: G03 | W32: Gastos en general.
B33: 10101800 | C33: Mariscos e invertebrados acuáticos vivos | G33: 94 | H33: Unidad de curl | M33: CHF | N33: Franco Suizo | S33: 606 | T33: Arrendamiento | V33: I01 | W33: Construcciones.
B34: 10101801 | C34: Camarón vivo | D34: Esquilas | G34: 95 | H34: Veinte mil galones | M34: CHW | N34: Franc WIR | S34: 607 | T34: Régimen de Enajenación o Adquisición de Bienes | V34: I02 | W34: Mobiliario y equipo de oficina por inversiones.
B35: 10101802 | C35: Almejas vivas | G35: 96 | H35: Diez mil galones (US) | M35: CLF | N35: Unidad de Fomento | S35: 608 | T35: Demás ingresos | V35: I03 | W35: Equipo de transporte.
B36: 10101803 | C36: Mejillones vivos | G36: 97 | H36: Diez kilos de tambor | M36: CLP | N36: Peso chileno | S36: 610 | T36: Residentes en el Extranjero sin Establecimiento Permanente en México | V36: I04 | W36: Equipo de computo y accesorios.
B37: 10101804 | C37: Ostras vivas | G37: 98 | H37: Quince kilos de tambor | M37: CNY | N37: Yuan Renminbi | S37: 611 | T37: Ingresos por Dividendos (socios y accionistas) | V37: I05 | W37: Dados, troqueles, moldes, matrices y herramental.
B38: 10101805 | C38: Cangrejos vivos | G38: 05 | H38: Ascensor | M38: COP | N38: Peso Colombiano | S38: 612 | T38: Personas Físicas con Actividades Empresariales y Profesionales | V38: I06 | W38: Comunicaciones telefónicas.
B39: 10101806 | C39: Abulones vivos | D39: Orejas de mar | G39: 06 | H39: Pequeño aerosol | M39: COU | N39: Unidad de Valor real | S39: 614 | T39: Ingresos por intereses | V39: I07 | W39: Comunicaciones satelitales.
B40: 10101807 | C40: Pulpo vivo | D40: Octópodo | G40: 08 | H40: Montón de calor | M40: CRC | N40: Colón costarricense | S40: 615 | T40: Régimen de los ingresos por obtención de premios | V40: I08 | W40: Otra maquinaria y equipo.
B41: 10101808 | C41: Calamar vivo | G41: 10 | H41: Grupos | M41: CUC | N41: Peso Convertible | S41: 616 | T41: Sin obligaciones fiscales | V41: D01 | W41: Honorarios médicos, dentales y gastos hospitalarios.
B42: 10101809 | C42: Sanguijuelas | D42: Hirudineas, Hirudos, Hirudíneo | G42: 11 | H42: Equipos | M42: CUP | N42: Peso Cubano | S42: 620 | T42: Sociedades Cooperativas de Producción que optan por diferir sus ingresos | V42: D02 | W42: Gastos médicos por incapacidad o discapacidad.
B43: 10101900 | C43: Insectos vivos | G43: 13 | H43: Raciones | M43: CVE | N43: Cabo Verde Escudo | S43: 621 | T43: Incorporación Fiscal | V43: D03 | W43: Gastos funerales.
B44: 10101901 | C44: Mariposas | G44: 14 | H44: Shot | M44: CZK | N44: Corona checa | S44: 622 | T44: Actividades Agrícolas, Ganaderas, Silvícolas y Pesqueras | V44: D04 | W44: Donativos.
B45: 10101902 | C45: Escarabajos | D45: Mariquitas, Sanjuaneros | G45: 15 | H45: Palo, medida militar. | M45: DJF | N45: Franco de Djibouti | S45: 623 | T45: Opcional para Grupos de Sociedades | V45: D05 | W45: Intereses reales efectivamente pagados por créditos hipotecarios (casa habitación).
B46: 10101903 | C46: Abejas | G46: 16 | H46: Tambor de 115 kilogramos | M46: DKK | N46: Corona danesa | S46: 624 | T46: Coordinados | V46: D06 | W46: Aportaciones voluntarias al SAR.
B47: 10101904 | C47: Gusanos de seda | D47: Crisálida, Larva, Oruga | G47: 17 | H47: Tambor de cien libras | M47: DOP | N47: Peso Dominicano | S47: 625 | T47: Régimen de las Actividades Empresariales con ingresos a través de Plataformas Tecnológicas | V47: D07 | W47: Primas por seguros de gastos médicos.
B48: 10102000 | C48: Animales salvajes vivos | G48: 1A | H48: Milla de carros | M48: DZD | N48: Dinar argelino | S48: 626 | T48: Régimen Simplificado de Confianza | V48: D08 | W48: Gastos de transportación escolar obligatoria.
B49: 10102001 | C49: Elefantes | D49: Paquidermos | G49: 1B | H49: Recuento de automóviles | M49: EGP | N49: Libra egipcia | V49: D09 | W49: Depósitos en cuentas para el ahorro, primas que tengan como base planes de pensiones.
B50: 10102002 | C50: Zorros vivos | D50: Zorras | G50: 1C | H50: Conteo de locomotoras | M50: ERN | N50: Nakfa | V50: D10 | W50: Pagos por servicios educativos (colegiaturas).
B51: 10102100 | C51: Huevos de aves para incubar | G51: 1D | H51: Caboose count | M51: ETB | N51: Birr etíope | V51: S01 | W51: Sin efectos fiscales.
B52: 10111300 | C52: Accesorios, equipo y tratamientos para los animales domésticos | D52: Accesorios, equipo y medicamentos para animales domésticos | G52: 1E | H52: Coche vacío | M52: EUR | N52: Euro | V52: CP01 | W52: Pagos
B53: 10111301 | C53: Juguetes para mascotas | G53: 1F | H53: Milla de tren | M53: FJD | N53: Dólar de Fiji | V53: CN01 | W53: Nómina
B54: 10111302 | C54: Productos para el aseo y cuidado de mascotas | G54: 1G | H54: Galón del uso del combustible (los EUA) | M54: FKP | N54: Libra malvinense | V54: P01 | W54: Por definir
B55: 10111303 | C55: Equipo para el manejo de desperdicios de las mascotas | G55: 1H | H55: Milla de caboose | M55: GBP | N55: Libra Esterlina
B56: 10111304 | C56: Tazones o equipo para alimentación de mascotas | G56: 1I | H56: Tipo de interés fijo | M56: GEL | N56: Lari
B57: 10111305 | C57: Tratamientos medicados para mascotas | D57: Tratamientos medicinales para mascotas | G57: 1J | H57: Tonelada milla | M57: GHS | N57: Cedi de Ghana
B58: 10111306 | C58: Kits para el entrenamiento de mascotas domésticas | G58: 1K | H58: Milla locomotora | M58: GIP | N58: Libra de Gibraltar
B59: 10111307 | C59: Cobijas para mascotas | D59: Mantas para mascotas, Sábanas para mascotas | G59: 1L | H59: Recuento total de automóviles | M59: GMD | N59: Dalasi
B60: 10121500 | C60: Pienso para ganado | D60: Alimento para ganado | G60: 1M | H60: Milla total del coche | M60: GNF | N60: Franco guineano
B61: 10121501 | C61: Salvado de trigo puro | G61: 1X | H61: Cuarto de milla | M61: GTQ | N61: Quetzal
B62: 10121502 | C62: Avena para forraje | G62: 20 | H62: Contenedores de veinte pies | M62: GYD | N62: Dólar guyanés
B63: 10121503 | C63: Maíz para forraje | G63: 21 | H63: Contenedor de cuarenta pies | M63: HKD | N63: Dolar De Hong Kong
B64: 10121504 | C64: Sorgo para forraje | G64: 22 | H64: Decilitro por gramo | M64: HNL | N64: Lempira
B65: 10121505 | C65: Heno | G65: 23 | H65: Gramo por centímetro cúbico | M65: HRK | N65: Kuna
B66: 10121506 | C66: Tortas oleaginosas | D66: Torta de aceite para ganado | G66: 24 | H66: Libra teórica | M66: HTG | N66: Gourde
B67: 10121507 | C67: Forraje compuesto | G67: 25 | H67: Gramo por centímetro cuadrado | M67: HUF | N67: Florín
B68: 10121600 | C68: Alimento para pájaros y aves de corral | G68: 27 | H68: Tonelada teórica | M68: IDR | N68: Rupia
B69: 10121601 | C69: Alimento vivo para aves | G69: 28 | H69: Kilogramo por metro cuadrado | M69: ILS | N69: Nuevo Shekel Israelí
B70: 10121602 | C70: Alpiste | G70: 2A | H70: Radián por segundo | M70: INR | N70: Rupia india
B71: 10121603 | C71: Botanas o comida recreacional para aves | G71: 2B | H71: Radián por segundo cuadrado | M71: IQD | N71: Dinar iraquí
B72: 10121604 | C72: Alimento avícola | G72: 2C | H72: Roentgen | M72: IRR | N72: Rial iraní
B73: 10121700 | C73: Alimento para peces | G73: 2G | H73: Voltios CA | M73: ISK | N73: Corona islandesa
B74: 10121701 | C74: Salmuera fresca o congelada | G74: 2H | H74: Voltios CD | M74: JMD | N74: Dólar Jamaiquino
B75: 10121702 | C75: Alimento granulado para peces | G75: 2I | H75: Unidad térmica británica (tabla internacional) por hora | M75: JOD | N75: Dinar jordano
B76: 10121703 | C76: Alimento en hojuelas para peces | G76: 2J | H76: Centímetro cúbico por segundo | M76: JPY | N76: Yen
B77: 10121800 | C77: Alimento para perros y gatos | G77: 2K | H77: Pie cúbico por hora | M77: KES | N77: Chelín keniano
B78: 10121801 | C78: Comida seca para perros | G78: 2L | H78: Pie cúbico por minuto | M78: KGS | N78: Som
B79: 10121802 | C79: Comida húmeda para perros | G79: 2M | H79: Centímetro por segundo | M79: KHR | N79: Riel
B80: 10121803 | C80: Leche para perros o gatos | G80: 2N | H80: Decibel | M80: KMF | N80: Franco Comoro
B81: 10121804 | C81: Comida seca para gatos | G81: 2P | H81: Kilobyte | M81: KPW | N81: Corea del Norte ganó
B82: 10121805 | C82: Comida húmeda para gatos | G82: 2Q | H82: Kilobecquerel | M82: KRW | N82: Won
B83: 10121806 | C83: Botanas o comida recreacional para gatos o perros | G83: 2R | H83: Kilocurie | M83: KWD | N83: Dinar kuwaití
B84: 10121900 | C84: Alimento para roedores | G84: 2U | H84: Megagramo | M84: KYD | N84: Dólar de las Islas Caimán
B85: 10121901 | C85: Comida granulada para roedores | G85: 2V | H85: Megagrama por hora | M85: KZT | N85: Tenge
B86: 10122000 | C86: Alimento para reptiles | G86: 2X | H86: Metro por minuto | M86: LAK | N86: Kip
B87: 10122001 | C87: Comida granulada para reptiles | G87: 2Y | H87: Milliroentgen | M87: LBP | N87: Libra libanesa
B88: 10122002 | C88: Comida húmeda para reptiles | G88: 2Z | H88: Milivoltio | M88: LKR | N88: Rupia de Sri Lanka
B89: 10122003 | C89: Comida viva para reptiles | G89: 33 | H89: Kilopascal por grtr | M89: LRD | N89: Dólar liberiano
B90: 10122100 | C90: Comida para animales variados | D90: Comida para diversos animales | G90: 34 | H90: Kilopascal por milímetro | M90: LSL | N90: Loti
B91: 10122101 | C91: Comida para cerdos | D91: Comida para chanchos, Comida para cochinillos, Comida para cochinos, Comida para cuche, Comida para cuinos, Comida para gorrinos, Comida para lechones, Comida para marranos, Comida para porcinos, Comida para puercos, Comida para lechones | G91: 35 | H91: Milímetro por un segundo centímetro cuadrado | M91: LYD | N91: Dinar libio
B92: 10122102 | C92: Comida para visones | G92: 37 | H92: Onza por pie cuadrado | M92: MAD | N92: Dirham marroquí
B93: 10122103 | C93: Comida para monos | G93: 38 | H93: Onzas por pie cuadrado por 0,01 pulgadas | M93: MDL | N93: Leu moldavo
B94: 10122104 | C94: Comida para conejos | G94: 3B | H94: Megajoule | M94: MGA | N94: Ariary malgache
B95: 10131500 | C95: Cobertizos para animales | G95: 3C | H95: Manmonth | M95: MKD | N95: Denar
B96: 10131506 | C96: Establos para ganado | G96: 3E | H96: Libra por libra de producto | M96: MMK | N96: Kyat
B97: 10131507 | C97: Casas para mascotas domesticadas | G97: 3G | H97: Libra por pieza de producto | M97: MNT | N97: Tugrik
B98: 10131508 | C98: Camas para mascotas | G98: 3H | H98: Kilogramo por kilogramo de producto | M98: MOP | N98: Pataca
B99: 10131600 | C99: Recipientes para animales | D99: Contenedores de comida para animales | G99: 3I | H99: Kilogramo por pedazo de producto | M99: MRO | N99: Ouguiya
B100: 10131601 | C100: Jaulas o sus accesorios | G100: 40 | H100: Mililitro por segundo | M100: MUR | N100: Rupia de Mauricio
B101: 10131602 | C101: Perreras | G101: 41 | H101: Mililitro por minuto | M101: MVR | N101: Rupia
B102: 10131603 | C102: Equipaje para el transporte de animales | G102: 4B | H102: Gorra | M102: MWK | N102: Kwacha
B103: 10131604 | C103: Correas para perros | G103: 4C | H103: Centistokes | M103: MXN | N103: Peso Mexicano
B104: 10131700 | C104: Hábitat para animales | D104: Ambientes para animales | G104: 4E | H104: Veinte pack | M104: MXV | N104: México Unidad de Inversión (UDI)
B105: 10131701 | C105: Terrarios | G105: 4G | H105: Microlitro | M105: MYR | N105: Ringgit malayo
B106: 10131702 | C106: Acuarios | G106: 4H | H106: Micra | M106: MZN | N106: Mozambique Metical
B107: 10141500 | C107: Talabartería | D107: Guarniciones para caballerías | G107: 4K | H107: Miliamperio | M107: NAD | N107: Dólar de Namibia
B108: 10141501 | C108: Sillas de montar | G108: 4L | H108: Megabyte | M108: NGN | N108: Naira
B109: 10141502 | C109: Fustas y látigos | G109: 4M | H109: Miligramo por hora | M109: NIO | N109: Córdoba Oro
B110: 10141503 | C110: Herraduras para caballo | G110: 4N | H110: Megabequerel | M110: NOK | N110: Corona noruega
B111: 10141504 | C111: Herraduras para mula | G111: 4O | H111: Microfaradio | M111: NPR | N111: Rupia nepalí
B112: 10141505 | C112: Sillín o pelero | G112: 4P | H112: Newton por metro | M112: NZD | N112: Dólar de Nueva Zelanda
B113: 10141600 | C113: Arneses | G113: 4Q | H113: Onza pulgada | M113: OMR | N113: Rial omaní
B114: 10141601 | C114: Bridas | D114: Correas para caballos | G114: 4R | H114: Onza pie | M114: PAB | N114: Balboa
B115: 10141602 | C115: Yugos | G115: 4T | H115: Picofaradio | M115: PEN | N115: Nuevo Sol
B116: 10141603 | C116: Bocados para caballos | D116: Embocaduras para caballo | G116: 4U | H116: Libra por hora | M116: PGK | N116: Kina
B117: 10141604 | C117: Riendas | D117: Correas | G117: 4W | H117: Tonelada (EUA) por hora | M117: PHP | N117: Peso filipino
B118: 10141605 | C118: Estribos | G118: 4X | H118: Kilolitro por hora | M118: PKR | N118: Rupia de Pakistán
B119: 10141606 | C119: Correas o traíllas | G119: 56 | H119: Sitas | M119: PLN | N119: Zloty
B120: 10141607 | C120: Arneses de cuello para animales | G120: 57 | H120: Malla | M120: PYG | N120: Guaraní
B121: 10141608 | C121: Arneses o sus accesorios | G121: 58 | H121: kilogramo neto | M121: QAR | N121: Qatar Rial
B122: 10141609 | C122: Sujetadores | G122: 59 | H122: Parte por millón | M122: RON | N122: Leu rumano
B123: 10141610 | C123: Bozales | G123: 5A | H123: Barril por minuto | M123: RSD | N123: Dinar serbio
B124: 10141611 | C124: Soportes para correas | G124: 5B | H124: Batch | M124: RUB | N124: Rublo ruso
B125: 10151500 | C125: Semillas y plántulas vegetales | D125: Semillas y vástagos vegetales | G125: 5C | H125: Galón (US) por mil | M125: RWF | N125: Franco ruandés
B126: 10151501 | C126: Semillas o plántulas de fríjol | D126: Semillas o vástago primario de fríjol, Semillas o vástago primario de fríjol blanco, Semillas o vástago primario de fríjol negro, Semillas o vástago primario de fríjol rojo adzuki | G126: 5E | H126: Mmscf/day | M126: SAR | N126: Riyal saudí
B127: 10151502 | C127: Semillas o plántulas de zanahoria | D127: Semillas o vástago primario de zanahoria | G127: 5F | H127: Libra por mil | M127: SBD | N127: Dólar de las Islas Salomón
B128: 10151503 | C128: Semillas o plántulas de apio | D128: Semillas o vástago primario de apio | G128: 5G | H128: bomba | M128: SCR | N128: Rupia de Seychelles
B129: 10151504 | C129: Semillas o plántulas de chiles | D129: Semillas o vástago primario de chiles | G129: 5H | H129: Escenario | M129: SDG | N129: Libra sudanesa
B130: 10151505 | C130: Semillas o plántulas de calabacín | D130: Semillas o vástago primario de calabacín | G130: 5I | H130: Pies cúbicos estándar | M130: SEK | N130: Corona sueca
B131: 10151506 | C131: Semillas o plántulas de alverja | D131: Semillas o vástago primario de chícharo, Semillas o vástago primario de guisante | G131: 5J | H131: Caballos de potencia hidráulica | M131: SGD | N131: Dolar De Singapur
B132: 10151507 | C132: Semillas o plántulas de pepino cohombro | D132: Semillas o vástago primario de pepino cohombro | G132: 5K | H132: Contar por minuto | M132: SHP | N132: Libra de Santa Helena
B133: 10151508 | C133: Semillas o plántulas de berenjena | D133: Semillas o vástago primario de berenjena | G133: 5P | H133: Nivel sísmico | M133: SLL | N133: Leona
B134: 10151509 | C134: Semillas o plántulas de endivias | D134: Semillas o vástago primario de endivias | G134: 5Q | H134: Línea sísmica | M134: SOS | N134: Chelín somalí
B135: 10151510 | C135: Semillas o plántulas de ajo | D135: Semillas o vástago primario de ajo | G135: 60 | H135: Tanto por ciento en peso | M135: SRD | N135: Dólar de Suriname
B136: 10151511 | C136: Semillas o plántulas de puerro | D136: Semillas o vástago primario de puerro | G136: 61 | H136: Parte por mil millones (EUA) | M136: SSP | N136: Libra sudanesa Sur
B137: 10151512 | C137: Semillas o plántulas de lechuga | D137: Semillas o vástago primario de lechuga | G137: 74 | H137: Milipascal | M137: STD | N137: Dobra
B138: 10151513 | C138: Semillas o plántulas de maíz | D138: Semillas o vástago primario de maíz | G138: 77 | H138: Mili-pulgada | M138: SVC | N138: Colon El Salvador
B139: 10151514 | C139: Semillas o plántulas de melón | D139: Semillas o vástago primario de melón | G139: 80 | H139: Libra por pulgada cuadrado absoluta | M139: SYP | N139: Libra Siria
B140: 10151515 | C140: Semillas o plántulas cebolla | D140: Semillas o vástago primario de cebolla | G140: 81 | H140: Henry | M140: SZL | N140: Lilangeni
B141: 10151516 | C141: Semillas o plántulas de soya | D141: Semillas o vástago primario de soya | G141: 85 | H141: Pie libra-fuerza | M141: THB | N141: Baht
B142: 10151517 | C142: Semillas o plántulas de espinaca | D142: Semillas o vástago primario de espinaca | G142: 87 | H142: Libra por pie cúbico | M142: TJS | N142: Somoni
B143: 10151518 | C143: Semillas o plántulas de tomate | D143: Semillas o vástago primario de tomate | G143: 89 | H143: Poise | M143: TMT | N143: Turkmenistán nuevo manat
B144: 10151519 | C144: Semillas o plántulas de nabo | D144: Semillas o vástago primario de nabo | G144: 91 | H144: Stokes | M144: TND | N144: Dinar tunecino
B145: 10151520 | C145: Semillas o plántulas de acelga | D145: Semillas o vástago primario de acelga | G145: A1 | H145: 15 ° C calorías | M145: TOP | N145: Pa'anga
B146: 10151521 | C146: Semillas o plántulas de pimiento morrón | D146: Semillas o vástago primario de pimiento morrón | G146: A10 | H146: Amperio por metro cuadrado por joule segundo | M146: TRY | N146: Lira turca
B147: 10151522 | C147: Semillas o plántulas de remolacha | D147: Semillas o vástago primario de betabel | G147: A11 | H147: Ángstrom | M147: TTD | N147: Dólar de Trinidad y Tobago
B148: 10151523 | C148: Semillas o plántulas de coliflor | D148: Semillas o vástago primario de coliflor | G148: A12 | H148: Unidad astronómica | M148: TWD | N148: Nuevo dólar de Taiwán
B149: 10151524 | C149: Semillas o plántulas de perejil | D149: Semillas o vástago primario de perejil | G149: A13 | H149: Attojoule | M149: TZS | N149: Shilling tanzano
B150: 10151525 | C150: Semillas o plántulas de brócoli | D150: Semillas o vástago primario de brócoli | G150: A14 | H150: Barn | M150: UAH | N150: Hryvnia
B151: 10151526 | C151: Semillas o plántulas de repollo | D151: Semillas o vástago primario de col | G151: A15 | H151: Barn por electrovoltio | M151: UGX | N151: Shilling de Uganda
B152: 10151527 | C152: Semillas o plántulas de papa | D152: Semillas o vástago primario de patata | G152: A16 | H152: Barn por electrovoltio | M152: USD | N152: Dolar americano
B153: 10151528 | C153: Semillas o plántulas de batata | D153: Semillas o vástago primario de camote | G153: A17 | H153: Barn por esteroradian | M153: USN | N153: Dólar estadounidense (día siguiente)
B154: 10151529 | C154: Semillas o plántulas de calabaza | D154: Semillas o vástago primario de calabaza | G154: A18 | H154: Becquerel por kilogramo | M154: UYI | N154: Peso Uruguay en Unidades Indexadas (URUIURUI)
B155: 10151530 | C155: Semillas o plántulas de rábano | D155: Semillas o vástago primario de rabanito, Semillas o vástago primario de rábano | G155: A19 | H155: Becquerel por metro cúbico | M155: UYU | N155: Peso Uruguayo
B156: 10151531 | C156: Semillas o plántulas de repollitos de bruselas | D156: Semillas o vástago primario de col de Bruselas | G156: A2 | H156: Amperio por centímetro | M156: UZS | N156: Uzbekistán Sum
B157: 10151532 | C157: Semillas o plántulas de ahuyama | D157: Semillas o vástago primario de calabaza de castilla | G157: A20 | H157: Unidad térmica británica (tabla internacional) por segundo pie cuadrado grado rankine. | M157: VEF | N157: Bolívar
B158: 10151533 | C158: Semillas o plántulas de okra | D158: Semillas o vástago primario de okra | G158: A21 | H158: Unidad térmica británica (tabla internacional) por libra grado rankine | M158: VND | N158: Dong
B159: 10151534 | C159: Semillas o plántulas de melón cantalupo | D159: Semillas o vástago primario de melón cantalupo | G159: A22 | H159: Unidad térmica británica (tabla internacional) por segundo pie grado rankine | M159: VUV | N159: Vatu
B160: 10151535 | C160: Semillas o plántulas de maní | D160: Semillas o vástago primario de cacahuate | G160: A23 | H160: Unidad térmica británica (tabla internacional) por hora pie cuadrado grado rankine. | M160: WST | N160: Tala
B161: 10151536 | C161: Semillas o plántulas de caigua | D161: Semillas o vástago primario de caigua | G161: A24 | H161: Candela por metro cuadrado | M161: XAF | N161: Franco CFA BEAC
B162: 10151537 | C162: Semillas o plántulas de espárrago | D162: Semillas o vástago primario de espárrago | G162: A25 | H162: Caballo de vapor | M162: XAG | N162: Plata
B163: 10151538 | C163: Semillas o plántulas de garbanzo | D163: Semillas o vástago primario de garbanzo | G163: A26 | H163: Culombio metro | M163: XAU | N163: Oro
B164: 10151539 | C164: Semillas o plántulas de haba | D164: Semillas o vástago primario de haba | G164: A27 | H164: Culombio metro cuadrado por voltio | M164: XBA | N164: Unidad de Mercados de Bonos Unidad Europea Composite (EURCO)
B165: 10151600 | C165: Semillas de cereales | G165: A28 | H165: Culombio por centímetro cúbico | M165: XBB | N165: Unidad Monetaria de Bonos de Mercados Unidad Europea (UEM-6)
B166: 10151601 | C166: Semillas de trigo | G166: A29 | H166: Culombio por metro cúbico | M166: XBC | N166: Mercados de Bonos Unidad Europea unidad de cuenta a 9 (UCE-9)
B167: 10151602 | C167: Semillas de canola | D167: Semillas de colza | G167: A3 | H167: Amperio por milímetro | M167: XBD | N167: Mercados de Bonos Unidad Europea unidad de cuenta a 17 (UCE-17)
B168: 10151603 | C168: Semillas de cebada | G168: A30 | H168: Culombio por milímetro cúbico | M168: XCD | N168: Dólar del Caribe Oriental
B169: 10151604 | C169: Semillas de mijo | G169: A31 | H169: Culombio por kilogramo-segundo | M169: XDR | N169: DEG (Derechos Especiales de Giro)
B170: 10151605 | C170: Semillas de avena | G170: A32 | H170: Culombio por Mol | M170: XOF | N170: Franco CFA BCEAO
B171: 10151606 | C171: Semillas de ajonjolí | D171: Semillas de sésamo | G171: A33 | H171: Culombio por centímetro cuadrado | M171: XPD | N171: Paladio
B172: 10151607 | C172: Semillas de linaza | D172: Semillas de lino | G172: A34 | H172: Culombio por metro cuadrado | M172: XPF | N172: Franco CFP
B173: 10151608 | C173: Semillas de aceite de ricino | D173: Semillas de ricino | G173: A35 | H173: Culombio por milímetro cuadrado | M173: XPT | N173: Platino
B174: 10151609 | C174: Semillas de maíz | G174: A36 | H174: Centímetro cúbico por Mol | M174: XSU | N174: Sucre
B175: 10151610 | C175: Semillas de centeno | G175: A37 | H175: Decímetro cuadrado por Mol | M175: XTS | N175: Códigos reservados específicamente para propósitos de prueba
B176: 10151611 | C176: Semillas de sorgo | G176: A38 | H176: Cubic pooulo p | M176: XUA | N176: Unidad ADB de Cuenta
B177: 10151612 | C177: Semillas o plántulas de kiwicha | D177: Semillas o vástagos de amaranto | G177: A39 | H177: Metro cúbico por kilogramo | M177: XXX | N177: Los códigos asignados para las transacciones en que intervenga ninguna moneda
B178: 10151613 | C178: Semillas o plántulas de quínoa | D178: Semillas o vástagos de quinua | G178: A4 | H178: Amperio por centímetro cuadrado | M178: YER | N178: Rial yemení
B179: 10151700 | C179: Semillas y plántulas de hierba y forraje | D179: Semillas y vástagos de hierba y forraje | G179: A40 | H179: Metro cúbico por Mol | M179: ZAR | N179: Rand
B180: 10151701 | C180: Semillas o plántulas de arroz | G180: A41 | H180: Amperio por metro cuadrado | M180: ZMW | N180: Kwacha zambiano
B181: 10151702 | C181: Semillas o plántulas de trébol | G181: A42 | H181: Curie por kilogramo | M181: ZWL | N181: Zimbabwe Dólar
B182: 10151703 | C182: Semillas o plántulas de alfalfa | G182: A43 | H182: Tonelaje de peso muerto
B183: 10151704 | C183: Semillas o plántulas de pasto | D183: Semillas o vástagos para césped | G183: A44 | H183: Decalitro
B184: 10151705 | C184: Semillas o plántulas de veza (gachas / guija) | G184: A45 | H184: Decámetro
B185: 10151706 | C185: Semillas o plántulas de guar | G185: A47 | H185: Decitex
B186: 10151800 | C186: Semillas y plántulas de especias | D186: Semillas y vástagos de especias | G186: A48 | H186: Grado rankine
B187: 10151801 | C187: Semillas o plántulas de pimienta | G187: A49 | H187: Negador
B188: 10151802 | C188: Semillas o plántulas de vainilla | G188: A5 | H188: Amperio metro cuadrado
B189: 10151803 | C189: Semillas o plántulas de canela | G189: A50 | H189: Dina segundo por centímetro cúbico
B190: 10151804 | C190: Semillas o plántulas de clavo de olor | G190: A51 | H190: Dina segundo por centímetro
B191: 10151805 | C191: Semillas o plántulas de cilantro | G191: A52 | H191: Dina segundo por centímetro a la quinta potencia
B192: 10151806 | C192: Semillas o plántulas de jengibre | G192: A53 | H192: Electronvoltio
B193: 10151807 | C193: Semillas o plántulas de azafrán | G193: A54 | H193: Electronvoltio por metro
B194: 10151808 | C194: Semillas o plántulas de tomillo | G194: A55 | H194: Electronvoltio por metro cuadrado
B195: 10151809 | C195: Semillas o plántulas de curry | D195: Semillas o vástagos de curri | G195: A56 | H195: Electronvoltio metro cuadrado por kilogramo
B196: 10151810 | C196: Semillas o plántulas de mostaza | G196: A57 | H196: Ergio
B197: 10151811 | C197: Semillas o plántulas de ginseng | G197: A58 | H197: Erg por centímetro
B198: 10151812 | C198: Semillas o plántulas de champiñones | G198: A59 | H198: La cobertura de nubes 8-parte
B199: 10151813 | C199: Semillas o plántulas de sacha inchi | G199: A6 | H199: Amperio por metro cuadrado Kelvin cuadrado
B200: 10151814 | C200: Semillas o plántulas de achiote | G200: A60 | H200: Erg por centímetro cúbico
B201: 10151815 | C201: Semillas o plántulas de kudzu | G201: A61 | H201: Erg por gramo
... 4299 more rows
